{"text_format":"1","workbook":"xlsx","n_sheets":15,"sheets":["ESAT_Guidelines","ES Definition","Indicator Definition","Reliability Scores","Description of Study Area","ES Relevance","Initial Status","Present Status","Initial and Present Status","ES Assessment","Results ES Classes","Results ES Sections","Results ES Overall","Metrics Initial Status","Metrics Present Status"],"not_rendered":{"charts":9,"images":10,"macros":1,"external_links":0,"defined_names":1,"comments":1,"pivot_tables":0},"unopened":[],"bounds":{"document_bytes":16777216,"sheet_cells":100000,"rows_first":2000,"rows_last":500,"rows_between":2000,"halvings":0,"cell_chars":16384,"cell_head_chars":4096},"cells_cut":0,"cells_raw":0,"read":"whole","date_system":"1900"}

{"sheet":"ESAT_Guidelines","index":0,"n_rows":0,"n_cols":0,"rows_kept":0,"cut":false,"hidden":false,"merged":[]}

{"sheet":"ES Definition","index":1,"n_rows":40,"n_cols":7,"rows_kept":40,"cut":false,"hidden":false,"merged":[[29,1,39,1],[29,2,35,2],[29,3,30,3],[31,3,35,3],[36,2,39,2],[36,3,37,3],[38,3,39,3],[13,1,27,1],[13,2,17,2],[13,3,14,3],[15,3,17,3],[18,2,21,2],[18,3,19,3],[22,2,27,2],[26,3,27,3],[1,2,1,4],[3,1,11,1],[3,2,6,2],[3,3,6,3],[7,2,9,2],[7,3,8,3],[10,2,11,2],[10,3,11,3]]}
[]
[null,null,"Ecosystem Services Classification, based on CICES V4.3"]
[null,"Section","Division","Group","Class","Class type","Examples"]
[null,"Provisioning Services","Nutrition","Biomass","Wild plants, algae and their outputs","Plants, algae by amount, type","Wild berries, fruits, mushrooms, water cress, salicornia (saltwort or samphire); seaweed (e.g. Palmaria palmata = dulse, dillisk) for food"]
[null,null,null,null,"Wild animals and their outputs","Animals by amount, type","Game, freshwater fish (trout, eel etc.), marine fish (plaice, sea bass etc.) and shellfish (i.e. crustaceans, molluscs), as well as equinoderms or honey harvested from wild populations; Includes commercial and subsistence fishing and hunting for food"]
[null,null,null,null,"Animals from in situ aquaculture","Animals by amount, type","In-situ farming of freshwater (e.g. trout) and marine fish (e.g. salmon, tuna) also in floating cages; shellfish aquaculture (e.g. oysters or crustaceans) in e.g. poles "]
[null,null,null,null,"Plants and algae from in situ aquaculture","Plants, algae by amount, type","In situ seaweed farming"]
[null,null,"Materials","Biomass","Fibres and other materials from plants, algae and animals for direct use or processing","Material by amount, type, use, media (land, soil, freshwater, marine)","Fibres, wood, timber, flowers, skin, bones, sponges and other products, which are not further processed; material for production e.g. industrial products such as cellulose for paper, cotton for clothes, packaging material; chemicals extracted or synthesised from algae, plants and animals such as turpentine, rubber, flax, oil, wax, resin, soap (from bones), natural remedies and medicines (e.g. chondritin from sharks), dyes and colours, ambergris (from sperm whales used in perfumes); Includes consumptive ornamental uses."]
[null,null,null,null,"Materials from plants, algae and animals for agriculture","Material by amount, type, use, media (land, soil, freshwater, marine)","Plant, algae and animal material (e.g. grass) for fodder and fertilizer in agriculture and aquaculture;"]
[null,null,null,"Water","Surface Water for non-drinking purposes","By amount, type and use","Collected precipitation, abstracted surface water from rivers, lakes and other open water bodies for domestic use (washing, cleaning and other non-drinking use), irrigation, livestock consumption, industrial use (consumption and cooling) etc. "]
[null,null,"Energy","Biomass-based energy resources ","Plant based resources","By amount, type, source","Wood fuel, straw, energy plants, crops and algae for burning and energy production"]
[null,null,null,null,"Animal based resources","By amount, type, source","Dung, fat, oils, cadavers from land, water and marine animals for burning and energy production"]
[null,"Section","Division","Group","Class","Class type","Examples"]
[null,"Regulating and Maintenance Services","Mediation of waste, toxics and other nuisances","Mediation by Biota","Bio-remediation by micro-organisms, algae, plants, and animals","By amount, type, use, media (land, soil, freshwater, marine)","Bio-chemical detoxification/decomposition/mineralisation in land/soil, freshwater and marine systems including sediments; decomposition/detoxification of waste and toxic materials e.g. waste water cleaning, degrading oil spills by marine bacteria, (phyto)degradation, (rhizo)degradation etc."]
[null,null,null,null,"Filtration/sequestration/storage/accumulation by micro-organisms, algae, plants, and animals","By amount, type, use, media (land, soil, freshwater, marine)","Biological filtration/sequestration/storage/accumulation of pollutants in land/soil, freshwater and marine biota, adsorption and binding of heavy metals and organic compounds in biota"]
[null,null,null,"Mediation by ecosystems ","Filtration/sequestration/storage/accumulation by ecosystems ","By amount, type, use, media (land, soil, freshwater, marine)","Bio-physicochemical filtration/sequestration/storage/accumulation of pollutants in land/soil, freshwater and marine ecosystems, including sediments; adsorption and binding of heavy metals and organic compounds in ecosystems (combination of biotic and abiotic factors)"]
[null,null,null,null,"Dilution by atmosphere, freshwater and marine ecosystems","By amount, type, use, media (land, soil, freshwater, marine)","Bio-physico-chemical dilution of gases, fluids and solid waste, wastewater in atmosphere, lakes, rivers, sea and sediments"]
[null,null,null,null,"Mediation of smell/noise/visual impacts","By amount, type, use, media (land, soil, freshwater, marine)","Visual screening of transport corridors e.g. by trees; Green infrastructure to reduce noise and smells"]
[null,null,"Mediations of Flow","Mass Flows","Mass stabilisation and control of erosion rates","By reduction in risk, area protected","Erosion / landslide / gravity flow protection; vegetation cover protecting/stabilising terrestrial, coastal and marine ecosystems, coastal wetlands, dunes; vegetation on slopes also preventing avalanches (snow, rock), erosion protection of coasts and sediments by mangroves, sea grass, macroalgae, etc. "]
[null,null,null,null,"Buffering and attenuation of mass flows","By reduction in risk, area protected","Transport and storage of sediment by rivers, lakes, sea"]
[null,null,null,"Liquid Flows","Flood Protection","By reduction in risk, area protected","Flood protection by appropriate land coverage; coastal flood prevention by mangroves, sea grass, macroalgae, etc. (supplementary to coastal protection by wetlands, dunes) "]
[null,null,null,"Gaseous/air flows","Storm protection","By reduction in risk, area protected","Natural or planted vegetation that serves as shelter belts"]
[null,null,"Maintenance of physical, chemical, biological conditions","Lifecycle maintenance, habitat and gene pool protection","Maintaining nursery populations and habitats","By amount and source","Habitats for plant and animal nursery and reproduction e.g. seagrasses, microstructures of rivers etc."]
[null,null,null,"Pest and disease control","Pest and Disease control","By reduction in incidence, risk, area protected","Pest and disease control including invasive alien species / In cultivated and natural ecosystems and human populations"]
[null,null,null,"Soil formation and composition","Decomposition and fixing processes","By amount/concentration and source","Maintenance of bio-geochemical conditions of soils by decomposition/mineralisation of dead organic material, nitrification, denitrification etc.), N-fixing and other bio-geochemical processes;"]
[null,null,null,"Water conditions","Chemical condition of salt waters","By amount/concentration and source","Maintenance / buffering of chemical composition of seawater column and sediment to ensure favourable living conditions for biota e.g. by denitrification, re-mobilisation/re-mineralisation of phosphorous, etc."]
[null,null,null,"Atmospheric composition and climate regulation","Global climate regulation by reduction of greenhouse gas concentrations","By amount, concentration or climatic parameter","Global climate regulation by greenhouse gas/carbon sequestration by terrestrial ecosystems, water columns and sediments and their biota; transport of carbon into oceans (DOCs) etc."]
[null,null,null,null,"Micro and regional climate regulation","By amount, concentration or climatic parameter","Modifying temperature, humidity, wind fields; maintenance of rural and urban climate and air quality and regional precipitation/temperature patterns"]
[null,"Section","Division","Group","Class","Class type","Examples"]
[null,"Cultural Services","Physical and Intellectual interactions with biota, ecosystems, and land-/seascapes [environmental settings]","Physical and experiential interactions","Experiential use of plants, animals and land-/seascapes in different environmental settings","By visits/use data, plants, animals, ecosystem type","In-situ whale and bird watching, snorkelling, diving etc."]
[null,null,null,null,"Physical use of land-/seascapes in different environmental settings","By visits/use data, plants, animals, ecosystem type","Walking, hiking, climbing, boating, leisure fishing (angling) and leisure hunting"]
[null,null,null,"Intellectual and representative interactions","Scientific","By use/citation, plants, animals, ecosystem type","Subject matter for research both on location and via other media"]
[null,null,null,null,"Educational","By use/citation, plants, animals, ecosystem type","Subject matter of education both on location and via other media"]
[null,null,null,null,"Heritage, cultural","By use/citation, plants, animals, ecosystem type","Historic records, cultural heritage e.g. preserved in water bodies and soils"]
[null,null,null,null,"Entertainment","By use/citation, plants, animals, ecosystem type","Ex-situ viewing/experience of natural world through different media"]
[null,null,null,null,"Aesthetic","By use/citation, plants, animals, ecosystem type","Sense of place, artistic representations of nature"]
[null,null,"Spiritual, symbolic and other interactions with biota, ecosystems, and land-/seascapes ","Spiritual and/or emblematic","Symbolic","By use, plants, animals, ecosystem type","Emblematic plants and animals e.g. national symbols such as American eagle, British rose, Welsh daffodil"]
[null,null,null,null,"Sacred and/or religious","By use, plants, animals, ecosystem type","Spiritual, ritual identity e.g. 'dream paths' of native Australians, holy places; sacred plants and animals and their parts"]
[null,null,null,"Other cultural outputs","Existence","By plants, animals, feature/ecosystem type or component","Enjoyment provided by wild species, wilderness, ecosystems, land-/seascapes"]
[null,null,null,null,"Bequest","By plants, animals, feature/ecosystem type or component","Willingness to preserve plants, animals, ecosystems, land-/seascapes for the experience and use of future generations; moral/ethical perspective or belief"]

{"sheet":"Indicator Definition","index":2,"n_rows":61,"n_cols":6,"rows_kept":61,"cut":false,"hidden":false,"merged":[[4,3,5,3],[1,1,1,5],[2,1,10,1],[2,2,9,2],[2,3,3,3],[14,1,15,1],[14,2,15,2],[11,1,13,1],[11,2,12,2],[6,3,7,3],[8,3,9,3],[17,1,17,5],[37,2,39,2],[40,2,44,2],[37,3,39,3],[40,3,43,3],[27,1,44,1],[27,2,32,2],[33,2,34,2],[35,2,36,2],[24,2,26,2],[24,3,26,3],[18,1,21,1],[18,2,21,2],[18,3,20,3],[22,1,26,1],[22,2,23,2],[47,2,55,2],[48,3,52,3],[27,3,32,3],[33,3,34,3],[35,3,36,3],[46,1,46,5],[47,1,55,1],[57,5,58,5],[59,2,60,2],[56,1,60,1],[56,2,58,2],[57,3,58,3],[57,4,58,4]]}
[]
[null,"Ecosystem Service Section: Provisioning Services"]
[null,"Division: Nutrition","Group: Biomass","Class: Wild plants, algae and their outputs","Indicator: Harvest – Ton/yr./km2","Biomass of all plants and algae used for human consumption. It can be directly consumed, or indirectly by extraction of elements or parts of the organism that is used for consumption"]
[null,null,null,null,"Indicator: Nº of Species – Nº/km2","Number of all species used by humans for nutritional reasons"]
[null,null,null,"Class: Wild animals and their outputs","Indicator: Landings – Ton/yr./km2","All reported biomass connected with commercial fisheries. It includes the biomass of all species (fish or shellfish) of the fisheries of the assessment area. It can include fisheries from elsewhere outside of the study area but that are unloaded and sold in the fish markets within the assessment area"]
[null,null,null,null,"Indicator: Landing of key market species – Ton/yr./km2","Biomass of key market species only."]
[null,null,null,"Class: Animals from in situ aquaculture","Indicator: Harvest – Ton/yr./km2","Harvested biomass of animals from in aquaculture facilities in the study area. It includes the biomass of all species and facilities per year"]
[null,null,null,null,"Indicator: nº of Species – Nº/km2","Number of species used in aquaculture. "]
[null,null,null,"Class: Plants and algae from in situ aquaculture","Indicator: Harvest – Ton/yr./km2","Harvested biomass of all plants from aquaculture facilities in the study area, used for human consumption. It includes the biomass of all species and facilities per year. "]
[null,null,null,null,"Indicator: nº of Species – Nº/km2","Number of algal/plant species used in aquaculture."]
[null,null,"Group: Water","Class: Surface water for drinking purposes","Indicator: Use of water – m3/km2","Use of water taken form the ecosystem for drinking purposes."]
[null,"Division: Material","Group: Biomass","Class: Fibres and other materials from plants, algae and animals for direct use or processing","Indicator: Harvest – Ton/yr./km2","Harvest of fibres and other material from organisms, for direct use as a material or processing for cosmetics or pharmaceutical industries as an example."]
[null,null,null,"Class: Materials from plants, algae and animals for agriculture","Indicator: Harvest – Ton/yr./km2","Harvest of materials from organisms, which are used for agriculture (for example as fertilizers). "]
[null,null,"Group: Water","Class: Surface water for non-drinking purposes","Indicator: Use of water – m3/km2","Use of water for all purposes except for drinking, for example irrigation for agriculture."]
[null,"Division: Energy","Group: Biomass-based energy","Class: Plant base resources ","Indicator: Use – Ton/yr./km2","Use of plant-based material used to generate energy, for example by burning or for biofuel."]
[null,null,null,"Class: Animal base resources","Indicator: Use – Ton/yr./km2","Use of animal-based material used to generate energy, for example by burning carcases of dead animals (e.g. wales)."]
[]
[null,"Ecosystem Service Section: Regulating & Maintenance Services"]
[null,"Division: Mediation of waste, toxics and other nuisances","Group: Mediation by ecosystems","Class: Filtration / sequestration / storage / accumulation by ecosystems","Indicator: N-fixation – kg/yr./km2","Atmospheric Nitrogen fixation to the lagoon."]
[null,null,null,null,"Indicator: Burial of P – kg/yr./km2","The burial of Phosphorous in the sediment."]
[null,null,null,null,"Indicator: Denitrification – kg/yr./km2","The breakdown of nitrates by bacteria, resulting in the release of free nitrogen."]
[null,null,null,"Class: Dilution by atmosphere, freshwater and marine ecosystems ","Indicator: Average of beach closures per year – Nº/km2","Number of beach closers per year, due to microbial contamination (according to the Bathing Water Directive)."]
[null,"Division: Mediation of Flows","Group: Mass Flows","Class: Mass stabilisation and control of erosion rates","Indicator: Extent of selected emerged, submerged and intertidal habitats – km2/km2","Area covered by the most common habitats in the study area. These habitats should be representatives of the study area."]
[null,null,null,"Class: Buffering and attenuation of mass flows ","Indicator: Sediment accumulation rate – cm/yr.","Accumulation of sediment in centimetres per year."]
[null,null,"Group: Liquid Flows","Class: Flood Protection ","Indicator: Shoreline erosion rate – mm/yr.","Erosion of the shoreline in millimetres per year, due to removal of coastal sediments by wave action, currents, drainage or strong winds."]
[null,null,null,null,"Indicator: Significant wave height – m","The significant wave height is defined traditionally as the mean wave height of the highest third of the waves. It depends on wind speed, fetch (the distance of the upwind coastline), duration of the wind and depth of a water body."]
[null,null,null,null,"Indicator: Design-basis flood – m","The design flood water level is the fundamental high used for designing and planning of coastal defences. It is estimated based on the highest water level which has been reliably measured at a highest storm surge adding secular sea level rise (10-15 cm per century or 30 cm per 200 years)."]
[null,"Division: Maintenance of physical, chemical, biological conditions","Group: Lifecycle maintenance, habitat and gene pool protection","Class: Maintaining nursery populations and habitats","Indicator: Submerged and intertidal habitats diversity – Nº/km2","Number of submerged and intertidal habitats within the study area."]
[null,null,null,null,"Indicator: Occurrence of bottom oxygen concentration < 6 mg/L – days/yr.","Number of days per year when the bottom oxygen concentration is lower than 6 mg/L (which is considered the threshold for hypoxia)."]
[null,null,null,null,"Indicator: Secchi depth – m","Is a method used for estimating the transparency of water by submerging a white disc and recording the depth at which the disc is no longer visible."]
[null,null,null,null,"Indicator: Species distribution - km2/km2","Distribution area of species that use the water body to spawn or reproduce"]
[null,null,null,null,"Indicator: Nursery areas – km2/km2","Area used as nursery grounds for marine species. "]
[null,null,null,null,"Indicator: Percentage of nursery areas which are under protection – km2/km2","Area of nursery grounds, which is protected under any level of management or governance."]
[null,null,"Group: Pest and disease control","Class: Pest and disease control","Indicator: Harmful Algal Bloom outbreaks – Nº/km2","Number of HAB outbreaks that led to a closure of a beach or lagoon in the study area."]
[null,null,null,null,"Indicator: Presence of alien species– Nº/km2","Presence of non-indigenous species (introduced outside of their natural range or dispersal potential) in the study area."]
[null,null,"Group: Soil formation and decomposition","Class: Decomposition and fixing processes","Indicator: Nitrogen removal - %","Removal of Nitrogen through natural processes."]
[null,null,null,null,"Indicator: Water residence time – months","Time (in months) which a water mass spends in the study area. Related also to flushing time."]
[null,null,"Group: Water conditions","Class: Chemical conditions of salt waters","Indicator: Nutrient concentration – mg/L","Total Nitrogen and Phosphorous concentration "]
[null,null,null,null,"Indicator: Salinity – PSU","Salinity is the content of dissolved salt in the water."]
[null,null,null,null,"Indicator: Oxygen concentration – mg/L","Concentration of dissolved oxygen in the water (bottom and surface)."]
[null,null,"Group: Atmospheric composition and climate regulation","Class: Global climate regulation by reduction of greenhouse gas concentration","Indicator: Carbon stock – tonC/yr./km2","Carbon stored in the system (all components of the ecosystem), trough fixation and burial processes."]
[null,null,null,null,"Indicator: Carbon sequestration – tonC/yr./km2","Carbon sequestration is the process involved in carbon capture and the long-term storage of atmospheric carbon dioxide."]
[null,null,null,null,"Indicator: pH","The numeric scale of pH is used for representation of acidity of alkalinity of the water."]
[null,null,null,null,"Indicator: Net primary production – tonC/yr./km2","Primary production (PP) is an intrinsic part of the carbon cycle. It stands for a synthesis of organic matter from carbon dioxide via photo- or chemosynthesis by primary producers. Net PP takes into account losses of carbon with respiration"]
[null,null,null,"Class: Micro and regional climate regulation","Indicator: Evaporation rate – m3/yr./km2","Evaporation of water from a water surface. Depends on the water temperatures, air temperature, humidity and wind speed."]
[]
[null,"Ecosystem Service Section: Cultural Services"]
[null,"Division: Physical and Intellectual interactions with biota, ecosystems, seascapes","Group: Physical and experiential interactions","Class: Experiential use of plants, animals and seascapes","Indicator: nº of visitors taking part in biota related activities – Nº/yr./km2","Number of people taking part in in-situ whale and bird watching, snorkelling, diving, and all other activities related to biota."]
[null,null,null,"Class: Physical use of land/seascapes","Indicator: nº of tourists (within 1 km of coastal zone) – Nº/km2","Number of tourists (or overnight stays) accommodated in an area of 1 km of the coastal zone (counting from the water line to land)"]
[null,null,null,null,"Indicator: nº of ship berth in the marinas – Nº/km2","Number of ship berths in the marines within the study area."]
[null,null,null,null,"Indicator: nº of tourist boats – Nº*capacity/km2","Number of boats related to tourist tours, and the capacity of visitors per boat."]
[null,null,null,null,"Indicator: Scientific studies, Documentaries, educational publications – Nº/yr./km2","Number of educational and scientific material (in paper or online) related to the study area. "]
[null,null,null,null,"Indicator: Visits to scientific and artistic exhibits – Nº/yr.","Number of visitors attending scientific and artistic exhibitions (at least the most important ones occurring in the assessment period)."]
[null,null,null,"Class: Heritage, cultural","Indicator: nº of cultural and heritage sites – Nº/km2","Number of cultural important and heritage sites. These are defined according to regional, national and international importance."]
[null,null,null,"Class: Entertainment","Indicator: nº of movies and broadcasts about the area – Nº/km2","Number of movies, clips, or media broadcasts having as a main focus the water body or coastal waters."]
[null,null,null,"Class: Aesthetic","Indicator: nº of pictures about the area – Nº/yr./km2","Number of pictures, paintings and post-cards (paper or online) about the area."]
[null,"Division: Spiritual, symbolic and other interactions with biota, ecosystems, and land-/seascapes","Group: Spiritual and/or emblematic","Class: Symbolic","Indicator: nº of Red List and iconic species – Nº/km2","Number of Red List species within the area (international), and number of iconic species (local). "]
[null,null,null,"Class: Sacred and/or religious","Indicator: nº of religious events (within 1 km of coastal zone) – Nº/km2","Religious related events within 1 km of coastal zone. These include marriages, burials, Saint related events."]
[]
[null,null,"Group: Other cultural outputs","Class: Existence","Indicator: nº of offers for health treatments (within 1 km of coastal zone) – Nº*capacity/km2","Number of places, within 1 km of coastal zone, related to health treatments. These include SPA’s that use the environment (thermal waters, mud, etc.) "]
[null,null,null,"Class: Bequest","Indicator: Extent of marine protected areas – km2/km2","Extent of area within the study area, which is protected under local, regional, national and international management and policy."]

{"sheet":"Reliability Scores","index":3,"n_rows":7,"n_cols":7,"rows_kept":7,"cut":false,"hidden":false,"merged":[[1,3,1,6]]}
[]
[null,null,null,"Source of Data"]
[null,null,null,"Database / dataset","Reports / Literature","Other Sources","Expert valuation"]
[null,"Very High",1,"Official data which is maintained on a regular basis with sound scientific accuracy (Example: EU Databases, Government or University/Institutes databases)","Published and Peer-Reviewed Scientific Papers in High ranking or high impact factor Journals. Official EU or Government Reports","Official EU, Government or EU funded Project websites or other sources of information.","Person with sound scientific or institutional knowledge about the selected service or indicator with proven knowledge regarding the topic addressed, more than 10 years of experience"]
[null,"High",2,"Database maintained by Research Groups or individual researchers which can be access upon request","Public official reports by Government, Published Papers with a low impact factor and low-ranking Journals","Official websites and accredited material from universities or institutes","Person with sound scientific, common or institutional knowledge about the selected service or indicator with proven knowledge regarding the topic addressed with less than 10 years of experience"]
[null,"Moderate",3,"Public/private dataset that is not verified or validated","Public Reports, Scientific Papers not peer-reviewed","Unverified sources, public media and websites without a scientific background","Person which works in the related field and has knowledge about the service or indicator but for other system other than the assessment area (scientist or not)"]
[null,"Low",4,"Unknown author or provider of data","Unknown author or Journal found on internet","Unknown source or provider","Person from the general public that works in the area or is resident, which provides a \"guess\" about the service"]

{"sheet":"Description of Study Area","index":4,"n_rows":30,"n_cols":13,"rows_kept":30,"cut":false,"hidden":false,"merged":[[2,1,4,18],[31,5,64,18],[7,12,8,18],[9,5,24,11],[9,12,24,18],[7,5,8,11],[29,5,30,18]]}
[]
[]
[null,"Description of Study Area"]
[]
[]
[]
[]
[null,"Identification of the Author",null,null,null,"Please upload here the map of the assessment area ",null,null,null,null,null,null,"Please upload here the map of Water Body Type classification"]
[null,null,"Name:"]
[null,null,"E-mail:"]
[null,null,"Affiliation:"]
[]
[]
[null,"Identification of Assessment Area"]
[null,null,"Continent:"]
[null,null,"Country:"]
[null,null,"Region:"]
[null,null,"Municipality:"]
[null,null,"Local:"]
[]
[null,"Identification of the Assessment Unit "]
[null,null,"WFD Surface Water Type:"]
[]
[]
[null,null,"WFD Water Body Classification:"]
[]
[]
[]
[null,null,"Habitat List:"]
[null,null,null,null,null,"Please provide a brief description of the study area (physical, chemical, biological and socioeconomic components):"]

{"sheet":"ES Relevance","index":5,"n_rows":37,"n_cols":14,"rows_kept":37,"cut":false,"hidden":false,"merged":[[1,7,1,8],[2,7,3,7],[2,8,3,8],[14,7,14,8],[26,7,26,8],[3,10,3,13],[11,10,11,13],[26,5,26,6],[27,1,36,1],[27,2,32,2],[27,3,28,3],[29,3,32,3],[33,2,36,2],[33,3,34,3],[35,3,36,3],[14,5,14,6],[15,1,25,1],[15,2,16,2],[15,3,16,3],[17,2,19,2],[17,3,18,3],[20,2,25,2],[24,3,25,3],[9,2,11,2],[9,3,10,3],[12,2,13,2],[12,3,13,3],[2,5,3,5],[2,6,3,6],[4,1,13,1],[4,2,8,2],[4,3,7,3],[1,1,2,4],[1,5,1,6]]}
[]
[null,"Ecosystem Services Classification",null,null,null,"Initial Status",null,"Present Status"]
[null,null,null,null,null,"Relevant for the Study Area? (Y / N)","Assessed (Y / N)","Relevant for the Study Area? (Y / N)","Assessed (Y / N)"]
[null,"Section","Division","Group","Class",null,null,null,null,null,"Initial Status"]
[null,"Provisioning Services","Nutrition","Biomass","Wild plants, algae and their outputs",null,null,null,null,null,"Total Relevant",null," Total Assessed"]
[null,null,null,null,"Wild animals and their outputs",null,null,null,null,null,"Relevant",{"$f":"COUNTIF(F5:F37,\"Y\")","v":0},"Assessed",{"$f":"COUNTIF(G5:G37,\"Y\")","v":0}]
[null,null,null,null,"Animals from in situ aquaculture",null,null,null,null,null,"Not Relevant",{"$f":"COUNTIF(F5:F37,\"N\")","v":0},"Not Assessed",{"$f":"COUNTIF(G5:G37,\"N\")","v":0}]
[null,null,null,null,"Plants and algae from in situ aquaculture"]
[null,null,null,"Water","Surface water for drinking purposes"]
[null,null,"Materials","Biomass","Fibres and other materials from plants, algae and animals for direct use or processing"]
[null,null,null,null,"Materials from plants, algae and animals for agriculture"]
[null,null,null,"Water","Surface Water for non-drinking purposes",null,null,null,null,null,"Present Status"]
[null,null,"Energy","Biomass-based energy resources ","Plant based resources",null,null,null,null,null,"Total Relevant",null," Total Assessed"]
[null,null,null,null,"Animal based resources",null,null,null,null,null,"Relevant",{"$f":"COUNTIF(H5:H37,\"Y\")","v":0},"Assessed",{"$f":"COUNTIF(I5:I37,\"Y\")","v":0}]
[null,"Section","Division","Group","Class",null,null,null,null,null,"Not Relevant",{"$f":"COUNTIF(H5:H37,\"N\")","v":0},"Not Assessed",{"$f":"COUNTIF(I5:I37,\"N\")","v":0}]
[null,"Regulating & Maintenance Services","Mediation of waste, toxics and other nuisances","Mediation by ecosystems ","Filtration/sequestration/storage/accumulation by ecosystems "]
[null,null,null,null,"Dilution by atmosphere, freshwater and marine ecosystems"]
[null,null,"Mediations of Flow","Mass Flows","Mass stabilisation and control of erosion rates"]
[null,null,null,null,"Buffering and attenuation of mass flows"]
[null,null,null,"Liquid  Flows","Flood Protection"]
[null,null,"Maintenance of physical, chemical, biological conditions","Lifecycle maintenance, habitat and gene pool protection","Maintaining nursery populations and habitats"]
[null,null,null,"Pest and disease control","Pest and Disease control"]
[null,null,null,"Soil formation and composition","Decomposition and fixing processes"]
[null,null,null,"Water conditions","Chemical condition of salt waters"]
[null,null,null,"Atmospheric composition and climate regulation","Global climate regulation by reduction of greenhouse gas concentrations"]
[null,null,null,null,"Micro and regional climate regulation"]
[null,"Section","Division","Group","Class"]
[null,"Cultural Services","Physical and Intellectual interactions with biota, ecosystems, and land-/seascapes [environmental settings]","Physical and experiential interactions","Experiential use of plants, animals and land-/seascapes in different environmental settings"]
[null,null,null,null,"Physical use of land-/seascapes in different environmental settings"]
[null,null,null,"Intellectual and representative interactions","Scientific and Educational"]
[null,null,null,null,"Heritage, cultural"]
[null,null,null,null,"Entertainment"]
[null,null,null,null,"Aesthetic"]
[null,null,"Spiritual, symbolic and other interactions with biota, ecosystems, and land-/seascapes ","Spiritual and/or emblematic","Symbolic"]
[null,null,null,null,"Sacred and/or religious"]
[null,null,null,"Other cultural outputs","Existence"]
[null,null,null,null,"Bequest"]

{"sheet":"Initial Status","index":6,"n_rows":61,"n_cols":40,"rows_kept":61,"cut":false,"hidden":false,"merged":[[3,30,3,31],[3,32,3,33],[0,0,2,13],[3,16,3,17],[3,18,3,19],[3,20,3,21],[3,22,3,23],[2,32,2,33],[2,24,2,25],[3,28,3,29],[3,38,3,39],[47,30,47,31],[47,32,47,33],[1,15,1,34],[19,28,19,29],[19,30,19,31],[19,32,19,33],[47,16,47,17],[47,18,47,19],[47,20,47,21],[47,22,47,23],[47,24,47,25],[47,26,47,27],[47,28,47,29],[2,28,2,29],[2,30,2,31],[19,26,19,27],[2,22,2,23],[2,16,2,17],[2,18,2,19],[2,20,2,21],[2,26,2,27],[3,24,3,25],[3,26,3,27],[19,16,19,17],[19,18,19,19],[19,20,19,21],[19,22,19,23],[19,24,19,25],[4,12,4,13],[3,8,3,13],[19,12,19,13],[47,12,47,13],[3,0,3,3],[20,0,46,0],[26,3,28,3],[26,2,28,2],[24,1,28,1],[29,2,34,2],[29,3,34,3],[35,2,36,2],[5,0,18,0],[20,1,23,1],[20,2,23,2],[3,5,3,7],[29,1,46,1],[35,3,36,3],[37,2,38,2],[37,3,38,3],[39,2,41,2],[39,3,41,3],[42,2,46,2],[42,3,45,3],[20,3,22,3],[24,2,25,2],[7,3,8,3],[9,3,10,3],[11,3,12,3],[5,3,6,3],[5,1,13,1],[48,0,60,0],[48,1,56,1],[48,2,51,2],[49,3,51,3],[52,2,56,2],[52,3,53,3],[57,1,60,1],[57,2,58,2],[59,2,60,2],[14,1,16,1],[14,2,15,2],[17,1,18,1],[17,2,18,2],[5,2,11,2]]}
["Data Documentation for Initial Status"]
[null,null,null,null,null,null,null,null,null,null,null,null,null,null,null,"Classes of ES"]
[null,null,null,null,null,null,null,null,null,null,null,null,null,null,null,"< 1/4.1","1/2.5 to 1/4.1",null,"1/1.7 to 1/2.5",null,"1/1.3 to 1/1.7",null,"1/1.1 to1/1.3",null,"Initial Status",null,"1.1 to 1.3",null,"1.3 to 1.7",null,"1.7 to 2.5",null,"2.5 to 4.1",null,"> 4.1"]
["Ecosystem Services Classification",null,null,null,null,"Indicators Proposed ",null,null,"Data Sources",null,null,null,null,null,null,-5,-4,null,-3,null,-2,null,-1,null,0,null,1,null,2,null,3,null,4,null,5,null,null,"Type of data","Quality/Reliability"]
["Section","Division","Group","Class",null," Indicator","Units","Value","Type of Data","Source","Author","Year "," Reliability",null,null,"< 1/4.1","1/4.1","1/2.5","1/2.5","1/1.7","1/1.7","1/1.3","1/1.3","1/1.1","1/1.1",1.1000000000000001,1.1000000000000001,1.3,1.3,1.7,1.7,2.5,2.5,4.0999999999999996,4.0999999999999996]
["Provisioning Services","Nutrition","Biomass","Wild plants, algae and their outputs",null,"Harvest","Ton/yr./km2",null,null,null,null,null,null,{"$f":"IF(M6=1,$AN$6,IF(M6=2,$AN$7,IF(M6=3,$AN$8,IF(M6=4,$AN$9))))","v":false},null,{"$f":"H6*1/4.1","v":0},{"$f":"H6*1/4.1","v":0},{"$f":"H6*1/2.5","v":0},{"$f":"H6*1/2.5","v":0},{"$f":"H6*1/1.7","v":0},{"$f":"H6*1/1.7","v":0},{"$f":"H6*1/1.3","v":0},{"$f":"H6*1/1.3","v":0},{"$f":"H6*1/1.1","v":0},{"$f":"H6*1/1.1","v":0},{"$f":"H6*1.1","v":0},{"$f":"H6*1.1","v":0},{"$f":"H6*1.3","v":0},{"$f":"H6*1.3","v":0},{"$f":"H6*1.7","v":0},{"$f":"H6*1.7","v":0},{"$f":"H6*2.5","v":0},{"$f":"H6*2.5","v":0},{"$f":"H6*4.1","v":0},{"$f":"H6*4.1","v":0},null,null,"Database/ dataset",1,"Very High"]
[null,null,null,null,null,"Nº of Species ","nº/km2",null,null,null,null,null,null,{"$f":"IF(M7=1,$AN$6,IF(M7=2,$AN$7,IF(M7=3,$AN$8,IF(M7=4,$AN$9))))","v":false},null,{"$f":"H7*1/4.1","v":0},{"$f":"H7*1/4.1","v":0},{"$f":"H7*1/2.5","v":0},{"$f":"H7*1/2.5","v":0},{"$f":"H7*1/1.7","v":0},{"$f":"H7*1/1.7","v":0},{"$f":"H7*1/1.3","v":0},{"$f":"H7*1/1.3","v":0},{"$f":"H7*1/1.1","v":0},{"$f":"H7*1/1.1","v":0},{"$f":"H7*1.1","v":0},{"$f":"H7*1.1","v":0},{"$f":"H7*1.3","v":0},{"$f":"H7*1.3","v":0},{"$f":"H7*1.7","v":0},{"$f":"H7*1.7","v":0},{"$f":"H7*2.5","v":0},{"$f":"H7*2.5","v":0},{"$f":"H7*4.1","v":0},{"$f":"H7*4.1","v":0},null,null,"Reports/ Literature",2,"High"]
[null,null,null,"Wild animals and their outputs",null,"Landings","Ton/yr./km2",null,null,null,null,null,null,false,null,0,0,0,0,0,0,0,0,0,0,0,0,0,0,0,0,0,0,0,0,null,null,"Other Sources",3,"Moderate"]
[null,null,null,null,null,"Landing of key market species","Ton/yr./km2",null,null,null,null,null,null,false,null,0,0,0,0,0,0,0,0,0,0,0,0,0,0,0,0,0,0,0,0,null,null,"Local Expert",4,"Low"]
[null,null,null,"Animals from in situ aquaculture",null,"Harvest","Ton/a",null,null,null,null,null,null,false,null,0,0,0,0,0,0,0,0,0,0,0,0,0,0,0,0,0,0,0,0]
[null,null,null,null,null,"Nº of Species ","nº/km2",null,null,null,null,null,null,false,null,0,0,0,0,0,0,0,0,0,0,0,0,0,0,0,0,0,0,0,0]
[null,null,null,"Plants and algae from in situ aquaculture",null,"Harvest","Ton/a",null,null,null,null,null,null,false,null,0,0,0,0,0,0,0,0,0,0,0,0,0,0,0,0,0,0,0,0]
[null,null,null,null,null,"Nº of Species ","nº/km2",null,null,null,null,null,null,false,null,0,0,0,0,0,0,0,0,0,0,0,0,0,0,0,0,0,0,0,0]
[null,null,"Water","Surface water for drinking purposes",null,"Use of Water","m3/km2",null,null,null,null,null,null,false,null,0,0,0,0,0,0,0,0,0,0,0,0,0,0,0,0,0,0,0,0]
[null,"Materials","Biomass","Fibres and other materials from plants, algae and animals for direct use or processing",null,"Harvest","Ton/yr./km2",null,null,null,null,null,null,false,null,0,0,0,0,0,0,0,0,0,0,0,0,0,0,0,0,0,0,0,0]
[null,null,null,"Materials from plants, algae and animals for agriculture",null,"Harvest","Ton/yr./km2",null,null,null,null,null,null,false,null,0,0,0,0,0,0,0,0,0,0,0,0,0,0,0,0,0,0,0,0]
[null,null,"Water","Surface Water for non-drinking purposes",null,"Use of Water","m3/km2",null,null,null,null,null,null,false,null,0,0,0,0,0,0,0,0,0,0,0,0,0,0,0,0,0,0,0,0]
[null,"Energy","Biomass-based energy resources ","Plant based resources",null,"Use ","Ton/yr./km2",null,null,null,null,null,null,false,null,0,0,0,0,0,0,0,0,0,0,0,0,0,0,0,0,0,0,0,0]
[null,null,null,"Animal based resources",null,"Use","Ton/yr./km2",null,null,null,null,null,null,false,null,0,0,0,0,0,0,0,0,0,0,0,0,0,0,0,0,0,0,0,0]
["Section","Division","Group","Class",null," Indicator","Units","Value","Type of Data","Source","Author","Year "," Reliability",null,null,-5,-4,null,-3,null,-2,null,-1,null,0,null,1,null,2,null,3,null,4,null,5]
["Regulating and Maintenance Services","Mediation of waste, toxics and other nuisances","Mediation by ecosystems ","Filtration/sequestration/storage/accumulation by ecosystems ",null,"N-fixation","kg/yr./km2",null,null,null,null,null,null,false,null,{"$f":"H21*1/4.1","v":0},{"$f":"H21*1/4.1","v":0},{"$f":"H21*1/2.5","v":0},{"$f":"H21*1/2.5","v":0},{"$f":"H21*1/1.7","v":0},{"$f":"H21*1/1.7","v":0},{"$f":"H21*1/1.3","v":0},{"$f":"H21*1/1.3","v":0},{"$f":"H21*1/1.1","v":0},{"$f":"H21*1/1.1","v":0},{"$f":"H21*1.1","v":0},{"$f":"H21*1.1","v":0},{"$f":"H21*1.3","v":0},{"$f":"H21*1.3","v":0},{"$f":"H21*1.7","v":0},{"$f":"H21*1.7","v":0},{"$f":"H21*2.5","v":0},{"$f":"H21*2.5","v":0},{"$f":"H21*4.1","v":0},{"$f":"H21*4.1","v":0}]
[null,null,null,null,null,"Burial","kg/yr./km2",null,null,null,null,null,null,false,null,{"$f":"H22*1/4.1","v":0},{"$f":"H22*1/4.1","v":0},{"$f":"H22*1/2.5","v":0},{"$f":"H22*1/2.5","v":0},{"$f":"H22*1/1.7","v":0},{"$f":"H22*1/1.7","v":0},{"$f":"H22*1/1.3","v":0},{"$f":"H22*1/1.3","v":0},{"$f":"H22*1/1.1","v":0},{"$f":"H22*1/1.1","v":0},{"$f":"H22*1.1","v":0},{"$f":"H22*1.1","v":0},{"$f":"H22*1.3","v":0},{"$f":"H22*1.3","v":0},{"$f":"H22*1.7","v":0},{"$f":"H22*1.7","v":0},{"$f":"H22*2.5","v":0},{"$f":"H22*2.5","v":0},{"$f":"H22*4.1","v":0},{"$f":"H22*4.1","v":0}]
[null,null,null,null,null,"Denitrification","kg/yr./km2",null,null,null,null,null,null,false,null,0,0,0,0,0,0,0,0,0,0,0,0,0,0,0,0,0,0,0,0]
[null,null,null,"Dilution by atmosphere, freshwater and marine ecosystems",null,"Average of beach closures per year","Nº/km2",null,null,null,null,null,null,false,null,0,0,0,0,0,0,0,0,0,0,0,0,0,0,0,0,0,0,0,0]
[null,"Mediations of Flow","Mass Flows","Mass stabilisation and control of erosion rates",null,"Extent of selected emerged, submerged and intertidal habitats","km2/km2",null,null,null,null,null,null,false,null,0,0,0,0,0,0,0,0,0,0,0,0,0,0,0,0,0,0,0,0]
[null,null,null,"Buffering and attenuation of mass flows",null,"Sediment accumulation rate","cm/yr.",null,null,null,null,null,null,false,null,0,0,0,0,0,0,0,0,0,0,0,0,0,0,0,0,0,0,0,0]
[null,null,"Liquid  Flows","Flood Protection",null,"Shoreline erosion rate"," mm/yr./km2",null,null,null,null,null,null,false,null,0,0,0,0,0,0,0,0,0,0,0,0,0,0,0,0,0,0,0,0]
[null,null,null,null,null,"Significant wave high","m",null,null,null,null,null,null,false,null,0,0,0,0,0,0,0,0,0,0,0,0,0,0,0,0,0,0,0,0]
[null,null,null,null,null,"Design-basis Flood ","m",null,null,null,null,null,null,false,null,0,0,0,0,0,0,0,0,0,0,0,0,0,0,0,0,0,0,0,0]
[null,"Maintenance of physical, chemical, biological conditions","Lifecycle maintenance, habitat and gene pool protection","Maintaining nursery populations and habitats",null,"Submerged and intertidal habitats diversity","Nº/km2",null,null,null,null,null,null,false,null,0,0,0,0,0,0,0,0,0,0,0,0,0,0,0,0,0,0,0,0]
[null,null,null,null,null,"Occurrence of Oxygen concentration < 6 mg/L","days/yr.",null,null,null,null,null,null,false,null,0,0,0,0,0,0,0,0,0,0,0,0,0,0,0,0,0,0,0,0]
[null,null,null,null,null,"Secchi depth","m",null,null,null,null,null,null,false,null,0,0,0,0,0,0,0,0,0,0,0,0,0,0,0,0,0,0,0,0]
[null,null,null,null,null,"Species distribution","Km2/km2",null,null,null,null,null,null,false,null,0,0,0,0,0,0,0,0,0,0,0,0,0,0,0,0,0,0,0,0]
[null,null,null,null,null,"Nursery areas ","Km2/km2",null,null,null,null,null,null,false,null,0,0,0,0,0,0,0,0,0,0,0,0,0,0,0,0,0,0,0,0]
[null,null,null,null,null,"% of nursery areas which are protected","Km2/km2",null,null,null,null,null,null,false,null,0,0,0,0,0,0,0,0,0,0,0,0,0,0,0,0,0,0,0,0]
[null,null,"Pest and disease control","Pest and Disease control",null,"Harmful Algal Bloom Outbreaks","Nº/km2",null,null,null,null,null,null,false,null,0,0,0,0,0,0,0,0,0,0,0,0,0,0,0,0,0,0,0,0]
[null,null,null,null,null,"Presence of alien species","nº/km2",null,null,null,null,null,null,false,null,0,0,0,0,0,0,0,0,0,0,0,0,0,0,0,0,0,0,0,0]
[null,null,"Soil formation and composition","Decomposition and fixing processes",null,"Nitrogen removal","% ",null,null,null,null,null,null,false,null,0,0,0,0,0,0,0,0,0,0,0,0,0,0,0,0,0,0,0,0]
[null,null,null,null,null,"Water residence time","Months",null,null,null,null,null,null,false,null,0,0,0,0,0,0,0,0,0,0,0,0,0,0,0,0,0,0,0,0]
[null,null,"Water conditions","Chemical condition of salt waters",null,"Nutrients concentration","mg/L",null,null,null,null,null,null,false,null,0,0,0,0,0,0,0,0,0,0,0,0,0,0,0,0,0,0,0,0]
[null,null,null,null,null,"Salinity","PSU",null,null,null,null,null,null,false,null,0,0,0,0,0,0,0,0,0,0,0,0,0,0,0,0,0,0,0,0]
[null,null,null,null,null,"Oxygen Concentration","mg/L",null,null,null,null,null,null,false,null,0,0,0,0,0,0,0,0,0,0,0,0,0,0,0,0,0,0,0,0]
[null,null,"Atmospheric composition and climate regulation","Global climate regulation by reduction of greenhouse gas concentrations",null,"C stock","tonC/km2",null,null,null,null,null,null,false,null,0,0,0,0,0,0,0,0,0,0,0,0,0,0,0,0,0,0,0,0]
[null,null,null,null,null,"C sequestration","tonC/yr./km2",null,null,null,null,null,null,false,null,0,0,0,0,0,0,0,0,0,0,0,0,0,0,0,0,0,0,0,0]
[null,null,null,null,null,"pH",null,null,null,null,null,null,null,false,null,0,0,0,0,0,0,0,0,0,0,0,0,0,0,0,0,0,0,0,0]
[null,null,null,null,null,"PP","tonC/yr./km2",null,null,null,null,null,null,false,null,0,0,0,0,0,0,0,0,0,0,0,0,0,0,0,0,0,0,0,0]
[null,null,null,"Micro and regional climate regulation",null,"Evaporation rate","per km2",null,null,null,null,null,null,false,null,0,0,0,0,0,0,0,0,0,0,0,0,0,0,0,0,0,0,0,0]
["Section","Division","Group","Class",null," Indicator","Units","Value","Type of Data","Source","Author","Year ","Reliability",null,null,-5,-4,null,-3,null,-2,null,-1,null,0,null,1,null,2,null,3,null,4,null,5]
["Cultural Services","Physical and Intellectual interactions with biota, ecosystems, and land-/seascapes [environmental settings]","Physical and experiential interactions","Experiential use of plants, animals and land-/seascapes in different environmental settings",null,"nº of visitors taking part in activities related to biota","nº/yr/km2",null,null,null,null,null,null,false,null,{"$f":"H49*1/4.1","v":0},{"$f":"H49*1/4.1","v":0},{"$f":"H49*1/2.5","v":0},{"$f":"H49*1/2.5","v":0},{"$f":"H49*1/1.7","v":0},{"$f":"H49*1/1.7","v":0},{"$f":"H49*1/1.3","v":0},{"$f":"H49*1/1.3","v":0},{"$f":"H49*1/1.1","v":0},{"$f":"H49*1/1.1","v":0},{"$f":"H49*1.1","v":0},{"$f":"H49*1.1","v":0},{"$f":"H49*1.3","v":0},{"$f":"H49*1.3","v":0},{"$f":"H49*1.7","v":0},{"$f":"H49*1.7","v":0},{"$f":"H49*2.5","v":0},{"$f":"H49*2.5","v":0},{"$f":"H49*4.1","v":0},{"$f":"H49*4.1","v":0}]
[null,null,null,"Physical use of land-/seascapes in different environmental settings",null,"Nº of tourists (within 1 km of coastal zone) ","nº/km2",null,null,null,null,null,null,false,null,{"$f":"H50*1/4.1","v":0},{"$f":"H50*1/4.1","v":0},{"$f":"H50*1/2.5","v":0},{"$f":"H50*1/2.5","v":0},{"$f":"H50*1/1.7","v":0},{"$f":"H50*1/1.7","v":0},{"$f":"H50*1/1.3","v":0},{"$f":"H50*1/1.3","v":0},{"$f":"H50*1/1.1","v":0},{"$f":"H50*1/1.1","v":0},{"$f":"H50*1.1","v":0},{"$f":"H50*1.1","v":0},{"$f":"H50*1.3","v":0},{"$f":"H50*1.3","v":0},{"$f":"H50*1.7","v":0},{"$f":"H50*1.7","v":0},{"$f":"H50*2.5","v":0},{"$f":"H50*2.5","v":0},{"$f":"H50*4.1","v":0},{"$f":"H50*4.1","v":0}]
[null,null,null,null,null,"Nº of ship berths in the marinas","nº/km2",null,null,null,null,null,null,false,null,0,0,0,0,0,0,0,0,0,0,0,0,0,0,0,0,0,0,0,0]
[null,null,null,null,null,"Nº of Tourist Boat","nº*capacity/km2",null,null,null,null,null,null,false,null,0,0,0,0,0,0,0,0,0,0,0,0,0,0,0,0,0,0,0,0]
[null,null,"Intellectual and representative interactions","Scientific and Educational",null,"Scientific studies, Documentaries, educational publications","Nº/yr./km2",null,null,null,null,null,null,false,null,0,0,0,0,0,0,0,0,0,0,0,0,0,0,0,0,0,0,0,0]
[null,null,null,null,null,"Visits to scientific and artistic exhibits","Nº/yr",null,null,null,null,null,null,false,null,0,0,0,0,0,0,0,0,0,0,0,0,0,0,0,0,0,0,0,0]
[null,null,null,"Heritage, cultural",null,"nº of cultural and heritage sites","nº/km2",null,null,null,null,null,null,false,null,0,0,0,0,0,0,0,0,0,0,0,0,0,0,0,0,0,0,0,0]
[null,null,null,"Entertainment",null,"Nº of movies and broadcasts in the area","nº/km2",null,null,null,null,null,null,false,null,0,0,0,0,0,0,0,0,0,0,0,0,0,0,0,0,0,0,0,0]
[null,null,null,"Aesthetic",null,"Nº of pictures","Nº/yr./km2",null,null,null,null,null,null,false,null,0,0,0,0,0,0,0,0,0,0,0,0,0,0,0,0,0,0,0,0]
[null,"Spiritual, symbolic and other interactions with biota, ecosystems, and land-/seascapes ","Spiritual and/or emblematic","Symbolic",null,"Nº of Red List and iconic species","nº/km2",null,null,null,null,null,null,false,null,0,0,0,0,0,0,0,0,0,0,0,0,0,0,0,0,0,0,0,0]
[null,null,null,"Sacred and/or religious",null,"Nº of Religious events (within 1 km of coastal zone)","nº/km2",null,null,null,null,null,null,false,null,0,0,0,0,0,0,0,0,0,0,0,0,0,0,0,0,0,0,0,0]
[null,null,"Other cultural outputs","Existence",null,"Nº of offers for health treatments (within 1 km of coastal zone)","nº*capacity/km2",null,null,null,null,null,null,false,null,0,0,0,0,0,0,0,0,0,0,0,0,0,0,0,0,0,0,0,0]
[null,null,null,"Bequest",null,"Extent of marine protected areas","km2 / km2",null,null,null,null,null,null,false,null,0,0,0,0,0,0,0,0,0,0,0,0,0,0,0,0,0,0,0,0]

{"sheet":"Present Status","index":7,"n_rows":61,"n_cols":49,"rows_kept":61,"cut":false,"hidden":false,"merged":[[2,31,2,32],[2,33,2,34],[0,0,2,14],[47,13,47,14],[47,29,47,30],[47,31,47,32],[47,33,47,34],[47,17,47,18],[47,19,47,20],[47,21,47,22],[47,23,47,24],[47,25,47,26],[47,27,47,28],[37,3,38,3],[39,2,41,2],[39,3,41,3],[48,0,60,0],[48,1,56,1],[48,2,51,2],[49,3,51,3],[52,2,56,2],[52,3,53,3],[57,1,60,1],[57,2,58,2],[59,2,60,2],[19,25,19,26],[19,27,19,28],[19,29,19,30],[24,2,25,2],[26,2,28,2],[26,3,28,3],[19,31,19,32],[19,33,19,34],[19,21,19,22],[20,0,46,0],[20,1,23,1],[20,2,23,2],[20,3,22,3],[24,1,28,1],[29,1,46,1],[29,2,34,2],[29,3,34,3],[35,2,36,2],[35,3,36,3],[37,2,38,2],[42,2,46,2],[42,3,45,3],[3,39,3,40],[19,23,19,24],[5,0,18,0],[5,1,13,1],[5,2,11,2],[5,3,6,3],[7,3,8,3],[9,3,10,3],[11,3,12,3],[14,1,16,1],[14,2,15,2],[17,1,18,1],[17,2,18,2],[19,13,19,14],[19,17,19,18],[19,19,19,20],[3,0,3,3],[3,9,3,14],[3,5,3,8],[1,16,1,35],[3,17,3,18],[3,19,3,20],[3,21,3,22],[3,23,3,24],[3,25,3,26],[3,27,3,28],[3,29,3,30],[3,31,3,32],[3,33,3,34],[2,17,2,18],[2,19,2,20],[2,29,2,30],[2,21,2,22],[2,23,2,24],[2,25,2,26],[2,27,2,28],[4,13,4,14]]}
["Data Documentation for Present Status"]
[null,null,null,null,null,null,null,null,null,null,null,null,null,null,null,null,"Classes of ES"]
[null,null,null,null,null,null,null,null,null,null,null,null,null,null,null,null,"< 1/4.1","1/2.5 to 1/4.1",null,"1/1.7 to 1/2.5",null,"1/1.3 to 1/1.7",null,"1/1.1 to1/1.3",null,"Initial Status",null,"1.1 to 1.3",null,"1.3 to 1.7",null,"1.7 to 2.5",null,"2.5 to 4.1",null,"> 4.1",null,null,null,null,null,"Classes"]
["Ecosystem Services Classification",null,null,null,null,"Indicators Proposed ",null,null,null,"Data Sources",null,null,null,null,null,null,-5,-4,null,-3,null,-2,null,-1,null,0,null,1,null,2,null,3,null,4,null,5,null,null,"Type of data","Quality/Reliability"]
["Section","Division","Group","Class",null," Indicator","Units","Value","Class of change","Type of Data","Source","Author","Year ","Reliability",null,null,"< 1/4.1","1/4.1","1/2.5","1/2.5","1/1.7","1/1.7","1/1.3","1/1.3","1/1.1","1/1.1",1.1000000000000001,1.1000000000000001,1.3,1.3,1.7,1.7,2.5,2.5,4.0999999999999996,4.0999999999999996,null,null,null,null,null,"no data"]
["Provisioning Services","Nutrition","Biomass","Wild plants, algae and their outputs",null,"Harvest","Ton/yr./km2",null,null,null,null,null,null,null,{"$f":"IF(N6=1,$AO$6,IF(N6=2,$AO$7,IF(N6=3,$AO$8,IF(N6=4,$AO$9))))","v":false},null,{"$f":"'Initial Status'!P6","v":0},{"$f":"'Initial Status'!Q6","v":0},{"$f":"'Initial Status'!R6","v":0},{"$f":"'Initial Status'!S6","v":0},{"$f":"'Initial Status'!T6","v":0},{"$f":"'Initial Status'!U6","v":0},{"$f":"'Initial Status'!V6","v":0},{"$f":"'Initial Status'!W6","v":0},{"$f":"'Initial Status'!X6","v":0},{"$f":"'Initial Status'!Y6","v":0},{"$f":"'Initial Status'!Z6","v":0},{"$f":"'Initial Status'!AA6","v":0},{"$f":"'Initial Status'!AB6","v":0},{"$f":"'Initial Status'!AC6","v":0},{"$f":"'Initial Status'!AD6","v":0},{"$f":"'Initial Status'!AE6","v":0},{"$f":"'Initial Status'!AF6","v":0},{"$f":"'Initial Status'!AG6","v":0},{"$f":"'Initial Status'!AH6","v":0},{"$f":"'Initial Status'!AI6","v":0},null,null,"Database/ dataset",1,"Very High","-5",252,41,36]
[null,null,null,null,null,"Nº of Species ","nº/km2",null,null,null,null,null,null,null,{"$f":"IF(N7=1,$AO$6,IF(N7=2,$AO$7,IF(N7=3,$AO$8,IF(N7=4,$AO$9))))","v":false},null,{"$f":"'Initial Status'!P7","v":0},{"$f":"'Initial Status'!Q7","v":0},{"$f":"'Initial Status'!R7","v":0},{"$f":"'Initial Status'!S7","v":0},{"$f":"'Initial Status'!T7","v":0},{"$f":"'Initial Status'!U7","v":0},{"$f":"'Initial Status'!V7","v":0},{"$f":"'Initial Status'!W7","v":0},{"$f":"'Initial Status'!X7","v":0},{"$f":"'Initial Status'!Y7","v":0},{"$f":"'Initial Status'!Z7","v":0},{"$f":"'Initial Status'!AA7","v":0},{"$f":"'Initial Status'!AB7","v":0},{"$f":"'Initial Status'!AC7","v":0},{"$f":"'Initial Status'!AD7","v":0},{"$f":"'Initial Status'!AE7","v":0},{"$f":"'Initial Status'!AF7","v":0},{"$f":"'Initial Status'!AG7","v":0},{"$f":"'Initial Status'!AH7","v":0},{"$f":"'Initial Status'!AI7","v":0},null,null,"Reports/ Literature",2,"High","-4",253,81,77]
[null,null,null,"Wild animals and their outputs",null,"Landings","Ton/yr./km2",null,null,null,null,null,null,null,false,null,{"$f":"'Initial Status'!P8","v":0},{"$f":"'Initial Status'!Q8","v":0},{"$f":"'Initial Status'!R8","v":0},{"$f":"'Initial Status'!S8","v":0},{"$f":"'Initial Status'!T8","v":0},{"$f":"'Initial Status'!U8","v":0},{"$f":"'Initial Status'!V8","v":0},{"$f":"'Initial Status'!W8","v":0},{"$f":"'Initial Status'!X8","v":0},{"$f":"'Initial Status'!Y8","v":0},{"$f":"'Initial Status'!Z8","v":0},{"$f":"'Initial Status'!AA8","v":0},{"$f":"'Initial Status'!AB8","v":0},{"$f":"'Initial Status'!AC8","v":0},{"$f":"'Initial Status'!AD8","v":0},{"$f":"'Initial Status'!AE8","v":0},{"$f":"'Initial Status'!AF8","v":0},{"$f":"'Initial Status'!AG8","v":0},{"$f":"'Initial Status'!AH8","v":0},{"$f":"'Initial Status'!AI8","v":0},null,null,"Other Sources",3,"Moderate","-3",241,135,135]
[null,null,null,null,null,"Landing of key market species","Ton/yr./km2",null,null,null,null,null,null,null,false,null,{"$f":"'Initial Status'!P9","v":0},{"$f":"'Initial Status'!Q9","v":0},{"$f":"'Initial Status'!R9","v":0},{"$f":"'Initial Status'!S9","v":0},{"$f":"'Initial Status'!T9","v":0},{"$f":"'Initial Status'!U9","v":0},{"$f":"'Initial Status'!V9","v":0},{"$f":"'Initial Status'!W9","v":0},{"$f":"'Initial Status'!X9","v":0},{"$f":"'Initial Status'!Y9","v":0},{"$f":"'Initial Status'!Z9","v":0},{"$f":"'Initial Status'!AA9","v":0},{"$f":"'Initial Status'!AB9","v":0},{"$f":"'Initial Status'!AC9","v":0},{"$f":"'Initial Status'!AD9","v":0},{"$f":"'Initial Status'!AE9","v":0},{"$f":"'Initial Status'!AF9","v":0},{"$f":"'Initial Status'!AG9","v":0},{"$f":"'Initial Status'!AH9","v":0},{"$f":"'Initial Status'!AI9","v":0},null,null,"Local Expert",4,"Low","-2",220,154,152]
[null,null,null,"Animals from in situ aquaculture",null,"Harvest","Ton/a",null,null,null,null,null,null,null,false,null,{"$f":"'Initial Status'!P10","v":0},{"$f":"'Initial Status'!Q10","v":0},{"$f":"'Initial Status'!R10","v":0},{"$f":"'Initial Status'!S10","v":0},{"$f":"'Initial Status'!T10","v":0},{"$f":"'Initial Status'!U10","v":0},{"$f":"'Initial Status'!V10","v":0},{"$f":"'Initial Status'!W10","v":0},{"$f":"'Initial Status'!X10","v":0},{"$f":"'Initial Status'!Y10","v":0},{"$f":"'Initial Status'!Z10","v":0},{"$f":"'Initial Status'!AA10","v":0},{"$f":"'Initial Status'!AB10","v":0},{"$f":"'Initial Status'!AC10","v":0},{"$f":"'Initial Status'!AD10","v":0},{"$f":"'Initial Status'!AE10","v":0},{"$f":"'Initial Status'!AF10","v":0},{"$f":"'Initial Status'!AG10","v":0},{"$f":"'Initial Status'!AH10","v":0},{"$f":"'Initial Status'!AI10","v":0},null,null,null,null,null,"-1",233,195,193]
[null,null,null,null,null,"Nº of Species ","nº/km2",null,null,null,null,null,null,null,false,null,{"$f":"'Initial Status'!P11","v":0},{"$f":"'Initial Status'!Q11","v":0},{"$f":"'Initial Status'!R11","v":0},{"$f":"'Initial Status'!S11","v":0},{"$f":"'Initial Status'!T11","v":0},{"$f":"'Initial Status'!U11","v":0},{"$f":"'Initial Status'!V11","v":0},{"$f":"'Initial Status'!W11","v":0},{"$f":"'Initial Status'!X11","v":0},{"$f":"'Initial Status'!Y11","v":0},{"$f":"'Initial Status'!Z11","v":0},{"$f":"'Initial Status'!AA11","v":0},{"$f":"'Initial Status'!AB11","v":0},{"$f":"'Initial Status'!AC11","v":0},{"$f":"'Initial Status'!AD11","v":0},{"$f":"'Initial Status'!AE11","v":0},{"$f":"'Initial Status'!AF11","v":0},{"$f":"'Initial Status'!AG11","v":0},{"$f":"'Initial Status'!AH11","v":0},{"$f":"'Initial Status'!AI11","v":0},null,null,null,null,null,"0"]
[null,null,null,"Plants and algae from in situ aquaculture",null,"Harvest","Ton/a",null,null,null,null,null,null,null,false,null,{"$f":"'Initial Status'!P12","v":0},{"$f":"'Initial Status'!Q12","v":0},{"$f":"'Initial Status'!R12","v":0},{"$f":"'Initial Status'!S12","v":0},{"$f":"'Initial Status'!T12","v":0},{"$f":"'Initial Status'!U12","v":0},{"$f":"'Initial Status'!V12","v":0},{"$f":"'Initial Status'!W12","v":0},{"$f":"'Initial Status'!X12","v":0},{"$f":"'Initial Status'!Y12","v":0},{"$f":"'Initial Status'!Z12","v":0},{"$f":"'Initial Status'!AA12","v":0},{"$f":"'Initial Status'!AB12","v":0},{"$f":"'Initial Status'!AC12","v":0},{"$f":"'Initial Status'!AD12","v":0},{"$f":"'Initial Status'!AE12","v":0},{"$f":"'Initial Status'!AF12","v":0},{"$f":"'Initial Status'!AG12","v":0},{"$f":"'Initial Status'!AH12","v":0},{"$f":"'Initial Status'!AI12","v":0},null,null,null,null,null,"1"]
[null,null,null,null,null,"Nº of Species ","nº/km2",null,null,null,null,null,null,null,false,null,{"$f":"'Initial Status'!P13","v":0},{"$f":"'Initial Status'!Q13","v":0},{"$f":"'Initial Status'!R13","v":0},{"$f":"'Initial Status'!S13","v":0},{"$f":"'Initial Status'!T13","v":0},{"$f":"'Initial Status'!U13","v":0},{"$f":"'Initial Status'!V13","v":0},{"$f":"'Initial Status'!W13","v":0},{"$f":"'Initial Status'!X13","v":0},{"$f":"'Initial Status'!Y13","v":0},{"$f":"'Initial Status'!Z13","v":0},{"$f":"'Initial Status'!AA13","v":0},{"$f":"'Initial Status'!AB13","v":0},{"$f":"'Initial Status'!AC13","v":0},{"$f":"'Initial Status'!AD13","v":0},{"$f":"'Initial Status'!AE13","v":0},{"$f":"'Initial Status'!AF13","v":0},{"$f":"'Initial Status'!AG13","v":0},{"$f":"'Initial Status'!AH13","v":0},{"$f":"'Initial Status'!AI13","v":0},null,null,null,null,null,"2"]
[null,null,"Water","Surface water for drinking purposes",null,"Amount of water","m3/km2",null,null,null,null,null,null,null,false,null,{"$f":"'Initial Status'!P14","v":0},{"$f":"'Initial Status'!Q14","v":0},{"$f":"'Initial Status'!R14","v":0},{"$f":"'Initial Status'!S14","v":0},{"$f":"'Initial Status'!T14","v":0},{"$f":"'Initial Status'!U14","v":0},{"$f":"'Initial Status'!V14","v":0},{"$f":"'Initial Status'!W14","v":0},{"$f":"'Initial Status'!X14","v":0},{"$f":"'Initial Status'!Y14","v":0},{"$f":"'Initial Status'!Z14","v":0},{"$f":"'Initial Status'!AA14","v":0},{"$f":"'Initial Status'!AB14","v":0},{"$f":"'Initial Status'!AC14","v":0},{"$f":"'Initial Status'!AD14","v":0},{"$f":"'Initial Status'!AE14","v":0},{"$f":"'Initial Status'!AF14","v":0},{"$f":"'Initial Status'!AG14","v":0},{"$f":"'Initial Status'!AH14","v":0},{"$f":"'Initial Status'!AI14","v":0},null,null,null,null,null,"3"]
[null,"Materials","Biomass","Fibres and other materials from plants, algae and animals for direct use or processing",null,"Harvest","Ton/yr./km2",null,null,null,null,null,null,null,false,null,{"$f":"'Initial Status'!P15","v":0},{"$f":"'Initial Status'!Q15","v":0},{"$f":"'Initial Status'!R15","v":0},{"$f":"'Initial Status'!S15","v":0},{"$f":"'Initial Status'!T15","v":0},{"$f":"'Initial Status'!U15","v":0},{"$f":"'Initial Status'!V15","v":0},{"$f":"'Initial Status'!W15","v":0},{"$f":"'Initial Status'!X15","v":0},{"$f":"'Initial Status'!Y15","v":0},{"$f":"'Initial Status'!Z15","v":0},{"$f":"'Initial Status'!AA15","v":0},{"$f":"'Initial Status'!AB15","v":0},{"$f":"'Initial Status'!AC15","v":0},{"$f":"'Initial Status'!AD15","v":0},{"$f":"'Initial Status'!AE15","v":0},{"$f":"'Initial Status'!AF15","v":0},{"$f":"'Initial Status'!AG15","v":0},{"$f":"'Initial Status'!AH15","v":0},{"$f":"'Initial Status'!AI15","v":0},null,null,null,null,null,"4"]
[null,null,null,"Materials from plants, algae and animals for agriculture",null,"Harvest","Ton/yr./km2",null,null,null,null,null,null,null,false,null,{"$f":"'Initial Status'!P16","v":0},{"$f":"'Initial Status'!Q16","v":0},{"$f":"'Initial Status'!R16","v":0},{"$f":"'Initial Status'!S16","v":0},{"$f":"'Initial Status'!T16","v":0},{"$f":"'Initial Status'!U16","v":0},{"$f":"'Initial Status'!V16","v":0},{"$f":"'Initial Status'!W16","v":0},{"$f":"'Initial Status'!X16","v":0},{"$f":"'Initial Status'!Y16","v":0},{"$f":"'Initial Status'!Z16","v":0},{"$f":"'Initial Status'!AA16","v":0},{"$f":"'Initial Status'!AB16","v":0},{"$f":"'Initial Status'!AC16","v":0},{"$f":"'Initial Status'!AD16","v":0},{"$f":"'Initial Status'!AE16","v":0},{"$f":"'Initial Status'!AF16","v":0},{"$f":"'Initial Status'!AG16","v":0},{"$f":"'Initial Status'!AH16","v":0},{"$f":"'Initial Status'!AI16","v":0},null,null,null,null,null,"5"]
[null,null,"Water","Surface Water for non-drinking purposes",null,"Amount of water","m3/km2",null,null,null,null,null,null,null,false,null,{"$f":"'Initial Status'!P17","v":0},{"$f":"'Initial Status'!Q17","v":0},{"$f":"'Initial Status'!R17","v":0},{"$f":"'Initial Status'!S17","v":0},{"$f":"'Initial Status'!T17","v":0},{"$f":"'Initial Status'!U17","v":0},{"$f":"'Initial Status'!V17","v":0},{"$f":"'Initial Status'!W17","v":0},{"$f":"'Initial Status'!X17","v":0},{"$f":"'Initial Status'!Y17","v":0},{"$f":"'Initial Status'!Z17","v":0},{"$f":"'Initial Status'!AA17","v":0},{"$f":"'Initial Status'!AB17","v":0},{"$f":"'Initial Status'!AC17","v":0},{"$f":"'Initial Status'!AD17","v":0},{"$f":"'Initial Status'!AE17","v":0},{"$f":"'Initial Status'!AF17","v":0},{"$f":"'Initial Status'!AG17","v":0},{"$f":"'Initial Status'!AH17","v":0},{"$f":"'Initial Status'!AI17","v":0}]
[null,"Energy","Biomass-based energy resources ","Plant based resources",null," ","Ton/yr./km2",null,null,null,null,null,null,null,false,null,{"$f":"'Initial Status'!P18","v":0},{"$f":"'Initial Status'!Q18","v":0},{"$f":"'Initial Status'!R18","v":0},{"$f":"'Initial Status'!S18","v":0},{"$f":"'Initial Status'!T18","v":0},{"$f":"'Initial Status'!U18","v":0},{"$f":"'Initial Status'!V18","v":0},{"$f":"'Initial Status'!W18","v":0},{"$f":"'Initial Status'!X18","v":0},{"$f":"'Initial Status'!Y18","v":0},{"$f":"'Initial Status'!Z18","v":0},{"$f":"'Initial Status'!AA18","v":0},{"$f":"'Initial Status'!AB18","v":0},{"$f":"'Initial Status'!AC18","v":0},{"$f":"'Initial Status'!AD18","v":0},{"$f":"'Initial Status'!AE18","v":0},{"$f":"'Initial Status'!AF18","v":0},{"$f":"'Initial Status'!AG18","v":0},{"$f":"'Initial Status'!AH18","v":0},{"$f":"'Initial Status'!AI18","v":0}]
[null,null,null,"Animal based resources",null,"Amount","Ton/yr./km2",null,null,null,null,null,null,null,false,null,{"$f":"'Initial Status'!P19","v":0},{"$f":"'Initial Status'!Q19","v":0},{"$f":"'Initial Status'!R19","v":0},{"$f":"'Initial Status'!S19","v":0},{"$f":"'Initial Status'!T19","v":0},{"$f":"'Initial Status'!U19","v":0},{"$f":"'Initial Status'!V19","v":0},{"$f":"'Initial Status'!W19","v":0},{"$f":"'Initial Status'!X19","v":0},{"$f":"'Initial Status'!Y19","v":0},{"$f":"'Initial Status'!Z19","v":0},{"$f":"'Initial Status'!AA19","v":0},{"$f":"'Initial Status'!AB19","v":0},{"$f":"'Initial Status'!AC19","v":0},{"$f":"'Initial Status'!AD19","v":0},{"$f":"'Initial Status'!AE19","v":0},{"$f":"'Initial Status'!AF19","v":0},{"$f":"'Initial Status'!AG19","v":0},{"$f":"'Initial Status'!AH19","v":0},{"$f":"'Initial Status'!AI19","v":0}]
["Section","Division","Group","Class",null," Indicator","Units","Value","Class of change","Type of Data","Source","Author","Year ","Reliability",null,null,-5,-4,null,-3,null,-2,null,-1,null,0,null,1,null,2,null,3,null,4,null,5]
["Regulating and Maintenance Services","Mediation of waste, toxics and other nuisances","Mediation by ecosystems ","Filtration/sequestration/storage/accumulation by ecosystems ",null,"N-fixation","kg/yr./km2",null,null,null,null,null,null,null,false,null,{"$f":"'Initial Status'!P21","v":0},{"$f":"'Initial Status'!Q21","v":0},{"$f":"'Initial Status'!R21","v":0},{"$f":"'Initial Status'!S21","v":0},{"$f":"'Initial Status'!T21","v":0},{"$f":"'Initial Status'!U21","v":0},{"$f":"'Initial Status'!V21","v":0},{"$f":"'Initial Status'!W21","v":0},{"$f":"'Initial Status'!X21","v":0},{"$f":"'Initial Status'!Y21","v":0},{"$f":"'Initial Status'!Z21","v":0},{"$f":"'Initial Status'!AA21","v":0},{"$f":"'Initial Status'!AB21","v":0},{"$f":"'Initial Status'!AC21","v":0},{"$f":"'Initial Status'!AD21","v":0},{"$f":"'Initial Status'!AE21","v":0},{"$f":"'Initial Status'!AF21","v":0},{"$f":"'Initial Status'!AG21","v":0},{"$f":"'Initial Status'!AH21","v":0},{"$f":"'Initial Status'!AI21","v":0},null,null,null,null,null,null,null,null,null,null,null,null," "]
[null,null,null,null,null,"Burial","kg/yr./km2",null,null,null,null,null,null,null,false,null,{"$f":"'Initial Status'!P22","v":0},{"$f":"'Initial Status'!Q22","v":0},{"$f":"'Initial Status'!R22","v":0},{"$f":"'Initial Status'!S22","v":0},{"$f":"'Initial Status'!T22","v":0},{"$f":"'Initial Status'!U22","v":0},{"$f":"'Initial Status'!V22","v":0},{"$f":"'Initial Status'!W22","v":0},{"$f":"'Initial Status'!X22","v":0},{"$f":"'Initial Status'!Y22","v":0},{"$f":"'Initial Status'!Z22","v":0},{"$f":"'Initial Status'!AA22","v":0},{"$f":"'Initial Status'!AB22","v":0},{"$f":"'Initial Status'!AC22","v":0},{"$f":"'Initial Status'!AD22","v":0},{"$f":"'Initial Status'!AE22","v":0},{"$f":"'Initial Status'!AF22","v":0},{"$f":"'Initial Status'!AG22","v":0},{"$f":"'Initial Status'!AH22","v":0},{"$f":"'Initial Status'!AI22","v":0}]
[null,null,null,null,null,"Denitrification","kg/yr./km2",null,null,null,null,null,null,null,false,null,{"$f":"'Initial Status'!P23","v":0},{"$f":"'Initial Status'!Q23","v":0},{"$f":"'Initial Status'!R23","v":0},{"$f":"'Initial Status'!S23","v":0},{"$f":"'Initial Status'!T23","v":0},{"$f":"'Initial Status'!U23","v":0},{"$f":"'Initial Status'!V23","v":0},{"$f":"'Initial Status'!W23","v":0},{"$f":"'Initial Status'!X23","v":0},{"$f":"'Initial Status'!Y23","v":0},{"$f":"'Initial Status'!Z23","v":0},{"$f":"'Initial Status'!AA23","v":0},{"$f":"'Initial Status'!AB23","v":0},{"$f":"'Initial Status'!AC23","v":0},{"$f":"'Initial Status'!AD23","v":0},{"$f":"'Initial Status'!AE23","v":0},{"$f":"'Initial Status'!AF23","v":0},{"$f":"'Initial Status'!AG23","v":0},{"$f":"'Initial Status'!AH23","v":0},{"$f":"'Initial Status'!AI23","v":0}]
[null,null,null,"Dilution by atmosphere, freshwater and marine ecosystems",null,"Average of beach closures per year","Nº/km2",null,null,null,null,null,null,null,false,null,{"$f":"'Initial Status'!P24","v":0},{"$f":"'Initial Status'!Q24","v":0},{"$f":"'Initial Status'!R24","v":0},{"$f":"'Initial Status'!S24","v":0},{"$f":"'Initial Status'!T24","v":0},{"$f":"'Initial Status'!U24","v":0},{"$f":"'Initial Status'!V24","v":0},{"$f":"'Initial Status'!W24","v":0},{"$f":"'Initial Status'!X24","v":0},{"$f":"'Initial Status'!Y24","v":0},{"$f":"'Initial Status'!Z24","v":0},{"$f":"'Initial Status'!AA24","v":0},{"$f":"'Initial Status'!AB24","v":0},{"$f":"'Initial Status'!AC24","v":0},{"$f":"'Initial Status'!AD24","v":0},{"$f":"'Initial Status'!AE24","v":0},{"$f":"'Initial Status'!AF24","v":0},{"$f":"'Initial Status'!AG24","v":0},{"$f":"'Initial Status'!AH24","v":0},{"$f":"'Initial Status'!AI24","v":0}]
[null,"Mediations of Flow","Mass Flows","Mass stabilisation and control of erosion rates",null,"Extent of selected emerged, submerged and intertidal habitats","km2/km2",null,null,null,null,null,null,null,false,null,{"$f":"'Initial Status'!P25","v":0},{"$f":"'Initial Status'!Q25","v":0},{"$f":"'Initial Status'!R25","v":0},{"$f":"'Initial Status'!S25","v":0},{"$f":"'Initial Status'!T25","v":0},{"$f":"'Initial Status'!U25","v":0},{"$f":"'Initial Status'!V25","v":0},{"$f":"'Initial Status'!W25","v":0},{"$f":"'Initial Status'!X25","v":0},{"$f":"'Initial Status'!Y25","v":0},{"$f":"'Initial Status'!Z25","v":0},{"$f":"'Initial Status'!AA25","v":0},{"$f":"'Initial Status'!AB25","v":0},{"$f":"'Initial Status'!AC25","v":0},{"$f":"'Initial Status'!AD25","v":0},{"$f":"'Initial Status'!AE25","v":0},{"$f":"'Initial Status'!AF25","v":0},{"$f":"'Initial Status'!AG25","v":0},{"$f":"'Initial Status'!AH25","v":0},{"$f":"'Initial Status'!AI25","v":0}]
[null,null,null,"Buffering and attenuation of mass flows",null,"Sediment accumulation rate","cm/yr.",null,null,null,null,null,null,null,false,null,{"$f":"'Initial Status'!P26","v":0},{"$f":"'Initial Status'!Q26","v":0},{"$f":"'Initial Status'!R26","v":0},{"$f":"'Initial Status'!S26","v":0},{"$f":"'Initial Status'!T26","v":0},{"$f":"'Initial Status'!U26","v":0},{"$f":"'Initial Status'!V26","v":0},{"$f":"'Initial Status'!W26","v":0},{"$f":"'Initial Status'!X26","v":0},{"$f":"'Initial Status'!Y26","v":0},{"$f":"'Initial Status'!Z26","v":0},{"$f":"'Initial Status'!AA26","v":0},{"$f":"'Initial Status'!AB26","v":0},{"$f":"'Initial Status'!AC26","v":0},{"$f":"'Initial Status'!AD26","v":0},{"$f":"'Initial Status'!AE26","v":0},{"$f":"'Initial Status'!AF26","v":0},{"$f":"'Initial Status'!AG26","v":0},{"$f":"'Initial Status'!AH26","v":0},{"$f":"'Initial Status'!AI26","v":0}]
[null,null,"Liquid  Flows","Flood Protection",null,"Shoreline erosion rate"," mm/yr./km2",null,null,null,null,null,null,null,false,null,{"$f":"'Initial Status'!P27","v":0},{"$f":"'Initial Status'!Q27","v":0},{"$f":"'Initial Status'!R27","v":0},{"$f":"'Initial Status'!S27","v":0},{"$f":"'Initial Status'!T27","v":0},{"$f":"'Initial Status'!U27","v":0},{"$f":"'Initial Status'!V27","v":0},{"$f":"'Initial Status'!W27","v":0},{"$f":"'Initial Status'!X27","v":0},{"$f":"'Initial Status'!Y27","v":0},{"$f":"'Initial Status'!Z27","v":0},{"$f":"'Initial Status'!AA27","v":0},{"$f":"'Initial Status'!AB27","v":0},{"$f":"'Initial Status'!AC27","v":0},{"$f":"'Initial Status'!AD27","v":0},{"$f":"'Initial Status'!AE27","v":0},{"$f":"'Initial Status'!AF27","v":0},{"$f":"'Initial Status'!AG27","v":0},{"$f":"'Initial Status'!AH27","v":0},{"$f":"'Initial Status'!AI27","v":0}]
[null,null,null,null,null,"Significant wave high","m",null,null,null,null,null,null,null,false,null,{"$f":"'Initial Status'!P28","v":0},{"$f":"'Initial Status'!Q28","v":0},{"$f":"'Initial Status'!R28","v":0},{"$f":"'Initial Status'!S28","v":0},{"$f":"'Initial Status'!T28","v":0},{"$f":"'Initial Status'!U28","v":0},{"$f":"'Initial Status'!V28","v":0},{"$f":"'Initial Status'!W28","v":0},{"$f":"'Initial Status'!X28","v":0},{"$f":"'Initial Status'!Y28","v":0},{"$f":"'Initial Status'!Z28","v":0},{"$f":"'Initial Status'!AA28","v":0},{"$f":"'Initial Status'!AB28","v":0},{"$f":"'Initial Status'!AC28","v":0},{"$f":"'Initial Status'!AD28","v":0},{"$f":"'Initial Status'!AE28","v":0},{"$f":"'Initial Status'!AF28","v":0},{"$f":"'Initial Status'!AG28","v":0},{"$f":"'Initial Status'!AH28","v":0},{"$f":"'Initial Status'!AI28","v":0}]
[null,null,null,null,null,"Design-basis Flood ","m",null,null,null,null,null,null,null,false,null,{"$f":"'Initial Status'!P29","v":0},{"$f":"'Initial Status'!Q29","v":0},{"$f":"'Initial Status'!R29","v":0},{"$f":"'Initial Status'!S29","v":0},{"$f":"'Initial Status'!T29","v":0},{"$f":"'Initial Status'!U29","v":0},{"$f":"'Initial Status'!V29","v":0},{"$f":"'Initial Status'!W29","v":0},{"$f":"'Initial Status'!X29","v":0},{"$f":"'Initial Status'!Y29","v":0},{"$f":"'Initial Status'!Z29","v":0},{"$f":"'Initial Status'!AA29","v":0},{"$f":"'Initial Status'!AB29","v":0},{"$f":"'Initial Status'!AC29","v":0},{"$f":"'Initial Status'!AD29","v":0},{"$f":"'Initial Status'!AE29","v":0},{"$f":"'Initial Status'!AF29","v":0},{"$f":"'Initial Status'!AG29","v":0},{"$f":"'Initial Status'!AH29","v":0},{"$f":"'Initial Status'!AI29","v":0}]
[null,"Maintenance of physical, chemical, biological conditions","Lifecycle maintenance, habitat and gene pool protection","Maintaining nursery populations and habitats",null,"Submerged and intertidal habitats diversity","Nº/km2",null,null,null,null,null,null,null,false,null,{"$f":"'Initial Status'!P30","v":0},{"$f":"'Initial Status'!Q30","v":0},{"$f":"'Initial Status'!R30","v":0},{"$f":"'Initial Status'!S30","v":0},{"$f":"'Initial Status'!T30","v":0},{"$f":"'Initial Status'!U30","v":0},{"$f":"'Initial Status'!V30","v":0},{"$f":"'Initial Status'!W30","v":0},{"$f":"'Initial Status'!X30","v":0},{"$f":"'Initial Status'!Y30","v":0},{"$f":"'Initial Status'!Z30","v":0},{"$f":"'Initial Status'!AA30","v":0},{"$f":"'Initial Status'!AB30","v":0},{"$f":"'Initial Status'!AC30","v":0},{"$f":"'Initial Status'!AD30","v":0},{"$f":"'Initial Status'!AE30","v":0},{"$f":"'Initial Status'!AF30","v":0},{"$f":"'Initial Status'!AG30","v":0},{"$f":"'Initial Status'!AH30","v":0},{"$f":"'Initial Status'!AI30","v":0}]
[null,null,null,null,null,"Occurrence of Oxygen concentration < 6 mg/L","days/yr.",null,null,null,null,null,null,null,false,null,{"$f":"'Initial Status'!P31","v":0},{"$f":"'Initial Status'!Q31","v":0},{"$f":"'Initial Status'!R31","v":0},{"$f":"'Initial Status'!S31","v":0},{"$f":"'Initial Status'!T31","v":0},{"$f":"'Initial Status'!U31","v":0},{"$f":"'Initial Status'!V31","v":0},{"$f":"'Initial Status'!W31","v":0},{"$f":"'Initial Status'!X31","v":0},{"$f":"'Initial Status'!Y31","v":0},{"$f":"'Initial Status'!Z31","v":0},{"$f":"'Initial Status'!AA31","v":0},{"$f":"'Initial Status'!AB31","v":0},{"$f":"'Initial Status'!AC31","v":0},{"$f":"'Initial Status'!AD31","v":0},{"$f":"'Initial Status'!AE31","v":0},{"$f":"'Initial Status'!AF31","v":0},{"$f":"'Initial Status'!AG31","v":0},{"$f":"'Initial Status'!AH31","v":0},{"$f":"'Initial Status'!AI31","v":0}]
[null,null,null,null,null,"Secchi depth","m",null,null,null,null,null,null,null,false,null,{"$f":"'Initial Status'!P32","v":0},{"$f":"'Initial Status'!Q32","v":0},{"$f":"'Initial Status'!R32","v":0},{"$f":"'Initial Status'!S32","v":0},{"$f":"'Initial Status'!T32","v":0},{"$f":"'Initial Status'!U32","v":0},{"$f":"'Initial Status'!V32","v":0},{"$f":"'Initial Status'!W32","v":0},{"$f":"'Initial Status'!X32","v":0},{"$f":"'Initial Status'!Y32","v":0},{"$f":"'Initial Status'!Z32","v":0},{"$f":"'Initial Status'!AA32","v":0},{"$f":"'Initial Status'!AB32","v":0},{"$f":"'Initial Status'!AC32","v":0},{"$f":"'Initial Status'!AD32","v":0},{"$f":"'Initial Status'!AE32","v":0},{"$f":"'Initial Status'!AF32","v":0},{"$f":"'Initial Status'!AG32","v":0},{"$f":"'Initial Status'!AH32","v":0},{"$f":"'Initial Status'!AI32","v":0}]
[null,null,null,null,null,"Species distribution","Km2/km2",null,null,null,null,null,null,null,false,null,{"$f":"'Initial Status'!P33","v":0},{"$f":"'Initial Status'!Q33","v":0},{"$f":"'Initial Status'!R33","v":0},{"$f":"'Initial Status'!S33","v":0},{"$f":"'Initial Status'!T33","v":0},{"$f":"'Initial Status'!U33","v":0},{"$f":"'Initial Status'!V33","v":0},{"$f":"'Initial Status'!W33","v":0},{"$f":"'Initial Status'!X33","v":0},{"$f":"'Initial Status'!Y33","v":0},{"$f":"'Initial Status'!Z33","v":0},{"$f":"'Initial Status'!AA33","v":0},{"$f":"'Initial Status'!AB33","v":0},{"$f":"'Initial Status'!AC33","v":0},{"$f":"'Initial Status'!AD33","v":0},{"$f":"'Initial Status'!AE33","v":0},{"$f":"'Initial Status'!AF33","v":0},{"$f":"'Initial Status'!AG33","v":0},{"$f":"'Initial Status'!AH33","v":0},{"$f":"'Initial Status'!AI33","v":0}]
[null,null,null,null,null,"Nursery areas ","Km2/km2",null,null,null,null,null,null,null,false,null,{"$f":"'Initial Status'!P34","v":0},{"$f":"'Initial Status'!Q34","v":0},{"$f":"'Initial Status'!R34","v":0},{"$f":"'Initial Status'!S34","v":0},{"$f":"'Initial Status'!T34","v":0},{"$f":"'Initial Status'!U34","v":0},{"$f":"'Initial Status'!V34","v":0},{"$f":"'Initial Status'!W34","v":0},{"$f":"'Initial Status'!X34","v":0},{"$f":"'Initial Status'!Y34","v":0},{"$f":"'Initial Status'!Z34","v":0},{"$f":"'Initial Status'!AA34","v":0},{"$f":"'Initial Status'!AB34","v":0},{"$f":"'Initial Status'!AC34","v":0},{"$f":"'Initial Status'!AD34","v":0},{"$f":"'Initial Status'!AE34","v":0},{"$f":"'Initial Status'!AF34","v":0},{"$f":"'Initial Status'!AG34","v":0},{"$f":"'Initial Status'!AH34","v":0},{"$f":"'Initial Status'!AI34","v":0}]
[null,null,null,null,null,"% of nursery areas which are protected","Km2/km2",null,null,null,null,null,null,null,false,null,{"$f":"'Initial Status'!P35","v":0},{"$f":"'Initial Status'!Q35","v":0},{"$f":"'Initial Status'!R35","v":0},{"$f":"'Initial Status'!S35","v":0},{"$f":"'Initial Status'!T35","v":0},{"$f":"'Initial Status'!U35","v":0},{"$f":"'Initial Status'!V35","v":0},{"$f":"'Initial Status'!W35","v":0},{"$f":"'Initial Status'!X35","v":0},{"$f":"'Initial Status'!Y35","v":0},{"$f":"'Initial Status'!Z35","v":0},{"$f":"'Initial Status'!AA35","v":0},{"$f":"'Initial Status'!AB35","v":0},{"$f":"'Initial Status'!AC35","v":0},{"$f":"'Initial Status'!AD35","v":0},{"$f":"'Initial Status'!AE35","v":0},{"$f":"'Initial Status'!AF35","v":0},{"$f":"'Initial Status'!AG35","v":0},{"$f":"'Initial Status'!AH35","v":0},{"$f":"'Initial Status'!AI35","v":0}]
[null,null,"Pest and disease control","Pest and Disease control",null,"Harmful Algal Bloom Outbreaks","Nº/km2",null,null,null,null,null,null,null,false,null,{"$f":"'Initial Status'!P36","v":0},{"$f":"'Initial Status'!Q36","v":0},{"$f":"'Initial Status'!R36","v":0},{"$f":"'Initial Status'!S36","v":0},{"$f":"'Initial Status'!T36","v":0},{"$f":"'Initial Status'!U36","v":0},{"$f":"'Initial Status'!V36","v":0},{"$f":"'Initial Status'!W36","v":0},{"$f":"'Initial Status'!X36","v":0},{"$f":"'Initial Status'!Y36","v":0},{"$f":"'Initial Status'!Z36","v":0},{"$f":"'Initial Status'!AA36","v":0},{"$f":"'Initial Status'!AB36","v":0},{"$f":"'Initial Status'!AC36","v":0},{"$f":"'Initial Status'!AD36","v":0},{"$f":"'Initial Status'!AE36","v":0},{"$f":"'Initial Status'!AF36","v":0},{"$f":"'Initial Status'!AG36","v":0},{"$f":"'Initial Status'!AH36","v":0},{"$f":"'Initial Status'!AI36","v":0}]
[null,null,null,null,null,"Presence of alien species","Km2/km2",null,null,null,null,null,null,null,false,null,{"$f":"'Initial Status'!P37","v":0},{"$f":"'Initial Status'!Q37","v":0},{"$f":"'Initial Status'!R37","v":0},{"$f":"'Initial Status'!S37","v":0},{"$f":"'Initial Status'!T37","v":0},{"$f":"'Initial Status'!U37","v":0},{"$f":"'Initial Status'!V37","v":0},{"$f":"'Initial Status'!W37","v":0},{"$f":"'Initial Status'!X37","v":0},{"$f":"'Initial Status'!Y37","v":0},{"$f":"'Initial Status'!Z37","v":0},{"$f":"'Initial Status'!AA37","v":0},{"$f":"'Initial Status'!AB37","v":0},{"$f":"'Initial Status'!AC37","v":0},{"$f":"'Initial Status'!AD37","v":0},{"$f":"'Initial Status'!AE37","v":0},{"$f":"'Initial Status'!AF37","v":0},{"$f":"'Initial Status'!AG37","v":0},{"$f":"'Initial Status'!AH37","v":0},{"$f":"'Initial Status'!AI37","v":0}]
[null,null,"Soil formation and composition","Decomposition and fixing processes",null,"Nitrogen removal","% ",null,null,null,null,null,null,null,false,null,{"$f":"'Initial Status'!P38","v":0},{"$f":"'Initial Status'!Q38","v":0},{"$f":"'Initial Status'!R38","v":0},{"$f":"'Initial Status'!S38","v":0},{"$f":"'Initial Status'!T38","v":0},{"$f":"'Initial Status'!U38","v":0},{"$f":"'Initial Status'!V38","v":0},{"$f":"'Initial Status'!W38","v":0},{"$f":"'Initial Status'!X38","v":0},{"$f":"'Initial Status'!Y38","v":0},{"$f":"'Initial Status'!Z38","v":0},{"$f":"'Initial Status'!AA38","v":0},{"$f":"'Initial Status'!AB38","v":0},{"$f":"'Initial Status'!AC38","v":0},{"$f":"'Initial Status'!AD38","v":0},{"$f":"'Initial Status'!AE38","v":0},{"$f":"'Initial Status'!AF38","v":0},{"$f":"'Initial Status'!AG38","v":0},{"$f":"'Initial Status'!AH38","v":0},{"$f":"'Initial Status'!AI38","v":0}]
[null,null,null,null,null,"Water residence time","Months",null,null,null,null,null,null,null,false,null,{"$f":"'Initial Status'!P39","v":0},{"$f":"'Initial Status'!Q39","v":0},{"$f":"'Initial Status'!R39","v":0},{"$f":"'Initial Status'!S39","v":0},{"$f":"'Initial Status'!T39","v":0},{"$f":"'Initial Status'!U39","v":0},{"$f":"'Initial Status'!V39","v":0},{"$f":"'Initial Status'!W39","v":0},{"$f":"'Initial Status'!X39","v":0},{"$f":"'Initial Status'!Y39","v":0},{"$f":"'Initial Status'!Z39","v":0},{"$f":"'Initial Status'!AA39","v":0},{"$f":"'Initial Status'!AB39","v":0},{"$f":"'Initial Status'!AC39","v":0},{"$f":"'Initial Status'!AD39","v":0},{"$f":"'Initial Status'!AE39","v":0},{"$f":"'Initial Status'!AF39","v":0},{"$f":"'Initial Status'!AG39","v":0},{"$f":"'Initial Status'!AH39","v":0},{"$f":"'Initial Status'!AI39","v":0}]
[null,null,"Water conditions","Chemical condition of salt waters",null,"Nutrients concentration","mg/L",null,null,null,null,null,null,null,false,null,{"$f":"'Initial Status'!P40","v":0},{"$f":"'Initial Status'!Q40","v":0},{"$f":"'Initial Status'!R40","v":0},{"$f":"'Initial Status'!S40","v":0},{"$f":"'Initial Status'!T40","v":0},{"$f":"'Initial Status'!U40","v":0},{"$f":"'Initial Status'!V40","v":0},{"$f":"'Initial Status'!W40","v":0},{"$f":"'Initial Status'!X40","v":0},{"$f":"'Initial Status'!Y40","v":0},{"$f":"'Initial Status'!Z40","v":0},{"$f":"'Initial Status'!AA40","v":0},{"$f":"'Initial Status'!AB40","v":0},{"$f":"'Initial Status'!AC40","v":0},{"$f":"'Initial Status'!AD40","v":0},{"$f":"'Initial Status'!AE40","v":0},{"$f":"'Initial Status'!AF40","v":0},{"$f":"'Initial Status'!AG40","v":0},{"$f":"'Initial Status'!AH40","v":0},{"$f":"'Initial Status'!AI40","v":0}]
[null,null,null,null,null,"Salinity","PSU",null,null,null,null,null,null,null,false,null,{"$f":"'Initial Status'!P41","v":0},{"$f":"'Initial Status'!Q41","v":0},{"$f":"'Initial Status'!R41","v":0},{"$f":"'Initial Status'!S41","v":0},{"$f":"'Initial Status'!T41","v":0},{"$f":"'Initial Status'!U41","v":0},{"$f":"'Initial Status'!V41","v":0},{"$f":"'Initial Status'!W41","v":0},{"$f":"'Initial Status'!X41","v":0},{"$f":"'Initial Status'!Y41","v":0},{"$f":"'Initial Status'!Z41","v":0},{"$f":"'Initial Status'!AA41","v":0},{"$f":"'Initial Status'!AB41","v":0},{"$f":"'Initial Status'!AC41","v":0},{"$f":"'Initial Status'!AD41","v":0},{"$f":"'Initial Status'!AE41","v":0},{"$f":"'Initial Status'!AF41","v":0},{"$f":"'Initial Status'!AG41","v":0},{"$f":"'Initial Status'!AH41","v":0},{"$f":"'Initial Status'!AI41","v":0}]
[null,null,null,null,null,"Oxygen Concentration","mg/L",null,null,null,null,null,null,null,false,null,{"$f":"'Initial Status'!P42","v":0},{"$f":"'Initial Status'!Q42","v":0},{"$f":"'Initial Status'!R42","v":0},{"$f":"'Initial Status'!S42","v":0},{"$f":"'Initial Status'!T42","v":0},{"$f":"'Initial Status'!U42","v":0},{"$f":"'Initial Status'!V42","v":0},{"$f":"'Initial Status'!W42","v":0},{"$f":"'Initial Status'!X42","v":0},{"$f":"'Initial Status'!Y42","v":0},{"$f":"'Initial Status'!Z42","v":0},{"$f":"'Initial Status'!AA42","v":0},{"$f":"'Initial Status'!AB42","v":0},{"$f":"'Initial Status'!AC42","v":0},{"$f":"'Initial Status'!AD42","v":0},{"$f":"'Initial Status'!AE42","v":0},{"$f":"'Initial Status'!AF42","v":0},{"$f":"'Initial Status'!AG42","v":0},{"$f":"'Initial Status'!AH42","v":0},{"$f":"'Initial Status'!AI42","v":0}]
[null,null,"Atmospheric composition and climate regulation","Global climate regulation by reduction of greenhouse gas concentrations",null,"C stock","tonC/km2",null,null,null,null,null,null,null,false,null,{"$f":"'Initial Status'!P43","v":0},{"$f":"'Initial Status'!Q43","v":0},{"$f":"'Initial Status'!R43","v":0},{"$f":"'Initial Status'!S43","v":0},{"$f":"'Initial Status'!T43","v":0},{"$f":"'Initial Status'!U43","v":0},{"$f":"'Initial Status'!V43","v":0},{"$f":"'Initial Status'!W43","v":0},{"$f":"'Initial Status'!X43","v":0},{"$f":"'Initial Status'!Y43","v":0},{"$f":"'Initial Status'!Z43","v":0},{"$f":"'Initial Status'!AA43","v":0},{"$f":"'Initial Status'!AB43","v":0},{"$f":"'Initial Status'!AC43","v":0},{"$f":"'Initial Status'!AD43","v":0},{"$f":"'Initial Status'!AE43","v":0},{"$f":"'Initial Status'!AF43","v":0},{"$f":"'Initial Status'!AG43","v":0},{"$f":"'Initial Status'!AH43","v":0},{"$f":"'Initial Status'!AI43","v":0}]
[null,null,null,null,null,"C sequestration","tonC/yr./km2",null,null,null,null,null,null,null,false,null,{"$f":"'Initial Status'!P44","v":0},{"$f":"'Initial Status'!Q44","v":0},{"$f":"'Initial Status'!R44","v":0},{"$f":"'Initial Status'!S44","v":0},{"$f":"'Initial Status'!T44","v":0},{"$f":"'Initial Status'!U44","v":0},{"$f":"'Initial Status'!V44","v":0},{"$f":"'Initial Status'!W44","v":0},{"$f":"'Initial Status'!X44","v":0},{"$f":"'Initial Status'!Y44","v":0},{"$f":"'Initial Status'!Z44","v":0},{"$f":"'Initial Status'!AA44","v":0},{"$f":"'Initial Status'!AB44","v":0},{"$f":"'Initial Status'!AC44","v":0},{"$f":"'Initial Status'!AD44","v":0},{"$f":"'Initial Status'!AE44","v":0},{"$f":"'Initial Status'!AF44","v":0},{"$f":"'Initial Status'!AG44","v":0},{"$f":"'Initial Status'!AH44","v":0},{"$f":"'Initial Status'!AI44","v":0}]
[null,null,null,null,null,"pH",null,null,null,null,null,null,null,null,false,null,{"$f":"'Initial Status'!P45","v":0},{"$f":"'Initial Status'!Q45","v":0},{"$f":"'Initial Status'!R45","v":0},{"$f":"'Initial Status'!S45","v":0},{"$f":"'Initial Status'!T45","v":0},{"$f":"'Initial Status'!U45","v":0},{"$f":"'Initial Status'!V45","v":0},{"$f":"'Initial Status'!W45","v":0},{"$f":"'Initial Status'!X45","v":0},{"$f":"'Initial Status'!Y45","v":0},{"$f":"'Initial Status'!Z45","v":0},{"$f":"'Initial Status'!AA45","v":0},{"$f":"'Initial Status'!AB45","v":0},{"$f":"'Initial Status'!AC45","v":0},{"$f":"'Initial Status'!AD45","v":0},{"$f":"'Initial Status'!AE45","v":0},{"$f":"'Initial Status'!AF45","v":0},{"$f":"'Initial Status'!AG45","v":0},{"$f":"'Initial Status'!AH45","v":0},{"$f":"'Initial Status'!AI45","v":0}]
[null,null,null,null,null,"PP","tonC/yr./km2",null,null,null,null,null,null,null,false,null,{"$f":"'Initial Status'!P46","v":0},{"$f":"'Initial Status'!Q46","v":0},{"$f":"'Initial Status'!R46","v":0},{"$f":"'Initial Status'!S46","v":0},{"$f":"'Initial Status'!T46","v":0},{"$f":"'Initial Status'!U46","v":0},{"$f":"'Initial Status'!V46","v":0},{"$f":"'Initial Status'!W46","v":0},{"$f":"'Initial Status'!X46","v":0},{"$f":"'Initial Status'!Y46","v":0},{"$f":"'Initial Status'!Z46","v":0},{"$f":"'Initial Status'!AA46","v":0},{"$f":"'Initial Status'!AB46","v":0},{"$f":"'Initial Status'!AC46","v":0},{"$f":"'Initial Status'!AD46","v":0},{"$f":"'Initial Status'!AE46","v":0},{"$f":"'Initial Status'!AF46","v":0},{"$f":"'Initial Status'!AG46","v":0},{"$f":"'Initial Status'!AH46","v":0},{"$f":"'Initial Status'!AI46","v":0}]
[null,null,null,"Micro and regional climate regulation",null,"Evaporation rate","per km2",null,null,null,null,null,null,null,false,null,{"$f":"'Initial Status'!P47","v":0},{"$f":"'Initial Status'!Q47","v":0},{"$f":"'Initial Status'!R47","v":0},{"$f":"'Initial Status'!S47","v":0},{"$f":"'Initial Status'!T47","v":0},{"$f":"'Initial Status'!U47","v":0},{"$f":"'Initial Status'!V47","v":0},{"$f":"'Initial Status'!W47","v":0},{"$f":"'Initial Status'!X47","v":0},{"$f":"'Initial Status'!Y47","v":0},{"$f":"'Initial Status'!Z47","v":0},{"$f":"'Initial Status'!AA47","v":0},{"$f":"'Initial Status'!AB47","v":0},{"$f":"'Initial Status'!AC47","v":0},{"$f":"'Initial Status'!AD47","v":0},{"$f":"'Initial Status'!AE47","v":0},{"$f":"'Initial Status'!AF47","v":0},{"$f":"'Initial Status'!AG47","v":0},{"$f":"'Initial Status'!AH47","v":0},{"$f":"'Initial Status'!AI47","v":0}]
["Section","Division","Group","Class",null," Indicator","Units","Value","Class of change","Type of Data","Source","Author","Year ","Reliability",null,null,-5,-4,null,-3,null,-2,null,-1,null,0,null,1,null,2,null,3,null,4,null,5]
["Cultural Services","Physical and Intellectual interactions with biota, ecosystems, and land-/seascapes [environmental settings]","Physical and experiential interactions","Experiential use of plants, animals and land-/seascapes in different environmental settings",null,"nº of visitors taking part in activities related to biota","nº/yr/km2",null,null,null,null,null,null,null,false,null,{"$f":"'Initial Status'!P49","v":0},{"$f":"'Initial Status'!Q49","v":0},{"$f":"'Initial Status'!R49","v":0},{"$f":"'Initial Status'!S49","v":0},{"$f":"'Initial Status'!T49","v":0},{"$f":"'Initial Status'!U49","v":0},{"$f":"'Initial Status'!V49","v":0},{"$f":"'Initial Status'!W49","v":0},{"$f":"'Initial Status'!X49","v":0},{"$f":"'Initial Status'!Y49","v":0},{"$f":"'Initial Status'!Z49","v":0},{"$f":"'Initial Status'!AA49","v":0},{"$f":"'Initial Status'!AB49","v":0},{"$f":"'Initial Status'!AC49","v":0},{"$f":"'Initial Status'!AD49","v":0},{"$f":"'Initial Status'!AE49","v":0},{"$f":"'Initial Status'!AF49","v":0},{"$f":"'Initial Status'!AG49","v":0},{"$f":"'Initial Status'!AH49","v":0},{"$f":"'Initial Status'!AI49","v":0}]
[null,null,null,"Physical use of land-/seascapes in different environmental settings",null,"Nº of tourists (within 1 km of coastal zone) ","nº/km2",null,null,null,null,null,null,null,false,null,{"$f":"'Initial Status'!P50","v":0},{"$f":"'Initial Status'!Q50","v":0},{"$f":"'Initial Status'!R50","v":0},{"$f":"'Initial Status'!S50","v":0},{"$f":"'Initial Status'!T50","v":0},{"$f":"'Initial Status'!U50","v":0},{"$f":"'Initial Status'!V50","v":0},{"$f":"'Initial Status'!W50","v":0},{"$f":"'Initial Status'!X50","v":0},{"$f":"'Initial Status'!Y50","v":0},{"$f":"'Initial Status'!Z50","v":0},{"$f":"'Initial Status'!AA50","v":0},{"$f":"'Initial Status'!AB50","v":0},{"$f":"'Initial Status'!AC50","v":0},{"$f":"'Initial Status'!AD50","v":0},{"$f":"'Initial Status'!AE50","v":0},{"$f":"'Initial Status'!AF50","v":0},{"$f":"'Initial Status'!AG50","v":0},{"$f":"'Initial Status'!AH50","v":0},{"$f":"'Initial Status'!AI50","v":0}]
[null,null,null,null,null,"Nº of ship berths in the marinas","nº/km2",null,null,null,null,null,null,null,false,null,{"$f":"'Initial Status'!P51","v":0},{"$f":"'Initial Status'!Q51","v":0},{"$f":"'Initial Status'!R51","v":0},{"$f":"'Initial Status'!S51","v":0},{"$f":"'Initial Status'!T51","v":0},{"$f":"'Initial Status'!U51","v":0},{"$f":"'Initial Status'!V51","v":0},{"$f":"'Initial Status'!W51","v":0},{"$f":"'Initial Status'!X51","v":0},{"$f":"'Initial Status'!Y51","v":0},{"$f":"'Initial Status'!Z51","v":0},{"$f":"'Initial Status'!AA51","v":0},{"$f":"'Initial Status'!AB51","v":0},{"$f":"'Initial Status'!AC51","v":0},{"$f":"'Initial Status'!AD51","v":0},{"$f":"'Initial Status'!AE51","v":0},{"$f":"'Initial Status'!AF51","v":0},{"$f":"'Initial Status'!AG51","v":0},{"$f":"'Initial Status'!AH51","v":0},{"$f":"'Initial Status'!AI51","v":0}]
[null,null,null,null,null,"Nº of Tourist Boat","nº*capacity/km2",null,null,null,null,null,null,null,false,null,{"$f":"'Initial Status'!P52","v":0},{"$f":"'Initial Status'!Q52","v":0},{"$f":"'Initial Status'!R52","v":0},{"$f":"'Initial Status'!S52","v":0},{"$f":"'Initial Status'!T52","v":0},{"$f":"'Initial Status'!U52","v":0},{"$f":"'Initial Status'!V52","v":0},{"$f":"'Initial Status'!W52","v":0},{"$f":"'Initial Status'!X52","v":0},{"$f":"'Initial Status'!Y52","v":0},{"$f":"'Initial Status'!Z52","v":0},{"$f":"'Initial Status'!AA52","v":0},{"$f":"'Initial Status'!AB52","v":0},{"$f":"'Initial Status'!AC52","v":0},{"$f":"'Initial Status'!AD52","v":0},{"$f":"'Initial Status'!AE52","v":0},{"$f":"'Initial Status'!AF52","v":0},{"$f":"'Initial Status'!AG52","v":0},{"$f":"'Initial Status'!AH52","v":0},{"$f":"'Initial Status'!AI52","v":0}]
[null,null,"Intellectual and representative interactions","Scientific and Educational",null,"Scientific studies, Documentaries, educational publications","Nº/yr./km2",null,null,null,null,null,null,null,false,null,{"$f":"'Initial Status'!P53","v":0},{"$f":"'Initial Status'!Q53","v":0},{"$f":"'Initial Status'!R53","v":0},{"$f":"'Initial Status'!S53","v":0},{"$f":"'Initial Status'!T53","v":0},{"$f":"'Initial Status'!U53","v":0},{"$f":"'Initial Status'!V53","v":0},{"$f":"'Initial Status'!W53","v":0},{"$f":"'Initial Status'!X53","v":0},{"$f":"'Initial Status'!Y53","v":0},{"$f":"'Initial Status'!Z53","v":0},{"$f":"'Initial Status'!AA53","v":0},{"$f":"'Initial Status'!AB53","v":0},{"$f":"'Initial Status'!AC53","v":0},{"$f":"'Initial Status'!AD53","v":0},{"$f":"'Initial Status'!AE53","v":0},{"$f":"'Initial Status'!AF53","v":0},{"$f":"'Initial Status'!AG53","v":0},{"$f":"'Initial Status'!AH53","v":0},{"$f":"'Initial Status'!AI53","v":0}]
[null,null,null,null,null,"Visits to scientific and artistic exhibits","Nº/yr",null,null,null,null,null,null,null,false,null,{"$f":"'Initial Status'!P54","v":0},{"$f":"'Initial Status'!Q54","v":0},{"$f":"'Initial Status'!R54","v":0},{"$f":"'Initial Status'!S54","v":0},{"$f":"'Initial Status'!T54","v":0},{"$f":"'Initial Status'!U54","v":0},{"$f":"'Initial Status'!V54","v":0},{"$f":"'Initial Status'!W54","v":0},{"$f":"'Initial Status'!X54","v":0},{"$f":"'Initial Status'!Y54","v":0},{"$f":"'Initial Status'!Z54","v":0},{"$f":"'Initial Status'!AA54","v":0},{"$f":"'Initial Status'!AB54","v":0},{"$f":"'Initial Status'!AC54","v":0},{"$f":"'Initial Status'!AD54","v":0},{"$f":"'Initial Status'!AE54","v":0},{"$f":"'Initial Status'!AF54","v":0},{"$f":"'Initial Status'!AG54","v":0},{"$f":"'Initial Status'!AH54","v":0},{"$f":"'Initial Status'!AI54","v":0}]
[null,null,null,"Heritage, cultural",null,"nº of cultural and heritage sites","nº/km2",null,null,null,null,null,null,null,false,null,{"$f":"'Initial Status'!P55","v":0},{"$f":"'Initial Status'!Q55","v":0},{"$f":"'Initial Status'!R55","v":0},{"$f":"'Initial Status'!S55","v":0},{"$f":"'Initial Status'!T55","v":0},{"$f":"'Initial Status'!U55","v":0},{"$f":"'Initial Status'!V55","v":0},{"$f":"'Initial Status'!W55","v":0},{"$f":"'Initial Status'!X55","v":0},{"$f":"'Initial Status'!Y55","v":0},{"$f":"'Initial Status'!Z55","v":0},{"$f":"'Initial Status'!AA55","v":0},{"$f":"'Initial Status'!AB55","v":0},{"$f":"'Initial Status'!AC55","v":0},{"$f":"'Initial Status'!AD55","v":0},{"$f":"'Initial Status'!AE55","v":0},{"$f":"'Initial Status'!AF55","v":0},{"$f":"'Initial Status'!AG55","v":0},{"$f":"'Initial Status'!AH55","v":0},{"$f":"'Initial Status'!AI55","v":0}]
[null,null,null,"Entertainment",null,"Nº of movies and broadcasts in the area","nº/km2",null,null,null,null,null,null,null,false,null,{"$f":"'Initial Status'!P56","v":0},{"$f":"'Initial Status'!Q56","v":0},{"$f":"'Initial Status'!R56","v":0},{"$f":"'Initial Status'!S56","v":0},{"$f":"'Initial Status'!T56","v":0},{"$f":"'Initial Status'!U56","v":0},{"$f":"'Initial Status'!V56","v":0},{"$f":"'Initial Status'!W56","v":0},{"$f":"'Initial Status'!X56","v":0},{"$f":"'Initial Status'!Y56","v":0},{"$f":"'Initial Status'!Z56","v":0},{"$f":"'Initial Status'!AA56","v":0},{"$f":"'Initial Status'!AB56","v":0},{"$f":"'Initial Status'!AC56","v":0},{"$f":"'Initial Status'!AD56","v":0},{"$f":"'Initial Status'!AE56","v":0},{"$f":"'Initial Status'!AF56","v":0},{"$f":"'Initial Status'!AG56","v":0},{"$f":"'Initial Status'!AH56","v":0},{"$f":"'Initial Status'!AI56","v":0}]
[null,null,null,"Aesthetic",null,"Nº of pictures","Nº/yr./km2",null,null,null,null,null,null,null,false,null,{"$f":"'Initial Status'!P57","v":0},{"$f":"'Initial Status'!Q57","v":0},{"$f":"'Initial Status'!R57","v":0},{"$f":"'Initial Status'!S57","v":0},{"$f":"'Initial Status'!T57","v":0},{"$f":"'Initial Status'!U57","v":0},{"$f":"'Initial Status'!V57","v":0},{"$f":"'Initial Status'!W57","v":0},{"$f":"'Initial Status'!X57","v":0},{"$f":"'Initial Status'!Y57","v":0},{"$f":"'Initial Status'!Z57","v":0},{"$f":"'Initial Status'!AA57","v":0},{"$f":"'Initial Status'!AB57","v":0},{"$f":"'Initial Status'!AC57","v":0},{"$f":"'Initial Status'!AD57","v":0},{"$f":"'Initial Status'!AE57","v":0},{"$f":"'Initial Status'!AF57","v":0},{"$f":"'Initial Status'!AG57","v":0},{"$f":"'Initial Status'!AH57","v":0},{"$f":"'Initial Status'!AI57","v":0}]
[null,"Spiritual, symbolic and other interactions with biota, ecosystems, and land-/seascapes ","Spiritual and/or emblematic","Symbolic",null,"Nº of Red List and iconic species","nº/km2",null,null,null,null,null,null,null,false,null,{"$f":"'Initial Status'!P58","v":0},{"$f":"'Initial Status'!Q58","v":0},{"$f":"'Initial Status'!R58","v":0},{"$f":"'Initial Status'!S58","v":0},{"$f":"'Initial Status'!T58","v":0},{"$f":"'Initial Status'!U58","v":0},{"$f":"'Initial Status'!V58","v":0},{"$f":"'Initial Status'!W58","v":0},{"$f":"'Initial Status'!X58","v":0},{"$f":"'Initial Status'!Y58","v":0},{"$f":"'Initial Status'!Z58","v":0},{"$f":"'Initial Status'!AA58","v":0},{"$f":"'Initial Status'!AB58","v":0},{"$f":"'Initial Status'!AC58","v":0},{"$f":"'Initial Status'!AD58","v":0},{"$f":"'Initial Status'!AE58","v":0},{"$f":"'Initial Status'!AF58","v":0},{"$f":"'Initial Status'!AG58","v":0},{"$f":"'Initial Status'!AH58","v":0},{"$f":"'Initial Status'!AI58","v":0}]
[null,null,null,"Sacred and/or religious",null,"Nº of Religious events (within 1 km of coastal zone)","nº/km2",null,null,null,null,null,null,null,false,null,{"$f":"'Initial Status'!P59","v":0},{"$f":"'Initial Status'!Q59","v":0},{"$f":"'Initial Status'!R59","v":0},{"$f":"'Initial Status'!S59","v":0},{"$f":"'Initial Status'!T59","v":0},{"$f":"'Initial Status'!U59","v":0},{"$f":"'Initial Status'!V59","v":0},{"$f":"'Initial Status'!W59","v":0},{"$f":"'Initial Status'!X59","v":0},{"$f":"'Initial Status'!Y59","v":0},{"$f":"'Initial Status'!Z59","v":0},{"$f":"'Initial Status'!AA59","v":0},{"$f":"'Initial Status'!AB59","v":0},{"$f":"'Initial Status'!AC59","v":0},{"$f":"'Initial Status'!AD59","v":0},{"$f":"'Initial Status'!AE59","v":0},{"$f":"'Initial Status'!AF59","v":0},{"$f":"'Initial Status'!AG59","v":0},{"$f":"'Initial Status'!AH59","v":0},{"$f":"'Initial Status'!AI59","v":0}]
[null,null,"Other cultural outputs","Existence",null,"Nº of offers for health treatments (within 1 km of coastal zone)","nº*capacity/km2",null,null,null,null,null,null,null,false,null,{"$f":"'Initial Status'!P60","v":0},{"$f":"'Initial Status'!Q60","v":0},{"$f":"'Initial Status'!R60","v":0},{"$f":"'Initial Status'!S60","v":0},{"$f":"'Initial Status'!T60","v":0},{"$f":"'Initial Status'!U60","v":0},{"$f":"'Initial Status'!V60","v":0},{"$f":"'Initial Status'!W60","v":0},{"$f":"'Initial Status'!X60","v":0},{"$f":"'Initial Status'!Y60","v":0},{"$f":"'Initial Status'!Z60","v":0},{"$f":"'Initial Status'!AA60","v":0},{"$f":"'Initial Status'!AB60","v":0},{"$f":"'Initial Status'!AC60","v":0},{"$f":"'Initial Status'!AD60","v":0},{"$f":"'Initial Status'!AE60","v":0},{"$f":"'Initial Status'!AF60","v":0},{"$f":"'Initial Status'!AG60","v":0},{"$f":"'Initial Status'!AH60","v":0},{"$f":"'Initial Status'!AI60","v":0}]
[null,null,null,"Bequest",null,"Extent of marine protected areas","km2 / km2",null,null,null,null,null,null,null,false,null,{"$f":"'Initial Status'!P61","v":0},{"$f":"'Initial Status'!Q61","v":0},{"$f":"'Initial Status'!R61","v":0},{"$f":"'Initial Status'!S61","v":0},{"$f":"'Initial Status'!T61","v":0},{"$f":"'Initial Status'!U61","v":0},{"$f":"'Initial Status'!V61","v":0},{"$f":"'Initial Status'!W61","v":0},{"$f":"'Initial Status'!X61","v":0},{"$f":"'Initial Status'!Y61","v":0},{"$f":"'Initial Status'!Z61","v":0},{"$f":"'Initial Status'!AA61","v":0},{"$f":"'Initial Status'!AB61","v":0},{"$f":"'Initial Status'!AC61","v":0},{"$f":"'Initial Status'!AD61","v":0},{"$f":"'Initial Status'!AE61","v":0},{"$f":"'Initial Status'!AF61","v":0},{"$f":"'Initial Status'!AG61","v":0},{"$f":"'Initial Status'!AH61","v":0},{"$f":"'Initial Status'!AI61","v":0}]

{"sheet":"Initial and Present Status","index":8,"n_rows":61,"n_cols":13,"rows_kept":61,"cut":false,"hidden":false,"merged":[[5,0,18,0],[5,1,13,1],[5,2,11,2],[14,1,16,1],[24,1,28,1],[24,2,25,2],[26,2,28,2],[20,1,23,1],[20,2,23,2],[14,2,15,2],[17,1,18,1],[17,2,18,2],[20,0,46,0],[29,2,34,2],[42,2,46,2],[37,2,38,2],[35,3,36,3],[48,0,60,0],[48,1,56,1],[48,2,51,2],[49,3,51,3],[52,2,56,2],[52,3,53,3],[57,1,60,1],[57,2,58,2],[59,2,60,2],[2,9,2,12],[2,5,2,7],[42,3,45,3],[29,3,34,3],[20,3,22,3],[2,0,2,3],[5,3,6,3],[7,3,8,3],[9,3,10,3],[11,3,12,3],[37,3,38,3],[39,2,41,2],[39,3,41,3],[29,1,46,1],[26,3,28,3],[35,2,36,2]]}
[]
[]
["Ecosystem Services Classification",null,null,null,null,"\"Initial Status Assessment\"",null,null,null,"\"Present Status Assessment\""]
[]
["Section","Division","Group","Class",null," Indicator","Units","Value",null," Indicator","Units","Value","Class of change"]
["Provisioning Services","Nutrition","Biomass","Wild plants, algae and their outputs",null,"Harvest","Ton/yr./km2",{"$f":"IF(ISBLANK('Initial Status'!H6),\"\",'Initial Status'!H6)","v":""},null,"Harvest","Ton/yr./km2",{"$f":"IF(ISBLANK('Present Status'!H6),\"\",'Present Status'!H6)","v":""},{"$f":"IF(ISBLANK('Present Status'!I6),\"\",'Present Status'!I6)","v":""}]
[null,null,null,null,null,"Nº of Species ","nº/km2",{"$f":"IF(ISBLANK('Initial Status'!H7),\"\",'Initial Status'!H7)","v":""},null,"Nº of Species ","nº/km2",{"$f":"IF(ISBLANK('Present Status'!H7),\"\",'Present Status'!H7)","v":""},{"$f":"IF(ISBLANK('Present Status'!I7),\"\",'Present Status'!I7)","v":""}]
[null,null,null,"Wild animals and their outputs",null,"Landings","Ton/yr./km2",{"$f":"IF(ISBLANK('Initial Status'!H8),\"\",'Initial Status'!H8)","v":""},null,"Landings","Ton/yr./km2",{"$f":"IF(ISBLANK('Present Status'!H8),\"\",'Present Status'!H8)","v":""},{"$f":"IF(ISBLANK('Present Status'!I8),\"\",'Present Status'!I8)","v":""}]
[null,null,null,null,null,"Landing of key market species","Ton/yr./km2",{"$f":"IF(ISBLANK('Initial Status'!H9),\"\",'Initial Status'!H9)","v":""},null,"Landing of key market species","Ton/yr./km2",{"$f":"IF(ISBLANK('Present Status'!H9),\"\",'Present Status'!H9)","v":""},{"$f":"IF(ISBLANK('Present Status'!I9),\"\",'Present Status'!I9)","v":""}]
[null,null,null,"Animals from in situ aquaculture",null,"Harvest","Ton/a",{"$f":"IF(ISBLANK('Initial Status'!H10),\"\",'Initial Status'!H10)","v":""},null,"Harvest","Ton/a",{"$f":"IF(ISBLANK('Present Status'!H10),\"\",'Present Status'!H10)","v":""},{"$f":"IF(ISBLANK('Present Status'!I10),\"\",'Present Status'!I10)","v":""}]
[null,null,null,null,null,"Nº of Species ","nº/km2",{"$f":"IF(ISBLANK('Initial Status'!H11),\"\",'Initial Status'!H11)","v":""},null,"Nº of Species ","nº/km2",{"$f":"IF(ISBLANK('Present Status'!H11),\"\",'Present Status'!H11)","v":""},{"$f":"IF(ISBLANK('Present Status'!I11),\"\",'Present Status'!I11)","v":""}]
[null,null,null,"Plants and algae from in situ aquaculture",null,"Harvest","Ton/a",{"$f":"IF(ISBLANK('Initial Status'!H12),\"\",'Initial Status'!H12)","v":""},null,"Harvest","Ton/a",{"$f":"IF(ISBLANK('Present Status'!H12),\"\",'Present Status'!H12)","v":""},{"$f":"IF(ISBLANK('Present Status'!I12),\"\",'Present Status'!I12)","v":""}]
[null,null,null,null,null,"Nº of Species ","nº/km2",{"$f":"IF(ISBLANK('Initial Status'!H13),\"\",'Initial Status'!H13)","v":""},null,"Nº of Species ","nº/km2",{"$f":"IF(ISBLANK('Present Status'!H13),\"\",'Present Status'!H13)","v":""},{"$f":"IF(ISBLANK('Present Status'!I13),\"\",'Present Status'!I13)","v":""}]
[null,null,"Water","Surface water for drinking purposes",null,"Use of Water","m3/km2",{"$f":"IF(ISBLANK('Initial Status'!H14),\"\",'Initial Status'!H14)","v":""},null,"Use of Water","m3/km2",{"$f":"IF(ISBLANK('Present Status'!H14),\"\",'Present Status'!H14)","v":""},{"$f":"IF(ISBLANK('Present Status'!I14),\"\",'Present Status'!I14)","v":""}]
[null,"Materials","Biomass","Fibres and other materials from plants, algae and animals for direct use or processing",null,"Harvest","Ton/yr./km2",{"$f":"IF(ISBLANK('Initial Status'!H15),\"\",'Initial Status'!H15)","v":""},null,"Harvest","Ton/yr./km2",{"$f":"IF(ISBLANK('Present Status'!H15),\"\",'Present Status'!H15)","v":""},{"$f":"IF(ISBLANK('Present Status'!I15),\"\",'Present Status'!I15)","v":""}]
[null,null,null,"Materials from plants, algae and animals for agriculture",null,"Harvest","Ton/yr./km2",{"$f":"IF(ISBLANK('Initial Status'!H16),\"\",'Initial Status'!H16)","v":""},null,"Harvest","Ton/yr./km2",{"$f":"IF(ISBLANK('Present Status'!H16),\"\",'Present Status'!H16)","v":""},{"$f":"IF(ISBLANK('Present Status'!I16),\"\",'Present Status'!I16)","v":""}]
[null,null,"Water","Surface Water for non-drinking purposes",null,"Use of Water","m3/km2",{"$f":"IF(ISBLANK('Initial Status'!H17),\"\",'Initial Status'!H17)","v":""},null,"Use of Water","m3/km2",{"$f":"IF(ISBLANK('Present Status'!H17),\"\",'Present Status'!H17)","v":""},{"$f":"IF(ISBLANK('Present Status'!I17),\"\",'Present Status'!I17)","v":""}]
[null,"Energy","Biomass-based energy resources ","Plant based resources",null,"Use ","Ton/yr./km2",{"$f":"IF(ISBLANK('Initial Status'!H18),\"\",'Initial Status'!H18)","v":""},null,"Use ","Ton/yr./km2",{"$f":"IF(ISBLANK('Present Status'!H18),\"\",'Present Status'!H18)","v":""},{"$f":"IF(ISBLANK('Present Status'!I18),\"\",'Present Status'!I18)","v":""}]
[null,null,null,"Animal based resources",null,"Use","Ton/yr./km2",{"$f":"IF(ISBLANK('Initial Status'!H19),\"\",'Initial Status'!H19)","v":""},null,"Use","Ton/yr./km2",{"$f":"IF(ISBLANK('Present Status'!H19),\"\",'Present Status'!H19)","v":""},{"$f":"IF(ISBLANK('Present Status'!I19),\"\",'Present Status'!I19)","v":""}]
["Section","Division","Group","Class",null," Indicator","Units","Value",null," Indicator","Units","Value",{"$f":"'Present Status'!I20","v":"Class of change"}]
["Regulating and Maintenance Services","Mediation of waste, toxics and other nuisances","Mediation by ecosystems ","Filtration /sequestration /storage /accumulation by ecosystems ",null,"N-fixation","kg/yr./km2",{"$f":"IF(ISBLANK('Initial Status'!H21),\"\",'Initial Status'!H21)","v":""},null,"N-fixation","kg/yr./km2",{"$f":"IF(ISBLANK('Present Status'!H21),\"\",'Present Status'!H21)","v":""},{"$f":"IF(ISBLANK('Present Status'!I21),\"\",'Present Status'!I21)","v":""}]
[null,null,null,null,null,"Burial","kg/yr./km2",{"$f":"IF(ISBLANK('Initial Status'!H22),\"\",'Initial Status'!H22)","v":""},null,"Burial","kg/yr./km2",{"$f":"IF(ISBLANK('Present Status'!H22),\"\",'Present Status'!H22)","v":""},{"$f":"IF(ISBLANK('Present Status'!I22),\"\",'Present Status'!I22)","v":""}]
[null,null,null,null,null,"Denitrification","kg/yr./km2",{"$f":"IF(ISBLANK('Initial Status'!H23),\"\",'Initial Status'!H23)","v":""},null,"Denitrification","kg/yr./km2",{"$f":"IF(ISBLANK('Present Status'!H23),\"\",'Present Status'!H23)","v":""},{"$f":"IF(ISBLANK('Present Status'!I23),\"\",'Present Status'!I23)","v":""}]
[null,null,null,"Dilution by atmosphere, freshwater and marine ecosystems",null,"Average of beach closures per year","Nº/km2",{"$f":"IF(ISBLANK('Initial Status'!H24),\"\",'Initial Status'!H24)","v":""},null,"Average of beach closures per year","Nº/km2",{"$f":"IF(ISBLANK('Present Status'!H24),\"\",'Present Status'!H24)","v":""},{"$f":"IF(ISBLANK('Present Status'!I24),\"\",'Present Status'!I24)","v":""}]
[null,"Mediations of Flow","Mass Flows","Mass stabilisation and control of erosion rates",null,"Extent of selected emerged, submerged and intertidal habitats","km2/km2",{"$f":"IF(ISBLANK('Initial Status'!H25),\"\",'Initial Status'!H25)","v":""},null,"Extent of selected emerged, submerged and intertidal habitats","km2/km2",{"$f":"IF(ISBLANK('Present Status'!H25),\"\",'Present Status'!H25)","v":""},{"$f":"IF(ISBLANK('Present Status'!I25),\"\",'Present Status'!I25)","v":""}]
[null,null,null,"Buffering and attenuation of mass flows",null,"Sediment accumulation rate","cm/yr.",{"$f":"IF(ISBLANK('Initial Status'!H26),\"\",'Initial Status'!H26)","v":""},null,"Sediment accumulation rate","cm/yr.",{"$f":"IF(ISBLANK('Present Status'!H26),\"\",'Present Status'!H26)","v":""},{"$f":"IF(ISBLANK('Present Status'!I26),\"\",'Present Status'!I26)","v":""}]
[null,null,"Liquid  Flows","Flood Protection",null,"Shoreline erosion rate"," mm/yr./km2",{"$f":"IF(ISBLANK('Initial Status'!H27),\"\",'Initial Status'!H27)","v":""},null,"Shoreline erosion rate"," mm/yr./km2",{"$f":"IF(ISBLANK('Present Status'!H27),\"\",'Present Status'!H27)","v":""},{"$f":"IF(ISBLANK('Present Status'!I27),\"\",'Present Status'!I27)","v":""}]
[null,null,null,null,null,"Maximum depth (to calculate maximum wave hight) ","m",{"$f":"IF(ISBLANK('Initial Status'!H28),\"\",'Initial Status'!H28)","v":""},null,"Maximum depth (to calculate maximum wave hight) ","m",{"$f":"IF(ISBLANK('Present Status'!H28),\"\",'Present Status'!H28)","v":""},{"$f":"IF(ISBLANK('Present Status'!I28),\"\",'Present Status'!I28)","v":""}]
[null,null,null,null,null,"Design-basis Flood ","m",{"$f":"IF(ISBLANK('Initial Status'!H29),\"\",'Initial Status'!H29)","v":""},null,"Design-basis Flood ","m",{"$f":"IF(ISBLANK('Present Status'!H29),\"\",'Present Status'!H29)","v":""},{"$f":"IF(ISBLANK('Present Status'!I29),\"\",'Present Status'!I29)","v":""}]
[null,"Maintenance of physical, chemical, biological conditions","Lifecycle maintenance, habitat and gene pool protection","Maintaining nursery populations and habitats",null,"Submerged and intertidal habitats diversity","Nº/km2",{"$f":"IF(ISBLANK('Initial Status'!H30),\"\",'Initial Status'!H30)","v":""},null,"Submerged and intertidal habitats diversity","Nº/km2",{"$f":"IF(ISBLANK('Present Status'!H30),\"\",'Present Status'!H30)","v":""},{"$f":"IF(ISBLANK('Present Status'!I30),\"\",'Present Status'!I30)","v":""}]
[null,null,null,null,null,"Occurence of Oxygen concentration < 6 mg/L","days/yr.",{"$f":"IF(ISBLANK('Initial Status'!H31),\"\",'Initial Status'!H31)","v":""},null,"Oxygen concentration","mg/L",{"$f":"IF(ISBLANK('Present Status'!H31),\"\",'Present Status'!H31)","v":""},{"$f":"IF(ISBLANK('Present Status'!I31),\"\",'Present Status'!I31)","v":""}]
[null,null,null,null,null,"Secchi depth","m",{"$f":"IF(ISBLANK('Initial Status'!H32),\"\",'Initial Status'!H32)","v":""},null,"Secchi depth","m",{"$f":"IF(ISBLANK('Present Status'!H32),\"\",'Present Status'!H32)","v":""},{"$f":"IF(ISBLANK('Present Status'!I32),\"\",'Present Status'!I32)","v":""}]
[null,null,null,null,null,"Species distribution","Km2/km2",{"$f":"IF(ISBLANK('Initial Status'!H33),\"\",'Initial Status'!H33)","v":""},null,"Species distribution","Km2/km2",{"$f":"IF(ISBLANK('Present Status'!H33),\"\",'Present Status'!H33)","v":""},{"$f":"IF(ISBLANK('Present Status'!I33),\"\",'Present Status'!I33)","v":""}]
[null,null,null,null,null,"Nursery areas ","Km2/km2",{"$f":"IF(ISBLANK('Initial Status'!H34),\"\",'Initial Status'!H34)","v":""},null,"Nursery areas ","Km2/km2",{"$f":"IF(ISBLANK('Present Status'!H34),\"\",'Present Status'!H34)","v":""},{"$f":"IF(ISBLANK('Present Status'!I34),\"\",'Present Status'!I34)","v":""}]
[null,null,null,null,null,"% of nursery areas which are protected","Km2/km2",{"$f":"IF(ISBLANK('Initial Status'!H35),\"\",'Initial Status'!H35)","v":""},null,"% of nursery areas which are protected","Km2/km2",{"$f":"IF(ISBLANK('Present Status'!H35),\"\",'Present Status'!H35)","v":""},{"$f":"IF(ISBLANK('Present Status'!I35),\"\",'Present Status'!I35)","v":""}]
[null,null,"Pest and disease control","Pest and Disease control",null,"Harmful Algal Bloom Outbreaks","Nº/km2",{"$f":"IF(ISBLANK('Initial Status'!H36),\"\",'Initial Status'!H36)","v":""},null,"Harmful Algal Bloom Outbreaks","Nº/km2",{"$f":"IF(ISBLANK('Present Status'!H36),\"\",'Present Status'!H36)","v":""},{"$f":"IF(ISBLANK('Present Status'!I36),\"\",'Present Status'!I36)","v":""}]
[null,null,null,null,null,"Presence of alien species","Km2/km2",{"$f":"IF(ISBLANK('Initial Status'!H37),\"\",'Initial Status'!H37)","v":""},null,"Presence of alien species","Km2/km2",{"$f":"IF(ISBLANK('Present Status'!H37),\"\",'Present Status'!H37)","v":""},{"$f":"IF(ISBLANK('Present Status'!I37),\"\",'Present Status'!I37)","v":""}]
[null,null,"Soil formation and composition","Decomposition and fixing processes",null,"Nitrogen removal","% ",{"$f":"IF(ISBLANK('Initial Status'!H38),\"\",'Initial Status'!H38)","v":""},null,"Nitrogen removal","% ",{"$f":"IF(ISBLANK('Present Status'!H38),\"\",'Present Status'!H38)","v":""},{"$f":"IF(ISBLANK('Present Status'!I38),\"\",'Present Status'!I38)","v":""}]
[null,null,null,null,null,"Water residence time","Months",{"$f":"IF(ISBLANK('Initial Status'!H39),\"\",'Initial Status'!H39)","v":""},null,"Water residence time","Months",{"$f":"IF(ISBLANK('Present Status'!H39),\"\",'Present Status'!H39)","v":""},{"$f":"IF(ISBLANK('Present Status'!I39),\"\",'Present Status'!I39)","v":""}]
[null,null,"Water conditions","Chemical condition of salt waters",null,"Nutrients concentration","mg/L",{"$f":"IF(ISBLANK('Initial Status'!H40),\"\",'Initial Status'!H40)","v":""},null,"Nutrients concentration","mg/L",{"$f":"IF(ISBLANK('Present Status'!H40),\"\",'Present Status'!H40)","v":""},{"$f":"IF(ISBLANK('Present Status'!I40),\"\",'Present Status'!I40)","v":""}]
[null,null,null,null,null,"Salinity","PSU",{"$f":"IF(ISBLANK('Initial Status'!H41),\"\",'Initial Status'!H41)","v":""},null,"Salinity","PSU",{"$f":"IF(ISBLANK('Present Status'!H41),\"\",'Present Status'!H41)","v":""},{"$f":"IF(ISBLANK('Present Status'!I41),\"\",'Present Status'!I41)","v":""}]
[null,null,null,null,null,"Oxygen Concentration","mg/L",{"$f":"IF(ISBLANK('Initial Status'!H42),\"\",'Initial Status'!H42)","v":""},null,"Oxygen Concentration","mg/L",{"$f":"IF(ISBLANK('Present Status'!H42),\"\",'Present Status'!H42)","v":""},{"$f":"IF(ISBLANK('Present Status'!I42),\"\",'Present Status'!I42)","v":""}]
[null,null,"Atmospheric composition and climate regulation","Global climate regulation by reduction of greenhouse gas concentrations",null,"C stock","tonC/km2",{"$f":"IF(ISBLANK('Initial Status'!H43),\"\",'Initial Status'!H43)","v":""},null,"C stock","tonC/km2",{"$f":"IF(ISBLANK('Present Status'!H43),\"\",'Present Status'!H43)","v":""},{"$f":"IF(ISBLANK('Present Status'!I43),\"\",'Present Status'!I43)","v":""}]
[null,null,null,null,null,"C sequestration","tonC/yr./km2",{"$f":"IF(ISBLANK('Initial Status'!H44),\"\",'Initial Status'!H44)","v":""},null,"C sequestration","tonC/yr./km2",{"$f":"IF(ISBLANK('Present Status'!H44),\"\",'Present Status'!H44)","v":""},{"$f":"IF(ISBLANK('Present Status'!I44),\"\",'Present Status'!I44)","v":""}]
[null,null,null,null,null,"pH",null,{"$f":"IF(ISBLANK('Initial Status'!H45),\"\",'Initial Status'!H45)","v":""},null,"pH",null,{"$f":"IF(ISBLANK('Present Status'!H45),\"\",'Present Status'!H45)","v":""},{"$f":"IF(ISBLANK('Present Status'!I45),\"\",'Present Status'!I45)","v":""}]
[null,null,null,null,null,"PP","tonC/yr./km2",{"$f":"IF(ISBLANK('Initial Status'!H46),\"\",'Initial Status'!H46)","v":""},null,"PP","tonC/yr./km2",{"$f":"IF(ISBLANK('Present Status'!H46),\"\",'Present Status'!H46)","v":""},{"$f":"IF(ISBLANK('Present Status'!I46),\"\",'Present Status'!I46)","v":""}]
[null,null,null,"Micro and regional climate regulation",null,"Evaporation rate","per km2",{"$f":"IF(ISBLANK('Initial Status'!H47),\"\",'Initial Status'!H47)","v":""},null,"Evaporation rate","per km2",{"$f":"IF(ISBLANK('Present Status'!H47),\"\",'Present Status'!H47)","v":""},{"$f":"IF(ISBLANK('Present Status'!I47),\"\",'Present Status'!I47)","v":""}]
["Section","Division","Group","Class",null," Indicator","Units","Value",null," Indicator","Units","Value",{"$f":"'Present Status'!I48","v":"Class of change"}]
["Cultural Services","Physical and Intellectual interactions with biota, ecosystems, and land-/seascapes [environmental settings]","Physical and experiential interactions","Experiential use of plants, animals and land-/seascapes in different environmental settings",null,"nº of visitors taking part in activities related to biota","nº/yr/km2",{"$f":"IF(ISBLANK('Initial Status'!H49),\"\",'Initial Status'!H49)","v":""},null,"nº of visitors taking part in activities related to biota","nº/yr/km2",{"$f":"IF(ISBLANK('Present Status'!H49),\"\",'Present Status'!H49)","v":""},{"$f":"IF(ISBLANK('Present Status'!I49),\"\",'Present Status'!I49)","v":""}]
[null,null,null,"Physical use of land-/seascapes in different environmental settings",null,"nº of tourists (within 1 km of coastal zone) ","nº/km2",{"$f":"IF(ISBLANK('Initial Status'!H50),\"\",'Initial Status'!H50)","v":""},null,"Nº of tourists (within 1 km of coastal zone) ","nº/km2",{"$f":"IF(ISBLANK('Present Status'!H50),\"\",'Present Status'!H50)","v":""},{"$f":"IF(ISBLANK('Present Status'!I50),\"\",'Present Status'!I50)","v":""}]
[null,null,null,null,null,"nº of ship berths in the marinas","nº/km2",{"$f":"IF(ISBLANK('Initial Status'!H51),\"\",'Initial Status'!H51)","v":""},null,"Nº of ship berths in the marinas","nº/km2",{"$f":"IF(ISBLANK('Present Status'!H51),\"\",'Present Status'!H51)","v":""},{"$f":"IF(ISBLANK('Present Status'!I51),\"\",'Present Status'!I51)","v":""}]
[null,null,null,null,null,"nº of Tourist Boat","nº*capacity/km2",{"$f":"IF(ISBLANK('Initial Status'!H52),\"\",'Initial Status'!H52)","v":""},null,"Nº of Tourist Boat","nº*capacity/km2",{"$f":"IF(ISBLANK('Present Status'!H52),\"\",'Present Status'!H52)","v":""},{"$f":"IF(ISBLANK('Present Status'!I52),\"\",'Present Status'!I52)","v":""}]
[null,null,"Intellectual and representative interactions","Scientific and Educational",null,"Scientific studies, Documentaries, educational publications","Nº/yr./km2",{"$f":"IF(ISBLANK('Initial Status'!H53),\"\",'Initial Status'!H53)","v":""},null,"Scientific studies, Documentaries, educational publications","Nº/yr./km2",{"$f":"IF(ISBLANK('Present Status'!H53),\"\",'Present Status'!H53)","v":""},{"$f":"IF(ISBLANK('Present Status'!I53),\"\",'Present Status'!I53)","v":""}]
[null,null,null,null,null,"Visits to scientific and artistic exhibits","Nº/yr",{"$f":"IF(ISBLANK('Initial Status'!H54),\"\",'Initial Status'!H54)","v":""},null,"Visits to scientific and artistic exhibits","Nº/yr",{"$f":"IF(ISBLANK('Present Status'!H54),\"\",'Present Status'!H54)","v":""},{"$f":"IF(ISBLANK('Present Status'!I54),\"\",'Present Status'!I54)","v":""}]
[null,null,null,"Heritage, cultural",null,"nº of cultural and heritage sites","nº/km2",{"$f":"IF(ISBLANK('Initial Status'!H55),\"\",'Initial Status'!H55)","v":""},null,"nº of cultural and heritage sites","nº/km2",{"$f":"IF(ISBLANK('Present Status'!H55),\"\",'Present Status'!H55)","v":""},{"$f":"IF(ISBLANK('Present Status'!I55),\"\",'Present Status'!I55)","v":""}]
[null,null,null,"Entertainment",null,"nº of movies and broadcasts in the area","nº/km2",{"$f":"IF(ISBLANK('Initial Status'!H56),\"\",'Initial Status'!H56)","v":""},null,"Nº of movies and broadcasts in the area","nº/km2",{"$f":"IF(ISBLANK('Present Status'!H56),\"\",'Present Status'!H56)","v":""},{"$f":"IF(ISBLANK('Present Status'!I56),\"\",'Present Status'!I56)","v":""}]
[null,null,null,"Aesthetic",null,"Nº of pictures","Nº/yr./km2",{"$f":"IF(ISBLANK('Initial Status'!H57),\"\",'Initial Status'!H57)","v":""},null,"Nº of pictures","Nº/yr./km2",{"$f":"IF(ISBLANK('Present Status'!H57),\"\",'Present Status'!H57)","v":""},{"$f":"IF(ISBLANK('Present Status'!I57),\"\",'Present Status'!I57)","v":""}]
[null,"Spiritual, symbolic and other interactions with biota, ecosystems, and land-/seascapes ","Spiritual and/or emblematic","Symbolic",null,"Nº of Red List and iconic species","nº/km2",{"$f":"IF(ISBLANK('Initial Status'!H58),\"\",'Initial Status'!H58)","v":""},null,"Nº of Red List and iconic species","nº/km2",{"$f":"IF(ISBLANK('Present Status'!H58),\"\",'Present Status'!H58)","v":""},{"$f":"IF(ISBLANK('Present Status'!I58),\"\",'Present Status'!I58)","v":""}]
[null,null,null,"Sacred and/or religious",null,"nº of Religious events (within 1 km of coastal zone)","nº/km2",{"$f":"IF(ISBLANK('Initial Status'!H59),\"\",'Initial Status'!H59)","v":""},null,"Nº of Religious events (within 1 km of coastal zone)","nº/km2",{"$f":"IF(ISBLANK('Present Status'!H59),\"\",'Present Status'!H59)","v":""},{"$f":"IF(ISBLANK('Present Status'!I59),\"\",'Present Status'!I59)","v":""}]
[null,null,"Other cultural outputs","Existence",null,"nº of offers for health treatments (within 1 km of coastal zone)","nº*capacity/km2",{"$f":"IF(ISBLANK('Initial Status'!H60),\"\",'Initial Status'!H60)","v":""},null,"Nº of offers for health treatments (within 1 km of coastal zone)","nº*capacity/km2",{"$f":"IF(ISBLANK('Present Status'!H60),\"\",'Present Status'!H60)","v":""},{"$f":"IF(ISBLANK('Present Status'!I60),\"\",'Present Status'!I60)","v":""}]
[null,null,null,"Bequest",null,"Extent of marine protected areas","km2 / km2",{"$f":"IF(ISBLANK('Initial Status'!H61),\"\",'Initial Status'!H61)","v":""},null,"Extent of marine protected areas","km2 / km2",{"$f":"IF(ISBLANK('Present Status'!H61),\"\",'Present Status'!H61)","v":""},{"$f":"IF(ISBLANK('Present Status'!I61),\"\",'Present Status'!I61)","v":""}]

{"sheet":"ES Assessment","index":9,"n_rows":56,"n_cols":24,"rows_kept":56,"cut":false,"hidden":false,"merged":[[52,18,53,18],[52,19,53,19],[54,18,55,18],[54,19,55,19],[38,19,42,19],[38,20,41,20],[38,21,41,21],[43,14,55,14],[43,15,55,15],[43,16,51,16],[43,17,51,17],[43,18,46,18],[43,19,46,19],[44,20,46,20],[44,21,46,21],[47,18,51,18],[47,19,51,19],[47,20,48,20],[47,21,48,21],[52,16,55,16],[16,14,42,14],[16,15,42,15],[25,16,42,16],[35,20,37,20],[16,20,18,20],[16,21,18,21],[35,21,37,21],[25,19,30,19],[25,20,30,20],[25,21,30,21],[31,18,32,18],[31,19,32,19],[31,20,32,20],[31,21,32,21],[19,18,21,18],[19,19,21,19],[22,18,24,18],[22,19,24,19],[22,20,24,20],[22,21,24,21],[25,18,30,18],[33,18,34,18],[33,19,34,19],[33,20,34,20],[33,21,34,21],[35,18,37,18],[35,19,37,19],[2,20,3,20],[2,21,3,21],[4,20,5,20],[4,21,5,21],[6,20,7,20],[6,21,7,21],[8,20,9,20],[8,21,9,21],[11,19,12,19],[14,19,15,19],[16,19,18,19],[19,16,24,16],[19,17,24,17],[25,17,42,17],[38,18,42,18],[1,14,1,15],[1,16,1,17],[1,18,1,19],[2,19,9,19],[14,16,15,16],[2,14,15,14],[2,15,15,15],[2,16,10,16],[2,17,10,17],[2,18,9,18],[11,16,13,16],[11,17,13,17],[11,18,12,18],[16,16,18,16],[16,17,18,17],[16,18,18,18],[14,17,15,17],[14,18,15,18],[1,20,1,21],[1,22,1,23],[16,1,42,1],[38,5,42,5],[38,6,42,6],[16,4,18,4],[16,3,18,3],[19,4,24,4],[19,3,24,3],[25,4,42,4],[25,3,42,3],[31,5,32,5],[31,6,32,6],[33,6,34,6],[33,5,34,5],[16,2,42,2],[35,5,37,5],[35,6,37,6],[22,8,24,8],[2,1,15,1],[1,9,1,10],[1,7,1,8],[1,5,1,6],[1,3,1,4],[1,1,1,2],[11,5,12,5],[11,6,12,6],[14,5,15,5],[14,6,15,6],[2,3,10,3],[2,4,10,4],[14,4,15,4],[11,3,13,3],[11,4,13,4],[2,2,15,2],[4,7,5,7],[4,8,5,8],[2,5,9,5],[2,6,9,6],[6,7,7,7],[6,8,7,8],[8,8,9,8],[8,7,9,7],[2,7,3,7],[2,8,3,8],[22,5,24,5],[25,6,30,6],[25,5,30,5],[19,6,21,6],[22,7,24,7],[25,8,30,8],[25,7,30,7],[14,3,15,3],[16,8,18,8],[16,7,18,7],[16,5,18,5],[16,6,18,6],[19,5,21,5],[38,8,41,8],[38,7,41,7],[31,8,32,8],[31,7,32,7],[33,8,34,8],[33,7,34,7],[35,8,37,8],[35,7,37,7],[22,6,24,6],[52,17,55,17],[43,2,55,2],[44,8,46,8],[44,7,46,7],[43,6,46,6],[43,5,46,5],[43,1,55,1],[52,6,53,6],[52,5,53,5],[54,6,55,6],[54,5,55,5],[43,3,51,3],[43,4,51,4],[52,4,55,4],[52,3,55,3],[47,8,48,8],[47,7,48,7],[47,5,51,5],[47,6,51,6]]}
[]
[null,"Section",null,"Division",null,"Group",null,"Class",null,"Indicators",null,null,null,null,"Section",null,"Division",null,"Group",null,"Class",null,"Indicators"]
[null,"Provisioning Services",{"$f":"ROUND(AVERAGE(E3:E16),0)","v":{"$error":"#DIV/0!"}},"Nutrition",{"$f":"ROUND(AVERAGE(G3:G11),0)","v":{"$error":"#DIV/0!"}},"Biomass",{"$f":"ROUND(AVERAGE(I3:I10),0)","v":{"$error":"#DIV/0!"}},"Wild plants, algae and their outputs",{"$f":"AVERAGE(K3:K4)","v":{"$error":"#DIV/0!"}},"Harvest",{"$f":"IF(ISBLANK('Initial and Present Status'!M6),\"\",'Initial and Present Status'!M6)","v":""},null,null,null,"Provisioning Services",{"$f":"IFERROR(ROUND(AVERAGE(R3:R16),0),\"\")","v":""},"Nutrition",{"$f":"IFERROR(ROUND(AVERAGE(T3:T11),0),\"\")","v":""},"Biomass",{"$f":"IFERROR(ROUND(AVERAGE(V3:V10),0),\"\")","v":""},"Wild plants, algae and their outputs",{"$f":"IFERROR(ROUND(AVERAGE(X3:X4),0),\"\")","v":""},"Harvest",{"$f":"IFERROR(VALUE(K3),\"\")","v":""}]
[null,null,null,null,null,null,null,null,null,"Nº of Species ",{"$f":"IF(ISBLANK('Initial and Present Status'!M7),\"\",'Initial and Present Status'!M7)","v":""},null,null,null,null,null,null,null,null,null,null,null,"Nº of Species ",""]
[null,null,null,null,null,null,null,"Wild animals and their outputs",{"$f":"ROUND(AVERAGE(K5:K6),0)","v":{"$error":"#DIV/0!"}},"Landings",{"$f":"IF(ISBLANK('Initial and Present Status'!M8),\"\",'Initial and Present Status'!M8)","v":""},null,null,null,null,null,null,null,null,null,"Wild animals and their outputs",{"$f":"IFERROR(ROUND(AVERAGE(X5:X6),0),\"\")","v":""},"Landings",""]
[null,null,null,null,null,null,null,null,null,"Landing of key market species",{"$f":"IF(ISBLANK('Initial and Present Status'!M9),\"\",'Initial and Present Status'!M9)","v":""},null,null,null,null,null,null,null,null,null,null,null,"Landing of key market species",""]
[null,null,null,null,null,null,null,"Animals from in situ aquaculture",{"$f":"ROUND(AVERAGE(K7:K8),0)","v":{"$error":"#DIV/0!"}},"Harvest",{"$f":"IF(ISBLANK('Initial and Present Status'!M10),\"\",'Initial and Present Status'!M10)","v":""},null,null,null,null,null,null,null,null,null,"Animals from in situ aquaculture",{"$f":"IFERROR(ROUND(AVERAGE(X7:X8),0),\"\")","v":""},"Harvest",""]
[null,null,null,null,null,null,null,null,null,"Nº of Species ",{"$f":"IF(ISBLANK('Initial and Present Status'!M11),\"\",'Initial and Present Status'!M11)","v":""},null,null,null,null,null,null,null,null,null,null,null,"Nº of Species ",""]
[null,null,null,null,null,null,null,"Plants and algae from in situ aquaculture",{"$f":"ROUND(AVERAGE(K9:K10),0)","v":{"$error":"#DIV/0!"}},"Harvest",{"$f":"IF(ISBLANK('Initial and Present Status'!M12),\"\",'Initial and Present Status'!M12)","v":""},null,null,null,null,null,null,null,null,null,"Plants and algae from in situ aquaculture",{"$f":"IFERROR(ROUND(AVERAGE(X9:X10),0),\"\")","v":""},"Harvest",""]
[null,null,null,null,null,null,null,null,null,"Nº of Species ",{"$f":"IF(ISBLANK('Initial and Present Status'!M13),\"\",'Initial and Present Status'!M13)","v":""},null,null,null,null,null,null,null,null,null,null,null,"Nº of Species ",""]
[null,null,null,null,null,"Water",{"$f":"ROUND(AVERAGE(I11),0)","v":{"$error":"#DIV/0!"}},"Surface water for drinking purposes",{"$f":"ROUND(AVERAGE(K11),0)","v":{"$error":"#DIV/0!"}},"Use of Water",{"$f":"IF(ISBLANK('Initial and Present Status'!M14),\"\",'Initial and Present Status'!M14)","v":""},null,null,null,null,null,null,null,"Water",{"$f":"IFERROR(ROUND(AVERAGE(V11),0),\"\")","v":""},"Surface water for drinking purposes",{"$f":"IFERROR(ROUND(AVERAGE(X11),0),\"\")","v":""},"Use of Water",""]
[null,null,null,"Materials",{"$f":"ROUND(AVERAGE(G12:G14),0)","v":{"$error":"#DIV/0!"}},"Biomass",{"$f":"ROUND(AVERAGE(I12:I13),0)","v":{"$error":"#DIV/0!"}},"Fibres and other materials from plants, algae and animals for direct use or processing",{"$error":"#DIV/0!"},"Harvest",{"$f":"IF(ISBLANK('Initial and Present Status'!M15),\"\",'Initial and Present Status'!M15)","v":""},null,null,null,null,null,"Materials",{"$f":"IFERROR(ROUND(AVERAGE(T12:T14),0),\"\")","v":""},"Biomass",{"$f":"IFERROR(ROUND(AVERAGE(V12:V13),0),\"\")","v":""},"Fibres and other materials from plants, algae and animals for direct use or processing","","Harvest",""]
[null,null,null,null,null,null,null,"Materials from plants, algae and animals for agriculture",{"$error":"#DIV/0!"},"Harvest",{"$f":"IF(ISBLANK('Initial and Present Status'!M16),\"\",'Initial and Present Status'!M16)","v":""},null,null,null,null,null,null,null,null,null,"Materials from plants, algae and animals for agriculture","","Harvest",""]
[null,null,null,null,null,"Water",{"$f":"ROUND(AVERAGE(I14),0)","v":{"$error":"#DIV/0!"}},"Surface Water for non-drinking purposes",{"$error":"#DIV/0!"},"Use of Water",{"$f":"IF(ISBLANK('Initial and Present Status'!M17),\"\",'Initial and Present Status'!M17)","v":""},null,null,null,null,null,null,null,"Water",{"$f":"IFERROR(ROUND(AVERAGE(V14),0),\"\")","v":""},"Surface Water for non-drinking purposes","","Use of Water",""]
[null,null,null,"Energy",{"$f":"ROUND(AVERAGE(G15),0)","v":{"$error":"#DIV/0!"}},"Biomass-based energy resources ",{"$f":"ROUND(AVERAGE(I15:I16),0)","v":{"$error":"#DIV/0!"}},"Plant based resources",{"$error":"#DIV/0!"},"Use ",{"$f":"IF(ISBLANK('Initial and Present Status'!M18),\"\",'Initial and Present Status'!M18)","v":""},null,null,null,null,null,"Energy",{"$f":"IFERROR(ROUND(AVERAGE(T15),0),\"\")","v":""},"Biomass-based energy resources ",{"$f":"IFERROR(ROUND(AVERAGE(V15:V16),0),\"\")","v":""},"Plant based resources","","Use ",""]
[null,null,null,null,null,null,null,"Animal based resources",{"$error":"#DIV/0!"},"Use",{"$f":"IF(ISBLANK('Initial and Present Status'!M19),\"\",'Initial and Present Status'!M19)","v":""},null,null,null,null,null,null,null,null,null,"Animal based resources","","Use",""]
[null,"Regulating and Maintenance Services",{"$f":"'Initial and Present Status'!Q21","v":0},"Mediation of waste, toxics and other nuisances",{"$f":"'Initial and Present Status'!T21","v":0},"Mediation by ecosystems ",{"$f":"'Initial and Present Status'!W21","v":0},"Filtration/sequestration/storage/accumulation by ecosystems ",{"$f":"'Initial and Present Status'!Z21","v":0},"N-fixation",{"$f":"IF(ISBLANK('Initial and Present Status'!M21),\"\",'Initial and Present Status'!M21)","v":""},null,null,null,"Regulating and Maintenance Services",{"$f":"IFERROR(ROUND(AVERAGE(R17:R43),0),\"\")","v":""},"Mediation of waste, toxics and other nuisances",{"$f":"IFERROR(ROUND(AVERAGE(T17),0),\"\")","v":""},"Mediation by ecosystems ",{"$f":"IFERROR(ROUND(AVERAGE(V17),0),\"\")","v":""},"Filtration/sequestration/storage/accumulation by ecosystems ",{"$f":"IFERROR(ROUND(AVERAGE(X17:X19),0),\"\")","v":""},"N-fixation",""]
[null,null,null,null,null,null,null,null,null,"Burial",{"$f":"IF(ISBLANK('Initial and Present Status'!M22),\"\",'Initial and Present Status'!M22)","v":""},null,null,null,null,null,null,null,null,null,null,null,"Burial",""]
[null,null,null,null,null,null,null,null,null,"Denitrification",{"$f":"IF(ISBLANK('Initial and Present Status'!M23),\"\",'Initial and Present Status'!M23)","v":""},null,null,null,null,null,null,null,null,null,null,null,"Denitrification",""]
[null,null,null,"Mediations of Flow",{"$f":"'Initial and Present Status'!T22","v":0},"Mass Flows",{"$f":"'Initial and Present Status'!W22","v":0},"Dilution by atmosphere, freshwater and marine ecosystems",{"$f":"'Initial and Present Status'!Z22","v":0},"Average of beach closures per year",{"$f":"IF(ISBLANK('Initial and Present Status'!M24),\"\",'Initial and Present Status'!M24)","v":""},null,null,null,null,null,"Mediations of Flow",{"$f":"IFERROR(ROUND(AVERAGE(T20:T25),0),\"\")","v":""},"Mass Flows",{"$f":"IFERROR(ROUND(AVERAGE(V20:V22),0),\"\")","v":""},"Dilution by atmosphere, freshwater and marine ecosystems",{"$f":"IFERROR(ROUND(AVERAGE(X20),0),\"\")","v":""},"Average of beach closures per year",""]
[null,null,null,null,null,null,null,"Mass stabilisation and control of erosion rates",{"$f":"'Initial and Present Status'!Z23","v":0},"Extent of selected emerged, submerged and intertidal habitats",{"$f":"IF(ISBLANK('Initial and Present Status'!M25),\"\",'Initial and Present Status'!M25)","v":""},null,null,null,null,null,null,null,null,null,"Mass stabilisation and control of erosion rates",{"$f":"IFERROR(ROUND(AVERAGE(X21),0),\"\")","v":""},"Extent of selected emerged, submerged and intertidal habitats",""]
[null,null,null,null,null,null,null,"Buffering and attenuation of mass flows",{"$f":"'Initial and Present Status'!Z24","v":0},"Sediment accumulation rate",{"$f":"IF(ISBLANK('Initial and Present Status'!M26),\"\",'Initial and Present Status'!M26)","v":""},null,null,null,null,null,null,null,null,null,"Buffering and attenuation of mass flows",{"$f":"IFERROR(ROUND(AVERAGE(X22),0),\"\")","v":""},"Sediment accumulation rate",""]
[null,null,null,null,null,"Liquid  Flows",{"$f":"'Initial and Present Status'!W23","v":0},"Flood Protection",{"$f":"'Initial and Present Status'!Z25","v":0},"Shoreline erosion rate",{"$f":"IF(ISBLANK('Initial and Present Status'!M27),\"\",'Initial and Present Status'!M27)","v":""},null,null,null,null,null,null,null,"Liquid  Flows",{"$f":"IFERROR(ROUND(AVERAGE(V23),0),\"\")","v":""},"Flood Protection",{"$f":"IFERROR(ROUND(AVERAGE(X23:X25),0),\"\")","v":""},"Shoreline erosion rate",""]
[null,null,null,null,null,null,null,null,null,"Maximum depth (to calculate maximum wave hight) ",{"$f":"IF(ISBLANK('Initial and Present Status'!M28),\"\",'Initial and Present Status'!M28)","v":""},null,null,null,null,null,null,null,null,null,null,null,"Maximum depth (to calculate maximum wave hight) ",""]
[null,null,null,null,null,null,null,null,null,"Design-basis Flood ",{"$f":"IF(ISBLANK('Initial and Present Status'!M29),\"\",'Initial and Present Status'!M29)","v":""},null,null,null,null,null,null,null,null,null,null,null,"Design-basis Flood ",""]
[null,null,null,"Maintenance of physical, chemical, biological conditions",{"$f":"'Initial and Present Status'!T23","v":0},"Lifecycle maintenance, habitat and gene pool protection",{"$f":"'Initial and Present Status'!W24","v":0},"Maintaining nursery populations and habitats",{"$f":"'Initial and Present Status'!Z26","v":0},"Submerged and intertidal habitats diversity",{"$f":"IF(ISBLANK('Initial and Present Status'!M30),\"\",'Initial and Present Status'!M30)","v":""},null,null,null,null,null,"Maintenance of physical, chemical, biological conditions",{"$f":"IFERROR(ROUND(AVERAGE(T26:T43),0),\"\")","v":""},"Lifecycle maintenance, habitat and gene pool protection",{"$f":"IFERROR(ROUND(AVERAGE(V26),0),\"\")","v":""},"Maintaining nursery populations and habitats",{"$f":"IFERROR(ROUND(AVERAGE(X26:X31),0),\"\")","v":""},"Submerged and intertidal habitats diversity",""]
[null,null,null,null,null,null,null,null,null,"Occurence of Oxygen concentration < 6 mg/L",{"$f":"IF(ISBLANK('Initial and Present Status'!M31),\"\",'Initial and Present Status'!M31)","v":""},null,null,null,null,null,null,null,null,null,null,null,"Occurence of Oxygen concentration < 6 mg/L",""]
[null,null,null,null,null,null,null,null,null,"Secchi depth",{"$f":"IF(ISBLANK('Initial and Present Status'!M32),\"\",'Initial and Present Status'!M32)","v":""},null,null,null,null,null,null,null,null,null,null,null,"Secchi depth",""]
[null,null,null,null,null,null,null,null,null,"Species distribution",{"$f":"IF(ISBLANK('Initial and Present Status'!M33),\"\",'Initial and Present Status'!M33)","v":""},null,null,null,null,null,null,null,null,null,null,null,"Species distribution",""]
[null,null,null,null,null,null,null,null,null,"Nursery areas ",{"$f":"IF(ISBLANK('Initial and Present Status'!M34),\"\",'Initial and Present Status'!M34)","v":""},null,null,null,null,null,null,null,null,null,null,null,"Nursery areas ",""]
[null,null,null,null,null,null,null,null,null,"% of nursery areas which are protected",{"$f":"IF(ISBLANK('Initial and Present Status'!M35),\"\",'Initial and Present Status'!M35)","v":""},null,null,null,null,null,null,null,null,null,null,null,"% of nursery areas which are protected",""]
[null,null,null,null,null,"Pest and disease control",{"$f":"'Initial and Present Status'!W25","v":0},"Pest and Disease control",{"$f":"'Initial and Present Status'!Z27","v":0},"Harmful Algal Bloom Outbreaks",{"$f":"IF(ISBLANK('Initial and Present Status'!M36),\"\",'Initial and Present Status'!M36)","v":""},null,null,null,null,null,null,null,"Pest and disease control",{"$f":"IFERROR(ROUND(AVERAGE(V32),0),\"\")","v":""},"Pest and Disease control",{"$f":"IFERROR(ROUND(AVERAGE(X32:X33),0),\"\")","v":""},"Harmful Algal Bloom Outbreaks",""]
[null,null,null,null,null,null,null,null,null,"Presence of alien species",{"$f":"IF(ISBLANK('Initial and Present Status'!M37),\"\",'Initial and Present Status'!M37)","v":""},null,null,null,null,null,null,null,null,null,null,null,"Presence of alien species",""]
[null,null,null,null,null,"Soil formation and composition",{"$f":"'Initial and Present Status'!W26","v":0},"Decomposition and fixing processes",{"$f":"'Initial and Present Status'!Z28","v":0},"Nitrogen removal",{"$f":"IF(ISBLANK('Initial and Present Status'!M38),\"\",'Initial and Present Status'!M38)","v":""},null,null,null,null,null,null,null,"Soil formation and composition",{"$f":"IFERROR(ROUND(AVERAGE(V34),0),\"\")","v":""},"Decomposition and fixing processes",{"$f":"IFERROR(ROUND(AVERAGE(X34:X35),0),\"\")","v":""},"Nitrogen removal",""]
[null,null,null,null,null,null,null,null,null,"Water residence time",{"$f":"IF(ISBLANK('Initial and Present Status'!M39),\"\",'Initial and Present Status'!M39)","v":""},null,null,null,null,null,null,null,null,null,null,null,"Water residence time",{"$f":"IFERROR(VALUE(K35),\"\")","v":""}]
[null,null,null,null,null,"Water conditions",{"$f":"'Initial and Present Status'!W27","v":0},"Chemical condition of salt waters",{"$f":"'Initial and Present Status'!Z29","v":0},"Nutrients concentration",{"$f":"IF(ISBLANK('Initial and Present Status'!M40),\"\",'Initial and Present Status'!M40)","v":""},null,null,null,null,null,null,null,"Water conditions",{"$f":"IFERROR(ROUND(AVERAGE(V36),0),\"\")","v":""},"Chemical condition of salt waters",{"$f":"IFERROR(ROUND(AVERAGE(X36:X38),0),\"\")","v":""},"Nutrients concentration",""]
[null,null,null,null,null,null,null,null,null,"Salinity",{"$f":"IF(ISBLANK('Initial and Present Status'!M41),\"\",'Initial and Present Status'!M41)","v":""},null,null,null,null,null,null,null,null,null,null,null,"Salinity",""]
[null,null,null,null,null,null,null,null,null,"Oxygen Concentration",{"$f":"IF(ISBLANK('Initial and Present Status'!M42),\"\",'Initial and Present Status'!M42)","v":""},null,null,null,null,null,null,null,null,null,null,null,"Oxygen Concentration",""]
[null,null,null,null,null,"Atmospheric composition and climate regulation",{"$f":"'Initial and Present Status'!W28","v":0},"Global climate regulation by reduction of greenhouse gas concentrations",{"$f":"'Initial and Present Status'!Z30","v":0},"C stock",{"$f":"IF(ISBLANK('Initial and Present Status'!M43),\"\",'Initial and Present Status'!M43)","v":""},null,null,null,null,null,null,null,"Atmospheric composition and climate regulation",{"$f":"IFERROR(ROUND(AVERAGE(V39:V43),0),\"\")","v":""},"Global climate regulation by reduction of greenhouse gas concentrations",{"$f":"IFERROR(ROUND(AVERAGE(X39:X42),0),\"\")","v":""},"C stock",""]
[null,null,null,null,null,null,null,null,null,"C sequestration",{"$f":"IF(ISBLANK('Initial and Present Status'!M44),\"\",'Initial and Present Status'!M44)","v":""},null,null,null,null,null,null,null,null,null,null,null,"C sequestration",""]
[null,null,null,null,null,null,null,null,null,"pH",{"$f":"IF(ISBLANK('Initial and Present Status'!M45),\"\",'Initial and Present Status'!M45)","v":""},null,null,null,null,null,null,null,null,null,null,null,"pH",""]
[null,null,null,null,null,null,null,null,null,"PP",{"$f":"IF(ISBLANK('Initial and Present Status'!M46),\"\",'Initial and Present Status'!M46)","v":""},null,null,null,null,null,null,null,null,null,null,null,"PP",""]
[null,null,null,null,null,null,null,"Micro and regional climate regulation",{"$f":"'Initial and Present Status'!Z31","v":0},"Evaporation rate",{"$f":"IF(ISBLANK('Initial and Present Status'!M47),\"\",'Initial and Present Status'!M47)","v":""},null,null,null,null,null,null,null,null,null,"Micro and regional climate regulation",{"$f":"IFERROR(ROUND(AVERAGE(X43),0),\"\")","v":""},"Evaporation rate",""]
[null,"Cultural Services",{"$f":"'Initial and Present Status'!Q49","v":0},"Physical and Intellectual interactions with biota, ecosystems, and land-/seascapes [environmental settings]",{"$f":"'Initial and Present Status'!T49","v":0},"Physical and experiential interactions",{"$f":"'Initial and Present Status'!W49","v":0},"Experiential use of plants, animals and land-/seascapes in different environmental settings",{"$f":"'Initial and Present Status'!Z49","v":0},"nº of visitors taking part in activities related to biota",{"$f":"IF(ISBLANK('Initial and Present Status'!M49),\"\",'Initial and Present Status'!M49)","v":""},null,null,null,"Cultural Services",{"$f":"IFERROR(ROUND(AVERAGE(R44:R56),0),\"\")","v":""},"Physical and Intellectual interactions with biota, ecosystems, and land-/seascapes [environmental settings]",{"$f":"IFERROR(ROUND(AVERAGE(T44:T52),0),\"\")","v":""},"Physical and experiential interactions",{"$f":"IFERROR(ROUND(AVERAGE(V44:V47),0),\"\")","v":""},"Experiential use of plants, animals and land-/seascapes in different environmental settings",{"$f":"IFERROR(ROUND(AVERAGE(X44),0),\"\")","v":""},"nº of visitors taking part in activities related to biota",""]
[null,null,null,null,null,null,null,"Physical use of land-/seascapes in different environmental settings",{"$f":"'Initial and Present Status'!Z50","v":0},"Nº of tourists (within 1 km of coastal zone) ",{"$f":"IF(ISBLANK('Initial and Present Status'!M50),\"\",'Initial and Present Status'!M50)","v":""},null,null,null,null,null,null,null,null,null,"Physical use of land-/seascapes in different environmental settings",{"$f":"IFERROR(ROUND(AVERAGE(X45:X47),0),\"\")","v":""},"Nº of tourists (within 1 km of coastal zone) ",""]
[null,null,null,null,null,null,null,null,null,"Nº of ship berths in the marinas",{"$f":"IF(ISBLANK('Initial and Present Status'!M51),\"\",'Initial and Present Status'!M51)","v":""},null,null,null,null,null,null,null,null,null,null,null,"Nº of ship berths in the marinas",""]
[null,null,null,null,null,null,null,null,null,"Nº of Tourist Boat",{"$f":"IF(ISBLANK('Initial and Present Status'!M52),\"\",'Initial and Present Status'!M52)","v":""},null,null,null,null,null,null,null,null,null,null,null,"Nº of Tourist Boat",""]
[null,null,null,null,null,"Intellectual and representative interactions",{"$f":"'Initial and Present Status'!W50","v":0},"Scientific and Educational",{"$f":"'Initial and Present Status'!Z51","v":0},"Scientific studies, Documentaries, educational publications",{"$f":"IF(ISBLANK('Initial and Present Status'!M53),\"\",'Initial and Present Status'!M53)","v":""},null,null,null,null,null,null,null,"Intellectual and representative interactions",{"$f":"IFERROR(ROUND(AVERAGE(V48:V52),0),\"\")","v":""},"Scientific and Educational",{"$f":"IFERROR(ROUND(AVERAGE(X48:X49),0),\"\")","v":""},"Scientific studies, Documentaries, educational publications",""]
[null,null,null,null,null,null,null,null,null,"Visits to scientific and artistic exhibits",{"$f":"IF(ISBLANK('Initial and Present Status'!M54),\"\",'Initial and Present Status'!M54)","v":""},null,null,null,null,null,null,null,null,null,null,null,"Visits to scientific and artistic exhibits",""]
[null,null,null,null,null,null,null,"Heritage, cultural",{"$f":"'Initial and Present Status'!Z52","v":0},"nº of cultural and heritage sites",{"$f":"IF(ISBLANK('Initial and Present Status'!M55),\"\",'Initial and Present Status'!M55)","v":""},null,null,null,null,null,null,null,null,null,"Heritage, cultural",{"$f":"IFERROR(ROUND(AVERAGE(X50),0),\"\")","v":""},"nº of cultural and heritage sites",""]
[null,null,null,null,null,null,null,"Entertainment",{"$f":"'Initial and Present Status'!Z53","v":0},"Nº of movies and broadcasts in the area",{"$f":"IF(ISBLANK('Initial and Present Status'!M56),\"\",'Initial and Present Status'!M56)","v":""},null,null,null,null,null,null,null,null,null,"Entertainment",{"$f":"IFERROR(ROUND(AVERAGE(X51),0),\"\")","v":""},"Nº of movies and broadcasts in the area",""]
[null,null,null,null,null,null,null,"Aesthetic",{"$f":"'Initial and Present Status'!Z54","v":0},"Nº of pictures",{"$f":"IF(ISBLANK('Initial and Present Status'!M57),\"\",'Initial and Present Status'!M57)","v":""},null,null,null,null,null,null,null,null,null,"Aesthetic","","Nº of pictures",""]
[null,null,null,"Spiritual, symbolic and other interactions with biota, ecosystems, and land-/seascapes ",{"$f":"'Initial and Present Status'!T50","v":0},"Spiritual and/or emblematic",{"$f":"'Initial and Present Status'!W51","v":0},"Symbolic",{"$f":"'Initial and Present Status'!Z55","v":0},"Nº of Red List and iconic species",{"$f":"IF(ISBLANK('Initial and Present Status'!M58),\"\",'Initial and Present Status'!M58)","v":""},null,null,null,null,null,"Spiritual, symbolic and other interactions with biota, ecosystems, and land-/seascapes ",{"$f":"IFERROR(ROUND(AVERAGE(T53:T56),0),\"\")","v":""},"Spiritual and/or emblematic",{"$f":"IFERROR(ROUND(AVERAGE(V53:V54),0),\"\")","v":""},"Symbolic","","Nº of Red List and iconic species",""]
[null,null,null,null,null,null,null,"Sacred and/or religious",{"$f":"'Initial and Present Status'!Z56","v":0},"Nº of Religious events (within 1 km of coastal zone)",{"$f":"IF(ISBLANK('Initial and Present Status'!M59),\"\",'Initial and Present Status'!M59)","v":""},null,null,null,null,null,null,null,null,null,"Sacred and/or religious","","Nº of Religious events (within 1 km of coastal zone)",""]
[null,null,null,null,null,"Other cultural outputs",{"$f":"'Initial and Present Status'!W52","v":0},"Existence",{"$f":"'Initial and Present Status'!Z57","v":0},"Nº of offers for health treatments (within 1 km of coastal zone)",{"$f":"IF(ISBLANK('Initial and Present Status'!M60),\"\",'Initial and Present Status'!M60)","v":""},null,null,null,null,null,null,null,"Other cultural outputs",{"$f":"IFERROR(ROUND(AVERAGE(V55:V56),0),\"\")","v":""},"Existence","","Nº of offers for health treatments (within 1 km of coastal zone)",""]
[null,null,null,null,null,null,null,"Bequest",{"$f":"'Initial and Present Status'!Z58","v":0},"Extent of marine protected areas",{"$f":"IF(ISBLANK('Initial and Present Status'!M61),\"\",'Initial and Present Status'!M61)","v":""},null,null,null,null,null,null,null,null,null,"Bequest","","Extent of marine protected areas",""]

{"sheet":"Results ES Classes","index":10,"n_rows":33,"n_cols":6,"rows_kept":33,"cut":false,"hidden":false,"merged":[[13,3,15,3],[13,2,16,2],[10,2,11,2],[7,2,9,2],[2,3,5,3],[2,2,6,2],[23,1,32,1],[2,1,11,1],[12,1,22,1],[10,3,11,3],[25,3,28,3],[23,3,24,3],[23,2,28,2],[29,2,32,2],[29,3,30,3],[31,3,32,3],[21,3,22,3],[17,2,22,2]]}
[]
[null,"Section","Division","Group","Class","Class of Change"]
[null,"Provisioning Services","Nutrition","Biomass","Wild plants, algae and their outputs",{"$f":"'ES Assessment'!V3","v":""}]
[null,null,null,null,"Wild animals and their outputs",{"$f":"'ES Assessment'!V5","v":""}]
[null,null,null,null,"Animals from in situ aquaculture",{"$f":"'ES Assessment'!V7","v":""}]
[null,null,null,null,"Plants and algae from in situ aquaculture",{"$f":"'ES Assessment'!V9","v":""}]
[null,null,null,"Water","Surface water for drinking purposes",{"$f":"'ES Assessment'!V11","v":""}]
[null,null,"Materials","Biomass","Fibres and other materials from plants, algae and animals for direct use or processing",{"$f":"'ES Assessment'!V12","v":""}]
[null,null,null,null,"Materials from plants, algae and animals for agriculture",{"$f":"'ES Assessment'!V13","v":""}]
[null,null,null,"Water","Surface Water for non-drinking purposes",{"$f":"'ES Assessment'!V14","v":""}]
[null,null,"Energy","Biomass-based energy resources ","Plant based resources",{"$f":"'ES Assessment'!V15","v":""}]
[null,null,null,null,"Animal based resources",{"$f":"'ES Assessment'!V16","v":""}]
[null,"Regulating and Maintenance Services","Mediation of waste, toxics and other nuisances","Mediation by ecosystems ","Filtration/sequestration/storage/accumulation by ecosystems ",{"$f":"'ES Assessment'!V17","v":""}]
[null,null,"Mediations of Flow","Mass Flows","Dilution by atmosphere, freshwater and marine ecosystems",{"$f":"'ES Assessment'!V20","v":""}]
[null,null,null,null,"Mass stabilisation and control of erosion rates",{"$f":"'ES Assessment'!V21","v":""}]
[null,null,null,null,"Buffering and attenuation of mass flows",{"$f":"'ES Assessment'!V22","v":""}]
[null,null,null,"Liquid  Flows","Flood Protection",{"$f":"'ES Assessment'!V23","v":""}]
[null,null,"Maintenance of physical, chemical, biological conditions","Lifecycle maintenance, habitat and gene pool protection","Maintaining nursery populations and habitats",{"$f":"'ES Assessment'!V26","v":""}]
[null,null,null,"Pest and disease control","Pest and Disease control",{"$f":"'ES Assessment'!V32","v":""}]
[null,null,null,"Soil formation and composition","Decomposition and fixing processes",{"$f":"'ES Assessment'!V34","v":""}]
[null,null,null,"Water conditions","Chemical condition of salt waters",{"$f":"'ES Assessment'!V36","v":""}]
[null,null,null,"Atmospheric composition and climate regulation","Global climate regulation by reduction of greenhouse gas concentrations",{"$f":"'ES Assessment'!V39","v":""}]
[null,null,null,null,"Micro and regional climate regulation",{"$f":"'ES Assessment'!V43","v":""}]
[null,"Cultural Services","Physical and Intellectual interactions with biota, ecosystems, and land-/seascapes [environmental settings]","Physical and experiential interactions","Experiential use of plants, animals and land-/seascapes in different environmental settings",{"$f":"'ES Assessment'!V44","v":""}]
[null,null,null,null,"Physical use of land-/seascapes in different environmental settings",{"$f":"'ES Assessment'!V45","v":""}]
[null,null,null,"Intellectual and representative interactions","Scientific and Educational",{"$f":"'ES Assessment'!V48","v":""}]
[null,null,null,null,"Heritage, cultural",{"$f":"'ES Assessment'!V50","v":""}]
[null,null,null,null,"Entertainment",{"$f":"'ES Assessment'!V51","v":""}]
[null,null,null,null,"Aesthetic",{"$f":"'ES Assessment'!V52","v":""}]
[null,null,"Spiritual, symbolic and other interactions with biota, ecosystems, and land-/seascapes ","Spiritual and/or emblematic","Symbolic",{"$f":"'ES Assessment'!V53","v":""}]
[null,null,null,null,"Sacred and/or religious",{"$f":"'ES Assessment'!V54","v":""}]
[null,null,null,"Other cultural outputs","Existence",{"$f":"'ES Assessment'!V55","v":""}]
[null,null,null,null,"Bequest",{"$f":"'ES Assessment'!V56","v":""}]

{"sheet":"Results ES Sections","index":11,"n_rows":56,"n_cols":16,"rows_kept":56,"cut":false,"hidden":false,"merged":[[47,5,51,5],[47,6,51,6],[47,7,48,7],[47,8,48,8],[52,3,55,3],[52,5,53,5],[52,6,53,6],[54,5,55,5],[54,6,55,6],[38,5,42,5],[38,6,42,6],[38,7,41,7],[38,8,41,8],[43,1,55,1],[43,2,55,2],[43,3,51,3],[43,4,51,4],[43,5,46,5],[43,6,46,6],[16,1,42,1],[16,2,42,2],[25,3,42,3],[25,4,42,4],[44,7,46,7],[44,8,46,8],[33,5,34,5],[33,6,34,6],[33,7,34,7],[33,8,34,8],[35,5,37,5],[35,6,37,6],[35,7,37,7],[35,8,37,8],[25,7,30,7],[25,8,30,8],[31,5,32,5],[31,6,32,6],[31,7,32,7],[31,8,32,8],[25,5,30,5],[25,6,30,6],[16,7,18,7],[16,8,18,8],[19,3,24,3],[19,4,24,4],[19,5,21,5],[19,6,21,6],[22,5,24,5],[22,6,24,6],[22,7,24,7],[22,8,24,8],[16,3,18,3],[16,4,18,4],[16,5,18,5],[16,6,18,6],[11,6,12,6],[14,3,15,3],[14,4,15,4],[14,5,15,5],[14,6,15,6],[2,6,9,6],[2,7,3,7],[2,8,3,8],[4,7,5,7],[4,8,5,8],[6,7,7,7],[6,8,7,8],[8,7,9,7],[8,8,9,8],[1,1,1,2],[1,3,1,4],[1,5,1,6],[1,7,1,8],[1,9,1,10],[2,1,15,1],[2,2,15,2],[2,3,10,3],[2,4,10,4],[2,5,9,5],[11,3,13,3],[11,4,13,4],[11,5,12,5]]}
[]
[null,"Section",null,"Division",null,"Group",null,"Class",null,"Indicators"]
[null,"Provisioning Services",{"$f":"IFERROR(ROUND(AVERAGE(E3:E16),0),\"\")","v":""},"Nutrition",{"$f":"IFERROR(ROUND(AVERAGE(G3:G11),0),\"\")","v":""},"Biomass",{"$f":"IFERROR(ROUND(AVERAGE(I3:I10),0),\"\")","v":""},"Wild plants, algae and their outputs",{"$f":"IFERROR(ROUND(AVERAGE(K3:K4),0),\"\")","v":""},"Harvest",{"$f":"'ES Assessment'!X3","v":""},null,null,"Provisioning Services",{"$f":"C3","v":""},0]
[null,null,null,null,null,null,null,null,null,"Nº of Species ",{"$f":"'ES Assessment'!X4","v":""},null,null,"Regulating & Maintenance Services",{"$f":"C17","v":""},0]
[null,null,null,null,null,null,null,"Wild animals and their outputs",{"$f":"IFERROR(ROUND(AVERAGE(K5:K6),0),\"\")","v":""},"Landings",{"$f":"'ES Assessment'!X5","v":""},null,null,"Cultural Services",{"$f":"C44","v":""},0]
[null,null,null,null,null,null,null,null,null,"Landing of key market species",{"$f":"'ES Assessment'!X6","v":""}]
[null,null,null,null,null,null,null,"Animals from in situ aquaculture",{"$f":"IFERROR(ROUND(AVERAGE(K7:K8),0),\"\")","v":""},"Harvest",{"$f":"'ES Assessment'!X7","v":""}]
[null,null,null,null,null,null,null,null,null,"Nº of Species ",{"$f":"'ES Assessment'!X8","v":""}]
[null,null,null,null,null,null,null,"Plants and algae from in situ aquaculture",{"$f":"IFERROR(ROUND(AVERAGE(K9:K10),0),\"\")","v":""},"Harvest",{"$f":"'ES Assessment'!X9","v":""}]
[null,null,null,null,null,null,null,null,null,"Nº of Species ",{"$f":"'ES Assessment'!X10","v":""}]
[null,null,null,null,null,"Water",{"$f":"IFERROR(ROUND(AVERAGE(I11),0),\"\")","v":""},"Surface water for drinking purposes",{"$f":"IFERROR(ROUND(AVERAGE(K11),0),\"\")","v":""},"Use of Water",{"$f":"'ES Assessment'!X11","v":""}]
[null,null,null,"Materials",{"$f":"IFERROR(ROUND(AVERAGE(G12:G14),0),\"\")","v":""},"Biomass",{"$f":"IFERROR(ROUND(AVERAGE(I12:I13),0),\"\")","v":""},"Fibres and other materials from plants, algae and animals for direct use or processing","","Harvest",{"$f":"'ES Assessment'!X12","v":""}]
[null,null,null,null,null,null,null,"Materials from plants, algae and animals for agriculture","","Harvest",{"$f":"'ES Assessment'!X13","v":""}]
[null,null,null,null,null,"Water",{"$f":"IFERROR(ROUND(AVERAGE(I14),0),\"\")","v":""},"Surface Water for non-drinking purposes","","Use of Water",{"$f":"'ES Assessment'!X14","v":""}]
[null,null,null,"Energy",{"$f":"IFERROR(ROUND(AVERAGE(G15),0),\"\")","v":""},"Biomass-based energy resources ",{"$f":"IFERROR(ROUND(AVERAGE(I15:I16),0),\"\")","v":""},"Plant based resources","","Use ",{"$f":"'ES Assessment'!X15","v":""}]
[null,null,null,null,null,null,null,"Animal based resources","","Use",{"$f":"'ES Assessment'!X16","v":""}]
[null,"Regulating & Maintenance Services",{"$f":"IFERROR(ROUND(AVERAGE(E17:E43),0),\"\")","v":""},"Mediation of waste, toxics and other nuisances",{"$f":"IFERROR(ROUND(AVERAGE(G17),0),\"\")","v":""},"Mediation by ecosystems ",{"$f":"IFERROR(ROUND(AVERAGE(I17),0),\"\")","v":""},"Filtration/sequestration/storage/accumulation by ecosystems ",{"$f":"IFERROR(ROUND(AVERAGE(K17:K19),0),\"\")","v":""},"N-fixation",{"$f":"'ES Assessment'!X17","v":""}]
[null,null,null,null,null,null,null,null,null,"Burial",{"$f":"'ES Assessment'!X18","v":""}]
[null,null,null,null,null,null,null,null,null,"Denitrification",{"$f":"'ES Assessment'!X19","v":""}]
[null,null,null,"Mediations of Flow",{"$f":"IFERROR(ROUND(AVERAGE(G20:G25),0),\"\")","v":""},"Mass Flows",{"$f":"IFERROR(ROUND(AVERAGE(I20:I22),0),\"\")","v":""},"Dilution by atmosphere, freshwater and marine ecosystems",{"$f":"IFERROR(ROUND(AVERAGE(K20),0),\"\")","v":""},"Average of beach closures per year",{"$f":"'ES Assessment'!X20","v":""}]
[null,null,null,null,null,null,null,"Mass stabilisation and control of erosion rates",{"$f":"IFERROR(ROUND(AVERAGE(K21),0),\"\")","v":""},"Extent of selected emerged, submerged and intertidal habitats",{"$f":"'ES Assessment'!X21","v":""}]
[null,null,null,null,null,null,null,"Buffering and attenuation of mass flows",{"$f":"IFERROR(ROUND(AVERAGE(K22),0),\"\")","v":""},"Sediment accumulation rate",{"$f":"'ES Assessment'!X22","v":""}]
[null,null,null,null,null,"Liquid  Flows",{"$f":"IFERROR(ROUND(AVERAGE(I23),0),\"\")","v":""},"Flood Protection",{"$f":"IFERROR(ROUND(AVERAGE(K23:K25),0),\"\")","v":""},"Shoreline erosion rate",{"$f":"'ES Assessment'!X23","v":""}]
[null,null,null,null,null,null,null,null,null,"Maximum depth (to calculate maximum wave hight) ",{"$f":"'ES Assessment'!X24","v":""}]
[null,null,null,null,null,null,null,null,null,"Design-basis Flood ",{"$f":"'ES Assessment'!X25","v":""}]
[null,null,null,"Maintenance of physical, chemical, biological conditions",{"$f":"IFERROR(ROUND(AVERAGE(G26:G43),0),\"\")","v":""},"Lifecycle maintenance, habitat and gene pool protection",{"$f":"IFERROR(ROUND(AVERAGE(I26),0),\"\")","v":""},"Maintaining nursery populations and habitats",{"$f":"IFERROR(ROUND(AVERAGE(K26:K31),0),\"\")","v":""},"Submerged and intertidal habitats diversity",{"$f":"'ES Assessment'!X26","v":""}]
[null,null,null,null,null,null,null,null,null,"Occurence of Oxygen concentration < 6 mg/L",{"$f":"'ES Assessment'!X27","v":""}]
[null,null,null,null,null,null,null,null,null,"Secchi depth",{"$f":"'ES Assessment'!X28","v":""}]
[null,null,null,null,null,null,null,null,null,"Species distribution",{"$f":"'ES Assessment'!X29","v":""}]
[null,null,null,null,null,null,null,null,null,"Nursery areas ",{"$f":"'ES Assessment'!X30","v":""}]
[null,null,null,null,null,null,null,null,null,"% of nursery areas which are protected",{"$f":"'ES Assessment'!X31","v":""}]
[null,null,null,null,null,"Pest and disease control",{"$f":"IFERROR(ROUND(AVERAGE(I32),0),\"\")","v":""},"Pest and Disease control",{"$f":"IFERROR(ROUND(AVERAGE(K32:K33),0),\"\")","v":""},"Harmful Algal Bloom Outbreaks",{"$f":"'ES Assessment'!X32","v":""}]
[null,null,null,null,null,null,null,null,null,"Presence of alien species",{"$f":"'ES Assessment'!X33","v":""}]
[null,null,null,null,null,"Soil formation and composition",{"$f":"IFERROR(ROUND(AVERAGE(I34),0),\"\")","v":""},"Decomposition and fixing processes",{"$f":"IFERROR(ROUND(AVERAGE(K34:K35),0),\"\")","v":""},"Nitrogen removal",{"$f":"'ES Assessment'!X34","v":""}]
[null,null,null,null,null,null,null,null,null,"Water residence time",{"$f":"'ES Assessment'!X35","v":""}]
[null,null,null,null,null,"Water conditions",{"$f":"IFERROR(ROUND(AVERAGE(I36),0),\"\")","v":""},"Chemical condition of salt waters",{"$f":"IFERROR(ROUND(AVERAGE(K36:K38),0),\"\")","v":""},"Nutrients concentration",{"$f":"'ES Assessment'!X36","v":""}]
[null,null,null,null,null,null,null,null,null,"Salinity",{"$f":"'ES Assessment'!X37","v":""}]
[null,null,null,null,null,null,null,null,null,"Oxygen Concentration",{"$f":"'ES Assessment'!X38","v":""}]
[null,null,null,null,null,"Atmospheric composition and climate regulation",{"$f":"IFERROR(ROUND(AVERAGE(I39:I43),0),\"\")","v":""},"Global climate regulation by reduction of greenhouse gas concentrations",{"$f":"IFERROR(ROUND(AVERAGE(K39:K42),0),\"\")","v":""},"C stock",{"$f":"'ES Assessment'!X39","v":""}]
[null,null,null,null,null,null,null,null,null,"C sequestration",{"$f":"'ES Assessment'!X40","v":""}]
[null,null,null,null,null,null,null,null,null,"pH",{"$f":"'ES Assessment'!X41","v":""}]
[null,null,null,null,null,null,null,null,null,"PP",{"$f":"'ES Assessment'!X42","v":""}]
[null,null,null,null,null,null,null,"Micro and regional climate regulation",{"$f":"IFERROR(ROUND(AVERAGE(K43),0),\"\")","v":""},"Evaporation rate",{"$f":"'ES Assessment'!X43","v":""}]
[null,"Cultural Services",{"$f":"IFERROR(ROUND(AVERAGE(E44:E56),0),\"\")","v":""},"Physical and Intellectual interactions with biota, ecosystems, and land-/seascapes [environmental settings]",{"$f":"IFERROR(ROUND(AVERAGE(G44:G52),0),\"\")","v":""},"Physical and experiential interactions",{"$f":"IFERROR(ROUND(AVERAGE(I44:I47),0),\"\")","v":""},"Experiential use of plants, animals and land-/seascapes in different environmental settings",{"$f":"IFERROR(ROUND(AVERAGE(K44),0),\"\")","v":""},"nº of visitors taking part in activities related to biota",{"$f":"'ES Assessment'!X44","v":""}]
[null,null,null,null,null,null,null,"Physical use of land-/seascapes in different environmental settings",{"$f":"IFERROR(ROUND(AVERAGE(K45:K47),0),\"\")","v":""},"Nº of tourists (within 1 km of coastal zone) ",{"$f":"'ES Assessment'!X45","v":""}]
[null,null,null,null,null,null,null,null,null,"Nº of ship berths in the marinas",{"$f":"'ES Assessment'!X46","v":""}]
[null,null,null,null,null,null,null,null,null,"Nº of Tourist Boat",{"$f":"'ES Assessment'!X47","v":""}]
[null,null,null,null,null,"Intellectual and representative interactions",{"$f":"IFERROR(ROUND(AVERAGE(I48:I52),0),\"\")","v":""},"Scientific and Educational",{"$f":"IFERROR(ROUND(AVERAGE(K48:K49),0),\"\")","v":""},"Scientific studies, Documentaries, educational publications",{"$f":"'ES Assessment'!X48","v":""}]
[null,null,null,null,null,null,null,null,null,"Visits to scientific and artistic exhibits",{"$f":"'ES Assessment'!X49","v":""}]
[null,null,null,null,null,null,null,"Heritage, cultural",{"$f":"IFERROR(ROUND(AVERAGE(K50),0),\"\")","v":""},"nº of cultural and heritage sites",{"$f":"'ES Assessment'!X50","v":""}]
[null,null,null,null,null,null,null,"Entertainment",{"$f":"IFERROR(ROUND(AVERAGE(K51),0),\"\")","v":""},"Nº of movies and broadcasts in the area",{"$f":"'ES Assessment'!X51","v":""}]
[null,null,null,null,null,null,null,"Aesthetic","","Nº of pictures",{"$f":"'ES Assessment'!X52","v":""}]
[null,null,null,"Spiritual, symbolic and other interactions with biota, ecosystems, and land-/seascapes ",{"$f":"IFERROR(ROUND(AVERAGE(G53:G56),0),\"\")","v":""},"Spiritual and/or emblematic",{"$f":"IFERROR(ROUND(AVERAGE(I53:I54),0),\"\")","v":""},"Symbolic","","Nº of Red List and iconic species",{"$f":"'ES Assessment'!X53","v":""}]
[null,null,null,null,null,null,null,"Sacred and/or religious","","Nº of Religious events (within 1 km of coastal zone)",{"$f":"'ES Assessment'!X54","v":""}]
[null,null,null,null,null,"Other cultural outputs",{"$f":"IFERROR(ROUND(AVERAGE(I55:I56),0),\"\")","v":""},"Existence","","Nº of offers for health treatments (within 1 km of coastal zone)",{"$f":"'ES Assessment'!X55","v":""}]
[null,null,null,null,null,null,null,"Bequest","","Extent of marine protected areas",{"$f":"'ES Assessment'!X56","v":""}]

{"sheet":"Results ES Overall","index":12,"n_rows":55,"n_cols":16,"rows_kept":55,"cut":false,"hidden":false,"merged":[[0,1,0,3],[0,4,0,6],[0,7,0,9],[0,10,0,12],[0,13,0,15]]}
[null,"Sections",null,null,"Divisions",null,null,"Groups",null,null,"Classes",null,null,"Indicators"]
[null,{"$f":"'ES Assessment'!P3","v":""},14,1,{"$f":"'ES Assessment'!R3","v":""},9,1,{"$f":"'ES Assessment'!T3","v":""},8,1,{"$f":"'ES Assessment'!V3","v":""},2,1,{"$f":"'ES Assessment'!X3","v":""},1,1]
[null,{"$f":"'ES Assessment'!P17","v":""},27,2,{"$f":"'ES Assessment'!R12","v":""},3,2,{"$f":"'ES Assessment'!T11","v":""},1,2,{"$f":"'ES Assessment'!V5","v":""},2,2,{"$f":"'ES Assessment'!X4","v":""},1,{"$f":"P2+1","v":2}]
[null,{"$f":"'ES Assessment'!P44","v":""},13,3,{"$f":"'ES Assessment'!R15","v":""},2,3,{"$f":"'ES Assessment'!T12","v":""},2,3,{"$f":"'ES Assessment'!V7","v":""},2,3,{"$f":"'ES Assessment'!X5","v":""},1,{"$f":"P3+1","v":3}]
[null,null,null,null,{"$f":"'ES Assessment'!R17","v":""},3,4,{"$f":"'ES Assessment'!T14","v":""},1,4,{"$f":"'ES Assessment'!V9","v":""},2,4,{"$f":"'ES Assessment'!X6","v":""},1,4]
[null,null,null,null,{"$f":"'ES Assessment'!R20","v":""},6,5,{"$f":"'ES Assessment'!T15","v":""},2,5,{"$f":"'ES Assessment'!V11","v":""},1,5,{"$f":"'ES Assessment'!X7","v":""},1,5]
[null,null,null,null,{"$f":"'ES Assessment'!R26","v":""},18,6,{"$f":"'ES Assessment'!T17","v":""},3,6,{"$f":"'ES Assessment'!V12","v":""},1,6,{"$f":"'ES Assessment'!X8","v":""},1,6]
[null,null,null,null,{"$f":"'ES Assessment'!R44","v":""},9,7,{"$f":"'ES Assessment'!T20","v":""},3,7,{"$f":"'ES Assessment'!V13","v":""},1,7,{"$f":"'ES Assessment'!X9","v":""},1,7]
[null,null,null,null,{"$f":"'ES Assessment'!R53","v":""},4,8,{"$f":"'ES Assessment'!T23","v":""},3,8,{"$f":"'ES Assessment'!V14","v":""},1,8,{"$f":"'ES Assessment'!X10","v":""},1,8]
[null,null,null,null,null,null,null,{"$f":"'ES Assessment'!T26","v":""},6,9,{"$f":"'ES Assessment'!V15","v":""},1,9,{"$f":"'ES Assessment'!X11","v":""},1,9]
[null,null,null,null,null,null,null,{"$f":"'ES Assessment'!T32","v":""},2,10,{"$f":"'ES Assessment'!V16","v":""},1,10,{"$f":"'ES Assessment'!X12","v":""},1,10]
[null,null,null,null,null,null,null,{"$f":"'ES Assessment'!T34","v":""},2,11,{"$f":"'ES Assessment'!V17","v":""},3,11,{"$f":"'ES Assessment'!X13","v":""},1,11]
[null,null,null,null,null,null,null,{"$f":"'ES Assessment'!T36","v":""},3,12,{"$f":"'ES Assessment'!V20","v":""},1,12,{"$f":"'ES Assessment'!X14","v":""},1,12]
[null,null,null,null,null,null,null,{"$f":"'ES Assessment'!T39","v":""},5,13,{"$f":"'ES Assessment'!V21","v":""},1,13,{"$f":"'ES Assessment'!X15","v":""},1,13]
[null,null,null,null,null,null,null,{"$f":"'ES Assessment'!T44","v":""},4,14,{"$f":"'ES Assessment'!V22","v":""},1,14,{"$f":"'ES Assessment'!X16","v":""},1,14]
[null,null,null,null,null,null,null,{"$f":"'ES Assessment'!T48","v":""},5,15,{"$f":"'ES Assessment'!V23","v":""},3,15,{"$f":"'ES Assessment'!X17","v":""},1,15]
[null,null,null,null,null,null,null,{"$f":"'ES Assessment'!T53","v":""},2,16,{"$f":"'ES Assessment'!V26","v":""},6,16,{"$f":"'ES Assessment'!X18","v":""},1,16]
[null,null,null,null,null,null,null,{"$f":"'ES Assessment'!T55","v":""},2,17,{"$f":"'ES Assessment'!V32","v":""},2,17,{"$f":"'ES Assessment'!X19","v":""},1,17]
[null,null,null,null,null,null,null,null,null,null,{"$f":"'ES Assessment'!V34","v":""},2,18,{"$f":"'ES Assessment'!X20","v":""},1,18]
[null,null,null,null,null,null,null,null,null,null,{"$f":"'ES Assessment'!V36","v":""},3,19,{"$f":"'ES Assessment'!X21","v":""},1,19]
[null,null,null,null,null,null,null,null,null,null,{"$f":"'ES Assessment'!V39","v":""},4,20,{"$f":"'ES Assessment'!X22","v":""},1,20]
[null,null,null,null,null,null,null,null,null,null,{"$f":"'ES Assessment'!V43","v":""},1,21,{"$f":"'ES Assessment'!X23","v":""},1,21]
[null,null,null,null,null,null,null,null,null,null,{"$f":"'ES Assessment'!V44","v":""},1,22,{"$f":"'ES Assessment'!X24","v":""},1,22]
[null,null,null,null,null,null,null,null,null,null,{"$f":"'ES Assessment'!V45","v":""},3,23,{"$f":"'ES Assessment'!X25","v":""},1,23]
[null,null,null,null,null,null,null,null,null,null,{"$f":"'ES Assessment'!V48","v":""},2,24,{"$f":"'ES Assessment'!X26","v":""},1,24]
[null,null,null,null,null,null,null,null,null,null,{"$f":"'ES Assessment'!V50","v":""},1,25,{"$f":"'ES Assessment'!X27","v":""},1,25]
[null,null,null,null,null,null,null,null,null,null,{"$f":"'ES Assessment'!V51","v":""},1,26,{"$f":"'ES Assessment'!X28","v":""},1,26]
[null,null,null,null,null,null,null,null,null,null,{"$f":"'ES Assessment'!V52","v":""},1,27,{"$f":"'ES Assessment'!X29","v":""},1,27]
[null,null,null,null,null,null,null,null,null,null,{"$f":"'ES Assessment'!V53","v":""},1,28,{"$f":"'ES Assessment'!X30","v":""},1,28]
[null,null,null,null,null,null,null,null,null,null,{"$f":"'ES Assessment'!V54","v":""},1,29,{"$f":"'ES Assessment'!X31","v":""},1,29]
[null,null,null,null,null,null,null,null,null,null,{"$f":"'ES Assessment'!V55","v":""},1,30,{"$f":"'ES Assessment'!X32","v":""},1,30]
[null,null,null,null,null,null,null,null,null,null,{"$f":"'ES Assessment'!V56","v":""},1,31,{"$f":"'ES Assessment'!X33","v":""},1,31]
[null,null,null,null,null,null,null,null,null,null,null,null,null,{"$f":"'ES Assessment'!X34","v":""},1,32]
[null,null,null,null,null,null,null,null,null,null,null,null,null,{"$f":"'ES Assessment'!X35","v":""},1,33]
[null,null,null,null,null,null,null,null,null,null,null,null,null,{"$f":"'ES Assessment'!X36","v":""},1,34]
[null,null,null,null,null,null,null,null,null,null,null,null,null,{"$f":"'ES Assessment'!X37","v":""},1,35]
[null,null,null,null,null,null,null,null,null,null,null,null,null,{"$f":"'ES Assessment'!X38","v":""},1,36]
[null,null,null,null,null,null,null,null,null,null,null,null,null,{"$f":"'ES Assessment'!X39","v":""},1,37]
[null,null,null,null,null,null,null,null,null,null,null,null,null,{"$f":"'ES Assessment'!X40","v":""},1,38]
[null,null,null,null,null,null,null,null,null,null,null,null,null,{"$f":"'ES Assessment'!X41","v":""},1,39]
[null,null,null,null,null,null,null,null,null,null,null,null,null,{"$f":"'ES Assessment'!X42","v":""},1,40]
[null,null,null,null,null,null,null,null,null,null,null,null,null,{"$f":"'ES Assessment'!X43","v":""},1,41]
[null,null,null,null,null,null,null,null,null,null,null,null,null,{"$f":"'ES Assessment'!X44","v":""},1,42]
[null,null,null,null,null,null,null,null,null,null,null,null,null,{"$f":"'ES Assessment'!X45","v":""},1,43]
[null,null,null,null,null,null,null,null,null,null,null,null,null,{"$f":"'ES Assessment'!X46","v":""},1,44]
[null,null,null,null,null,null,null,null,null,null,null,null,null,{"$f":"'ES Assessment'!X47","v":""},1,45]
[null,null,null,null,null,null,null,null,null,null,null,null,null,{"$f":"'ES Assessment'!X48","v":""},1,46]
[null,null,null,null,null,null,null,null,null,null,null,null,null,{"$f":"'ES Assessment'!X49","v":""},1,47]
[null,null,null,null,null,null,null,null,null,null,null,null,null,{"$f":"'ES Assessment'!X50","v":""},1,48]
[null,null,null,null,null,null,null,null,null,null,null,null,null,{"$f":"'ES Assessment'!X51","v":""},1,49]
[null,null,null,null,null,null,null,null,null,null,null,null,null,{"$f":"'ES Assessment'!X52","v":""},1,50]
[null,null,null,null,null,null,null,null,null,null,null,null,null,{"$f":"'ES Assessment'!X53","v":""},1,51]
[null,null,null,null,null,null,null,null,null,null,null,null,null,{"$f":"'ES Assessment'!X54","v":""},1,52]
[null,null,null,null,null,null,null,null,null,null,null,null,null,{"$f":"'ES Assessment'!X55","v":""},1,53]
[null,null,null,null,null,null,null,null,null,null,null,null,null,{"$f":"'ES Assessment'!X56","v":""},1,54]

{"sheet":"Metrics Initial Status","index":13,"n_rows":11,"n_cols":16,"rows_kept":11,"cut":false,"hidden":false,"merged":[[4,5,4,15],[5,5,6,5],[5,6,5,7],[5,8,5,11],[5,12,5,15]]}
[]
[]
[]
[]
[null,null,null,null,null,"Initial Status"]
[null,null,null,null,null,"Ecosystem Services Sections","Indicators",null,"Type of Data",null,null,null,"Reliability"]
[null,null,null,null,null,null,"Number of indicators (Used)","Number of indicators (Total)","Database / dataset","Reports","Other Sources","Local Experts","Very high","High","Moderate","Low"]
[null,null,null,null,null,"Provisioning",{"$f":"COUNTA('Initial Status'!H6:H19)","v":0},14,{"$f":"COUNTIF('Initial Status'!I6:I18, \"Database/ dataset\")","v":0},{"$f":"COUNTIF('Initial Status'!I6:I18, \"Reports/ Literature\")","v":0},{"$f":"COUNTIF('Initial Status'!I6:I18, \"Other Sources\")","v":0},{"$f":"COUNTIF('Initial Status'!I6:I18, \"Local Expert\")","v":0},{"$f":"COUNTIF('Initial Status'!M6:M19, \"1\")","v":0},{"$f":"COUNTIF('Initial Status'!M6:M19, \"2\")","v":0},{"$f":"COUNTIF('Initial Status'!M6:M19, \"3\")","v":0},{"$f":"COUNTIF('Initial Status'!M6:M19, \"4\")","v":0}]
[null,null,null,null,null,"Regulating",{"$f":"COUNTA('Initial Status'!H21:H47)","v":0},27,{"$f":"COUNTIF('Initial Status'!I21:I47, \"Database/ dataset\")","v":0},{"$f":"COUNTIF('Initial Status'!I21:I47, \"Reports/ Literature\")","v":0},{"$f":"COUNTIF('Initial Status'!I21:I47, \"Other Sources\")","v":0},{"$f":"COUNTIF('Initial Status'!I21:I47, \"Local Expert\")","v":0},{"$f":"COUNTIF('Initial Status'!M21:M47, \"1\")","v":0},{"$f":"COUNTIF('Initial Status'!M21:M47, \"2\")","v":0},{"$f":"COUNTIF('Initial Status'!M21:M47, \"3\")","v":0},{"$f":"COUNTIF('Initial Status'!M21:M47, \"4\")","v":0}]
[null,null,null,null,null,"Cultural",{"$f":"COUNTA('Initial Status'!H49:H61)","v":0},13,{"$f":"COUNTIF('Initial Status'!I49:I61, \"Database/ dataset\")","v":0},{"$f":"COUNTIF('Initial Status'!I49:I61, \"Reports/ Literature\")","v":0},{"$f":"COUNTIF('Initial Status'!I49:I61, \"Other Sources\")","v":0},{"$f":"COUNTIF('Initial Status'!I49:I61, \"Local Expert\")","v":0},{"$f":"COUNTIF('Initial Status'!M49:M61, \"1\")","v":0},{"$f":"COUNTIF('Initial Status'!M49:M61, \"2\")","v":0},{"$f":"COUNTIF('Initial Status'!M49:M61, \"3\")","v":0},{"$f":"COUNTIF('Initial Status'!M49:M61, \"4\")","v":0}]
[null,null,null,null,null,"Overall",{"$f":"SUM(G8:G10)","v":0},54,{"$f":"SUM(I8:I10)","v":0},{"$f":"SUM(J8:J10)","v":0},0,0,{"$f":"SUM(M8:M10)","v":0},{"$f":"SUM(N8:N10)","v":0},{"$f":"SUM(O8:O10)","v":0},{"$f":"SUM(P8:P10)","v":0}]

{"sheet":"Metrics Present Status","index":14,"n_rows":11,"n_cols":16,"rows_kept":11,"cut":false,"hidden":false,"merged":[[4,5,4,15],[5,5,6,5],[5,6,5,7],[5,8,5,11],[5,12,5,15]]}
[]
[]
[]
[]
[null,null,null,null,null,"Present Status"]
[null,null,null,null,null,"Ecosystem Services Sections","Indicators",null,"Type of Data",null,null,null,"Reliability"]
[null,null,null,null,null,null,"Number of indicators (Used)","Number of indicators (Total)","Database / dataset","Reports","Other Sources","Local Experts","Very high","High","Moderate","Low"]
[null,null,null,null,null,"Provisioning",{"$f":"COUNTA('Present Status'!I6:I19)","v":0},14,{"$f":"COUNTIF('Present Status'!J6:J19, \"Database/ dataset\")","v":0},{"$f":"COUNTIF('Present Status'!J6:J19, \"Reports/ Literature\")","v":0},{"$f":"COUNTIF('Present Status'!J6:J19, \"Other Sources\")","v":0},{"$f":"COUNTIF('Present Status'!J6:J19, \"Local Expert\")","v":0},{"$f":"COUNTIF('Present Status'!N6:N19, \"1\")","v":0},{"$f":"COUNTIF('Present Status'!N6:N19, \"2\")","v":0},{"$f":"COUNTIF('Present Status'!N6:N19, \"3\")","v":0},{"$f":"COUNTIF('Present Status'!N6:N19, \"4\")","v":0}]
[null,null,null,null,null,"Regulating",{"$f":"COUNTA('Present Status'!I21:I47)","v":0},27,{"$f":"COUNTIF('Present Status'!J21:J47, \"Database/ dataset\")","v":0},{"$f":"COUNTIF('Present Status'!J21:J47, \"Reports/ Literature\")","v":0},{"$f":"COUNTIF('Present Status'!J21:J47, \"Other Sources\")","v":0},{"$f":"COUNTIF('Present Status'!J21:J47, \"Local Expert\")","v":0},{"$f":"COUNTIF('Present Status'!N21:N47, \"1\")","v":0},{"$f":"COUNTIF('Present Status'!N21:N47, \"2\")","v":0},{"$f":"COUNTIF('Present Status'!N21:N47, \"3\")","v":0},{"$f":"COUNTIF('Present Status'!N21:N47, \"4\")","v":0}]
[null,null,null,null,null,"Cultural",{"$f":"COUNTA('Present Status'!I49:I61)","v":0},13,{"$f":"COUNTIF('Present Status'!J49:J61, \"Database/ dataset\")","v":0},{"$f":"COUNTIF('Present Status'!J49:J61, \"Reports/ Literature\")","v":0},{"$f":"COUNTIF('Present Status'!J49:J61, \"Other Sources\")","v":0},{"$f":"COUNTIF('Present Status'!J49:J61, \"Local Expert\")","v":0},{"$f":"COUNTIF('Present Status'!N49:N61, \"1\")","v":0},{"$f":"COUNTIF('Present Status'!N49:N61, \"2\")","v":0},{"$f":"COUNTIF('Present Status'!N49:N61, \"3\")","v":0},{"$f":"COUNTIF('Present Status'!N49:N61, \"4\")","v":0}]
[null,null,null,null,null,"Overall",{"$f":"SUM(G8:G10)","v":0},54,{"$f":"SUM(I8:I10)","v":0},{"$f":"SUM(J8:J10)","v":0},0,0,0,0,0,0]